{"text_format":"1","workbook":"xlsx","n_sheets":14,"sheets":["受付表","1月","2月","3月","4月","5月","6月","7月","8月","9月","10月","11月","12月","年間集計"],"not_rendered":{"charts":1,"images":0,"macros":1,"external_links":0,"defined_names":1,"comments":0,"pivot_tables":0},"unopened":[],"bounds":{"document_bytes":16777216,"sheet_cells":100000,"rows_first":2000,"rows_last":500,"rows_between":2000,"halvings":0,"cell_chars":16384,"cell_head_chars":4096},"cells_cut":0,"cells_raw":0,"read":"whole","date_system":"1900"}

{"sheet":"受付表","index":0,"n_rows":313,"n_cols":8,"rows_kept":313,"cut":false,"hidden":false,"merged":[[1,1,1,5],[0,1,0,5]]}
[null,"修理状況"]
[null,"修理が終わりましたら、修理状況の所が「修理完了」、ICの故障など、おもちゃによって部品が無い等、直せない物は「修理不能」と表示します。「修理完了」または「修理不能」と表示になりましたら、ご都合のよい時にお受け取りをお願い致します。"]
[null,"整理番号","特徴","修理状況","修理不能の理由","担当Dr.より","受付","返却"]
[false,{"$f":"SUBSTITUTE(G3:G313,0,\"繰り越し\")","v":""}]
[false,""]
[false,""]
[false,""]
[false,""]
[false,""]
[false,{"$f":"SUBSTITUTE(G4:G319,0,\"繰り越し\")","v":""}]
[false,{"$f":"SUBSTITUTE(G10:G320,0,\"繰り越し\")","v":""}]
[false,""]
[false,{"$f":"SUBSTITUTE(G8:G318,0,\"繰り越し\")","v":""}]
[false,1]
[false,2]
[false,3]
[false,4]
[false,5]
[false,6]
[false,7]
[false,8]
[false,9]
[false,10]
[false,11]
[false,12]
[false,13]
[false,14]
[false,15]
[false,16]
[false,17]
[false,18]
[false,19]
[false,20]
[false,21]
[false,22]
[false,23]
[false,24]
[false,25]
[false,26]
[false,27]
[false,28]
[false,29]
[false,30]
[false,31]
[false,32]
[false,33]
[false,34]
[false,35]
[false,36]
[false,37]
[false,38]
[false,39]
[false,40]
[false,41]
[false,42]
[false,43]
[false,44]
[false,45]
[false,46]
[false,47]
[false,48]
[false,49]
[false,50]
[false,51]
[false,52]
[false,53]
[false,54]
[false,55]
[false,56]
[false,57]
[false,58]
[false,59]
[false,60]
[false,61]
[false,62]
[false,63]
[false,64]
[false,65]
[false,66]
[false,67]
[false,68]
[false,69]
[false,70]
[false,71]
[false,72]
[false,73]
[false,74]
[false,75]
[false,76]
[false,77]
[false,78]
[false,79]
[false,80]
[false,81]
[false,82]
[false,83]
[false,84]
[false,85]
[false,86]
[false,87]
[false,88]
[false,89]
[false,90]
[false,91]
[false,92]
[false,93]
[false,94]
[false,95]
[false,96]
[false,97]
[false,98]
[false,99]
[false,100]
[false,101]
[false,102]
[false,103]
[false,104]
[false,105]
[false,106]
[false,107]
[false,108]
[false,109]
[false,110]
[false,111]
[false,112]
[false,113]
[false,114]
[false,115]
[false,116]
[false,117]
[false,118]
[false,119]
[false,120]
[false,121]
[false,122]
[false,123]
[false,124]
[false,125]
[false,126]
[false,127]
[false,128]
[false,129]
[false,130]
[false,131]
[false,132]
[false,133]
[false,134]
[false,135]
[false,136]
[false,137]
[false,138]
[false,139]
[false,140]
[false,141]
[false,142]
[false,143]
[false,144]
[false,145]
[false,146]
[false,147]
[false,148]
[false,149]
[false,150]
[false,151]
[false,152]
[false,153]
[false,154]
[false,155]
[false,156]
[false,157]
[false,158]
[false,159]
[false,160]
[false,161]
[false,162]
[false,163]
[false,164]
[false,165]
[false,166]
[false,167]
[false,168]
[false,169]
[false,170]
[false,171]
[false,172]
[false,173]
[false,174]
[false,175]
[false,176]
[false,177]
[false,178]
[false,179]
[false,180]
[false,181]
[false,182]
[false,183]
[false,184]
[false,185]
[false,186]
[false,187]
[false,188]
[false,189]
[false,190]
[false,191]
[false,192]
[false,193]
[false,194]
[false,195]
[false,196]
[false,197]
[false,198]
[false,199]
[false,200]
[false,201]
[false,202]
[false,203]
[false,204]
[false,205]
[false,206]
[false,207]
[false,208]
[false,209]
[false,210]
[false,211]
[false,212]
[false,213]
[false,214]
[false,215]
[false,216]
[false,217]
[false,218]
[false,219]
[false,220]
[false,221]
[false,222]
[false,223]
[false,224]
[false,225]
[false,226]
[false,227]
[false,228]
[false,229]
[false,230]
[false,231]
[false,232]
[false,233]
[false,234]
[false,235]
[false,236]
[false,237]
[false,238]
[false,239]
[false,240]
[false,241]
[false,242]
[false,243]
[false,244]
[false,245]
[false,246]
[false,247]
[false,248]
[false,249]
[false,250]
[false,251]
[false,252]
[false,253]
[false,254]
[false,255]
[false,256]
[false,257]
[false,258]
[false,259]
[false,260]
[false,261]
[false,262]
[false,263]
[false,264]
[false,265]
[false,266]
[false,267]
[false,268]
[false,269]
[false,270]
[false,271]
[false,272]
[false,273]
[false,274]
[false,275]
[false,276]
[false,277]
[false,278]
[false,279]
[false,280]
[false,281]
[false,282]
[false,283]
[false,284]
[false,285]
[false,286]
[false,287]
[false,288]
[false,289]
[false,290]
[false,291]
[false,292]
[false,293]
[false,294]
[false,295]
[false,296]
[false,297]
[false,298]
[false,299]
[false,300]

{"sheet":"1月","index":1,"n_rows":313,"n_cols":11,"rows_kept":313,"cut":false,"hidden":false,"merged":[[0,1,0,6],[14,9,14,10],[1,5,2,5],[4,9,4,10],[1,1,2,1],[1,2,2,2],[1,3,2,3],[1,4,2,4],[1,6,2,6],[1,10,2,10],[1,7,2,7]]}
[null,"１月の修理状況"]
[null,"整理番号","修理状況","修理状況","修理不能の理由","担当Dr.より","受付","返却"]
[]
[false,{"$f":"SUBSTITUTE(G3:G313,0,\"繰り越し\")","v":""}]
[false,{"$f":"SUBSTITUTE(G4:G314,0,\"繰り越し\")","v":""},null,null,null,null,null,null,null,"今月の実績"]
[false,{"$f":"SUBSTITUTE(G5:G315,0,\"繰り越し\")","v":""},null,null,null,null,null,null,null,"前年度繰り越し",{"$f":"COUNTIFS(G4:G313,0,D4:D313,\"修理中\")","v":0}]
[false,{"$f":"SUBSTITUTE(G6:G316,0,\"繰り越し\")","v":""},null,null,null,null,null,null,null,"受付件数",{"$f":"COUNTIF(G4:G311,1)","v":0}]
[false,{"$f":"SUBSTITUTE(G7:G317,0,\"繰り越し\")","v":""},null,null,null,null,null,null,null,"要修理数",{"$f":"K6+K7","v":0}]
[false,{"$f":"SUBSTITUTE(G8:G318,0,\"繰り越し\")","v":""},null,null,null,null,null,null,null,"修理完了件数",{"$f":"COUNTIFS(D4:D313,\"修理完了\",G4:G313,1)","v":0}]
[false,{"$f":"SUBSTITUTE(G4:G319,0,\"繰り越し\")","v":""},null,null,null,null,null,null,null,"修理不能件数",{"$f":"COUNTIFS(D4:D313,\"修理不能\",G4:G313,1)","v":0}]
[false,"",null,null,null,null,null,null,null,"修理中件数",{"$f":"COUNTIF(D4:D295,\"修理中\")","v":0}]
[false,"",null,null,null,null,null,null,null,"返却待ち件数",{"$f":"COUNTIF(A4:A309,TRUE)","v":0}]
[false,{"$f":"SUBSTITUTE(G8:G318,0,\"繰り越し\")","v":""}]
[false,1]
[false,2,null,null,null,null,null,null,null,"修理不能の原因"]
[false,3,null,null,null,null,null,null,null,"特殊な充電池",{"$f":"COUNTIF(E4:E313,\"特殊な充電池で、手に入りません\")","v":0}]
[false,4,null,null,null,null,null,null,null,"ＩＣが故障",{"$f":"COUNTIF(E4:E313,\"ＩＣが故障していて、手に入りません\")","v":0}]
[false,5,null,null,null,null,null,null,null,"断線が多い",{"$f":"COUNTIF(E6:E297,\"断線が多い為、配線が分かりません\")","v":0}]
[false,6,null,null,null,null,null,null,null,"分解できない",{"$f":"COUNTIF(E4:E313,\"分解できない為、原因が分かりません\")","v":0}]
[false,7,null,null,null,null,null,null,null,"ギアの欠け",{"$f":"COUNTIF(E4:E313,\"ギアが欠けていて、手に入りません\")","v":0}]
[false,8,null,null,null,null,null,null,null,"その他",{"$f":"COUNTIF(E4:E313,\"その他\")","v":0}]
[false,9]
[false,10]
[false,11]
[false,12]
[false,13]
[false,14]
[false,15]
[false,16]
[false,17,null,null,null,null,null,{"$f":"IF(A30=TRUE,\"○\",\"\")","v":""}]
[false,18,null,null,null,null,null,""]
[false,19,null,null,null,null,null,""]
[false,20,null,null,null,null,null,""]
[false,21,null,null,null,null,null,""]
[false,22,null,null,null,null,null,""]
[false,23,null,null,null,null,null,""]
[false,24,null,null,null,null,null,""]
[false,25,null,null,null,null,null,""]
[false,26,null,null,null,null,null,""]
[false,27,null,null,null,null,null,""]
[false,28,null,null,null,null,null,""]
[false,29,null,null,null,null,null,""]
[false,30,null,null,null,null,null,""]
[false,31,null,null,null,null,null,""]
[false,32,null,null,null,null,null,""]
[false,33,null,null,null,null,null,""]
[false,34,null,null,null,null,null,""]
[false,35,null,null,null,null,null,""]
[false,36,null,null,null,null,null,""]
[false,37,null,null,null,null,null,""]
[false,38,null,null,null,null,null,""]
[false,39,null,null,null,null,null,""]
[false,40,null,null,null,null,null,""]
[false,41,null,null,null,null,null,""]
[false,42,null,null,null,null,null,""]
[false,43,null,null,null,null,null,""]
[false,44,null,null,null,null,null,""]
[false,45,null,null,null,null,null,""]
[false,46,null,null,null,null,null,""]
[false,47,null,null,null,null,null,""]
[false,48,null,null,null,null,null,""]
[false,49,null,null,null,null,null,""]
[false,50,null,null,null,null,null,""]
[false,51,null,null,null,null,null,""]
[false,52,null,null,null,null,null,""]
[false,53,null,null,null,null,null,""]
[false,54,null,null,null,null,null,""]
[false,55,null,null,null,null,null,""]
[false,56,null,null,null,null,null,""]
[false,57,null,null,null,null,null,""]
[false,58,null,null,null,null,null,""]
[false,59,null,null,null,null,null,""]
[false,60,null,null,null,null,null,""]
[false,61,null,null,null,null,null,""]
[false,62,null,null,null,null,null,""]
[false,63,null,null,null,null,null,""]
[false,64,null,null,null,null,null,""]
[false,65,null,null,null,null,null,""]
[false,66,null,null,null,null,null,{"$f":"IF(A79=TRUE,\"○\",\"\")","v":""}]
[false,67,null,null,null,null,null,""]
[false,68,null,null,null,null,null,""]
[false,69,null,null,null,null,null,""]
[false,70,null,null,null,null,null,""]
[false,71,null,null,null,null,null,""]
[false,72,null,null,null,null,null,""]
[false,73,null,null,null,null,null,""]
[false,74,null,null,null,null,null,""]
[false,75,null,null,null,null,null,""]
[false,76,null,null,null,null,null,""]
[false,77,null,null,null,null,null,""]
[false,78,null,null,null,null,null,""]
[false,79,null,null,null,null,null,""]
[false,80,null,null,null,null,null,""]
[false,81,null,null,null,null,null,""]
[false,82,null,null,null,null,null,""]
[false,83,null,null,null,null,null,""]
[false,84,null,null,null,null,null,""]
[false,85,null,null,null,null,null,""]
[false,86,null,null,null,null,null,""]
[false,87,null,null,null,null,null,""]
[false,88,null,null,null,null,null,""]
[false,89,null,null,null,null,null,""]
[false,90,null,null,null,null,null,""]
[false,91,null,null,null,null,null,""]
[false,92,null,null,null,null,null,""]
[false,93,null,null,null,null,null,""]
[false,94,null,null,null,null,null,""]
[false,95,null,null,null,null,null,""]
[false,96,null,null,null,null,null,""]
[false,97,null,null,null,null,null,""]
[false,98,null,null,null,null,null,""]
[false,99,null,null,null,null,null,""]
[false,100,null,null,null,null,null,""]
[false,101,null,null,null,null,null,""]
[false,102,null,null,null,null,null,""]
[false,103,null,null,null,null,null,""]
[false,104,null,null,null,null,null,""]
[false,105,null,null,null,null,null,""]
[false,106,null,null,null,null,null,""]
[false,107,null,null,null,null,null,""]
[false,108,null,null,null,null,null,""]
[false,109,null,null,null,null,null,""]
[false,110,null,null,null,null,null,""]
[false,111,null,null,null,null,null,""]
[false,112,null,null,null,null,null,""]
[false,113,null,null,null,null,null,""]
[false,114,null,null,null,null,null,""]
[false,115,null,null,null,null,null,""]
[false,116,null,null,null,null,null,""]
[false,117,null,null,null,null,null,""]
[false,118,null,null,null,null,null,""]
[false,119,null,null,null,null,null,""]
[false,120,null,null,null,null,null,""]
[false,121,null,null,null,null,null,""]
[false,122,null,null,null,null,null,""]
[false,123,null,null,null,null,null,""]
[false,124,null,null,null,null,null,""]
[false,125,null,null,null,null,null,""]
[false,126,null,null,null,null,null,""]
[false,127,null,null,null,null,null,""]
[false,128,null,null,null,null,null,""]
[false,129,null,null,null,null,null,""]
[false,130,null,null,null,null,null,{"$f":"IF(A143=TRUE,\"○\",\"\")","v":""}]
[false,131,null,null,null,null,null,""]
[false,132,null,null,null,null,null,""]
[false,133,null,null,null,null,null,""]
[false,134,null,null,null,null,null,""]
[false,135,null,null,null,null,null,""]
[false,136,null,null,null,null,null,""]
[false,137,null,null,null,null,null,""]
[false,138,null,null,null,null,null,""]
[false,139,null,null,null,null,null,""]
[false,140,null,null,null,null,null,""]
[false,141,null,null,null,null,null,""]
[false,142,null,null,null,null,null,""]
[false,143,null,null,null,null,null,""]
[false,144,null,null,null,null,null,""]
[false,145,null,null,null,null,null,""]
[false,146,null,null,null,null,null,""]
[false,147,null,null,null,null,null,""]
[false,148,null,null,null,null,null,""]
[false,149,null,null,null,null,null,""]
[false,150,null,null,null,null,null,""]
[false,151,null,null,null,null,null,""]
[false,152,null,null,null,null,null,""]
[false,153,null,null,null,null,null,""]
[false,154,null,null,null,null,null,""]
[false,155,null,null,null,null,null,""]
[false,156,null,null,null,null,null,""]
[null,157,null,null,null,null,null,""]
[null,158,null,null,null,null,null,""]
[null,159,null,null,null,null,null,""]
[null,160,null,null,null,null,null,""]
[null,161,null,null,null,null,null,""]
[null,162,null,null,null,null,null,""]
[null,163,null,null,null,null,null,""]
[null,164,null,null,null,null,null,""]
[null,165,null,null,null,null,null,""]
[null,166,null,null,null,null,null,""]
[null,167,null,null,null,null,null,""]
[null,168,null,null,null,null,null,""]
[null,169,null,null,null,null,null,""]
[null,170,null,null,null,null,null,""]
[null,171,null,null,null,null,null,""]
[null,172,null,null,null,null,null,""]
[null,173,null,null,null,null,null,""]
[null,174,null,null,null,null,null,""]
[null,175,null,null,null,null,null,""]
[null,176,null,null,null,null,null,""]
[null,177,null,null,null,null,null,""]
[null,178,null,null,null,null,null,""]
[null,179,null,null,null,null,null,""]
[null,180,null,null,null,null,null,""]
[null,181,null,null,null,null,null,""]
[null,182,null,null,null,null,null,""]
[null,183,null,null,null,null,null,""]
[null,184,null,null,null,null,null,""]
[null,185,null,null,null,null,null,""]
[null,186,null,null,null,null,null,""]
[null,187,null,null,null,null,null,""]
[null,188,null,null,null,null,null,""]
[null,189,null,null,null,null,null,""]
[null,190,null,null,null,null,null,""]
[null,191,null,null,null,null,null,""]
[null,192,null,null,null,null,null,""]
[null,193,null,null,null,null,null,""]
[null,194,null,null,null,null,null,{"$f":"IF(A207=TRUE,\"○\",\"\")","v":""}]
[null,195,null,null,null,null,null,""]
[null,196,null,null,null,null,null,""]
[null,197,null,null,null,null,null,""]
[null,198,null,null,null,null,null,""]
[null,199,null,null,null,null,null,""]
[null,200,null,null,null,null,null,""]
[null,201,null,null,null,null,null,""]
[null,202,null,null,null,null,null,""]
[null,203,null,null,null,null,null,""]
[null,204,null,null,null,null,null,""]
[null,205,null,null,null,null,null,""]
[null,206,null,null,null,null,null,""]
[null,207,null,null,null,null,null,""]
[null,208,null,null,null,null,null,""]
[null,209,null,null,null,null,null,""]
[null,210,null,null,null,null,null,""]
[null,211,null,null,null,null,null,""]
[null,212,null,null,null,null,null,""]
[null,213,null,null,null,null,null,""]
[null,214,null,null,null,null,null,""]
[null,215,null,null,null,null,null,""]
[null,216,null,null,null,null,null,""]
[null,217,null,null,null,null,null,""]
[null,218,null,null,null,null,null,""]
[null,219,null,null,null,null,null,""]
[null,220,null,null,null,null,null,""]
[null,221,null,null,null,null,null,""]
[null,222,null,null,null,null,null,""]
[null,223,null,null,null,null,null,""]
[null,224,null,null,null,null,null,""]
[null,225,null,null,null,null,null,""]
[null,226,null,null,null,null,null,""]
[null,227,null,null,null,null,null,""]
[null,228,null,null,null,null,null,""]
[null,229,null,null,null,null,null,""]
[null,230,null,null,null,null,null,""]
[null,231,null,null,null,null,null,""]
[null,232,null,null,null,null,null,""]
[null,233,null,null,null,null,null,""]
[null,234,null,null,null,null,null,""]
[null,235,null,null,null,null,null,""]
[null,236,null,null,null,null,null,""]
[null,237,null,null,null,null,null,""]
[null,238,null,null,null,null,null,""]
[null,239,null,null,null,null,null,""]
[null,240,null,null,null,null,null,""]
[null,241,null,null,null,null,null,""]
[null,242,null,null,null,null,null,""]
[null,243,null,null,null,null,null,""]
[null,244,null,null,null,null,null,""]
[null,245,null,null,null,null,null,""]
[null,246,null,null,null,null,null,""]
[null,247,null,null,null,null,null,""]
[null,248,null,null,null,null,null,""]
[null,249,null,null,null,null,null,""]
[null,250,null,null,null,null,null,""]
[null,251,null,null,null,null,null,""]
[null,252,null,null,null,null,null,""]
[null,253,null,null,null,null,null,""]
[null,254,null,null,null,null,null,""]
[null,255,null,null,null,null,null,""]
[null,256,null,null,null,null,null,""]
[null,257,null,null,null,null,null,""]
[null,258,null,null,null,null,null,{"$f":"IF(A271=TRUE,\"○\",\"\")","v":""}]
[null,259,null,null,null,null,null,""]
[null,260,null,null,null,null,null,""]
[null,261,null,null,null,null,null,""]
[null,262,null,null,null,null,null,""]
[null,263,null,null,null,null,null,""]
[null,264,null,null,null,null,null,""]
[null,265,null,null,null,null,null,""]
[null,266,null,null,null,null,null,""]
[null,267,null,null,null,null,null,""]
[null,268,null,null,null,null,null,""]
[null,269,null,null,null,null,null,""]
[null,270,null,null,null,null,null,""]
[null,271,null,null,null,null,null,""]
[null,272,null,null,null,null,null,""]
[null,273,null,null,null,null,null,""]
[null,274,null,null,null,null,null,""]
[null,275,null,null,null,null,null,""]
[null,276,null,null,null,null,null,""]
[null,277,null,null,null,null,null,""]
[null,278,null,null,null,null,null,""]
[null,279,null,null,null,null,null,""]
[null,280,null,null,null,null,null,""]
[null,281,null,null,null,null,null,""]
[null,282,null,null,null,null,null,""]
[null,283,null,null,null,null,null,""]
[null,284,null,null,null,null,null,""]
[null,285,null,null,null,null,null,""]
[null,286,null,null,null,null,null,""]
[null,287,null,null,null,null,null,""]
[null,288,null,null,null,null,null,""]
[null,289,null,null,null,null,null,""]
[null,290,null,null,null,null,null,""]
[null,291,null,null,null,null,null,""]
[null,292,null,null,null,null,null,""]
[null,293,null,null,null,null,null,""]
[null,294,null,null,null,null,null,""]
[null,295,null,null,null,null,null,""]
[null,296,null,null,null,null,null,""]
[null,297,null,null,null,null,null,""]
[null,298,null,null,null,null,null,""]
[null,299,null,null,null,null,null,""]
[null,300,null,null,null,null,null,""]

{"sheet":"2月","index":2,"n_rows":313,"n_cols":11,"rows_kept":313,"cut":false,"hidden":false,"merged":[[0,1,0,6],[1,10,2,10],[4,9,4,10],[14,9,14,10],[1,1,2,1],[1,2,2,2],[1,3,2,3],[1,4,2,4],[1,5,2,5],[1,6,2,6],[1,7,2,7]]}
[null,"２月の修理状況"]
[null,"整理番号","修理状況","修理状況","修理不能の理由","担当Dr.より","受付","返却"]
[]
[false,{"$f":"SUBSTITUTE(G3:G313,0,\"繰り越し\")","v":""}]
[false,"",null,null,null,null,null,null,null,"今月の実績"]
[false,"",null,null,null,null,null,null,null,"前月繰り越し",{"$f":"COUNTIFS(G4:G313,\"<2\",D4:D313,\"修理中\")","v":0}]
[false,"",null,null,null,null,null,null,null,"受付件数",{"$f":"COUNTIF(G4:G311,2)","v":0}]
[false,"",null,null,null,null,null,null,null,"要修理数",{"$f":"K6+K7","v":0}]
[false,"",null,null,null,null,null,null,null,"修理完了件数",{"$f":"COUNTIFS(D4:D313,\"修理完了\",G4:G313,2)","v":0}]
[false,{"$f":"SUBSTITUTE(G4:G319,0,\"繰り越し\")","v":""},null,null,null,null,null,null,null,"修理不能件数",{"$f":"COUNTIFS(D4:D313,\"修理不能\",G4:G313,2)","v":0}]
[false,{"$f":"SUBSTITUTE(G10:G320,0,\"繰り越し\")","v":""},null,null,null,null,null,null,null,"修理中件数",{"$f":"COUNTIF(D4:D295,\"修理中\")","v":0}]
[false,"",null,null,null,null,null,null,null,"返却待ち件数",{"$f":"COUNTIF(A4:A309,TRUE)","v":0}]
[false,{"$f":"SUBSTITUTE(G8:G318,0,\"繰り越し\")","v":""}]
[false,1]
[false,2,null,null,null,null,null,null,null,"修理不能の原因"]
[false,3,null,null,null,null,null,null,null,"特殊な充電池",{"$f":"COUNTIF(E4:E313,\"特殊な充電池で、手に入りません\")","v":0}]
[false,4,null,null,null,null,null,null,null,"ＩＣが故障",{"$f":"COUNTIF(E4:E313,\"ＩＣが故障していて、手に入りません\")","v":0}]
[false,5,null,null,null,null,null,null,null,"断線が多い",{"$f":"COUNTIF(E6:E297,\"断線が多い為、配線が分かりません\")","v":0}]
[false,6,null,null,null,null,null,null,null,"分解できない",{"$f":"COUNTIF(E4:E313,\"分解できない為、原因が分かりません\")","v":0}]
[false,7,null,null,null,null,null,null,null,"ギアの欠け",{"$f":"COUNTIF(E4:E313,\"ギアが欠けていて、手に入りません\")","v":0}]
[false,8,null,null,null,null,null,null,null,"その他",{"$f":"COUNTIF(E4:E313,\"その他\")","v":0}]
[false,9]
[false,10]
[false,11]
[false,12]
[false,13]
[false,14]
[false,15,null,null,null,null,null,{"$f":"IF(A28=TRUE,\"○\",\"\")","v":""}]
[false,16,null,null,null,null,null,""]
[false,17,null,null,null,null,null,""]
[false,18,null,null,null,null,null,""]
[false,19,null,null,null,null,null,""]
[false,20,null,null,null,null,null,""]
[false,21,null,null,null,null,null,""]
[false,22,null,null,null,null,null,""]
[false,23,null,null,null,null,null,""]
[false,24,null,null,null,null,null,""]
[false,25,null,null,null,null,null,""]
[false,26,null,null,null,null,null,""]
[false,27,null,null,null,null,null,""]
[false,28,null,null,null,null,null,""]
[false,29,null,null,null,null,null,""]
[false,30,null,null,null,null,null,""]
[false,31,null,null,null,null,null,""]
[false,32,null,null,null,null,null,""]
[false,33,null,null,null,null,null,""]
[false,34,null,null,null,null,null,""]
[false,35,null,null,null,null,null,""]
[false,36,null,null,null,null,null,""]
[false,37,null,null,null,null,null,""]
[false,38,null,null,null,null,null,""]
[false,39,null,null,null,null,null,""]
[false,40,null,null,null,null,null,""]
[false,41,null,null,null,null,null,""]
[false,42,null,null,null,null,null,""]
[false,43,null,null,null,null,null,""]
[false,44,null,null,null,null,null,""]
[false,45,null,null,null,null,null,""]
[false,46,null,null,null,null,null,""]
[false,47,null,null,null,null,null,""]
[false,48,null,null,null,null,null,""]
[false,49,null,null,null,null,null,""]
[false,50,null,null,null,null,null,""]
[false,51,null,null,null,null,null,""]
[false,52,null,null,null,null,null,""]
[false,53,null,null,null,null,null,""]
[false,54,null,null,null,null,null,""]
[false,55,null,null,null,null,null,""]
[false,56,null,null,null,null,null,""]
[false,57,null,null,null,null,null,""]
[false,58,null,null,null,null,null,""]
[false,59,null,null,null,null,null,""]
[false,60,null,null,null,null,null,""]
[false,61,null,null,null,null,null,""]
[false,62,null,null,null,null,null,""]
[false,63,null,null,null,null,null,""]
[false,64,null,null,null,null,null,""]
[false,65,null,null,null,null,null,""]
[false,66,null,null,null,null,null,{"$f":"IF(A79=TRUE,\"○\",\"\")","v":""}]
[false,67,null,null,null,null,null,""]
[false,68,null,null,null,null,null,""]
[false,69,null,null,null,null,null,""]
[false,70,null,null,null,null,null,""]
[false,71,null,null,null,null,null,""]
[false,72,null,null,null,null,null,""]
[false,73,null,null,null,null,null,""]
[false,74,null,null,null,null,null,""]
[false,75,null,null,null,null,null,""]
[false,76,null,null,null,null,null,""]
[false,77,null,null,null,null,null,""]
[false,78,null,null,null,null,null,""]
[false,79,null,null,null,null,null,""]
[false,80,null,null,null,null,null,""]
[false,81,null,null,null,null,null,""]
[false,82,null,null,null,null,null,""]
[false,83,null,null,null,null,null,""]
[false,84,null,null,null,null,null,""]
[false,85,null,null,null,null,null,""]
[false,86,null,null,null,null,null,""]
[false,87,null,null,null,null,null,""]
[false,88,null,null,null,null,null,""]
[false,89,null,null,null,null,null,""]
[false,90,null,null,null,null,null,""]
[false,91,null,null,null,null,null,""]
[false,92,null,null,null,null,null,""]
[false,93,null,null,null,null,null,""]
[false,94,null,null,null,null,null,""]
[false,95,null,null,null,null,null,""]
[false,96,null,null,null,null,null,""]
[false,97,null,null,null,null,null,""]
[false,98,null,null,null,null,null,""]
[false,99,null,null,null,null,null,""]
[false,100,null,null,null,null,null,""]
[false,101,null,null,null,null,null,""]
[false,102,null,null,null,null,null,""]
[false,103,null,null,null,null,null,""]
[false,104,null,null,null,null,null,""]
[false,105,null,null,null,null,null,""]
[false,106,null,null,null,null,null,""]
[false,107,null,null,null,null,null,""]
[false,108,null,null,null,null,null,""]
[false,109,null,null,null,null,null,""]
[false,110,null,null,null,null,null,""]
[false,111,null,null,null,null,null,""]
[false,112,null,null,null,null,null,""]
[false,113,null,null,null,null,null,""]
[false,114,null,null,null,null,null,""]
[false,115,null,null,null,null,null,""]
[false,116,null,null,null,null,null,""]
[false,117,null,null,null,null,null,""]
[false,118,null,null,null,null,null,""]
[false,119,null,null,null,null,null,""]
[false,120,null,null,null,null,null,""]
[false,121,null,null,null,null,null,""]
[false,122,null,null,null,null,null,""]
[false,123,null,null,null,null,null,""]
[false,124,null,null,null,null,null,""]
[false,125,null,null,null,null,null,""]
[false,126,null,null,null,null,null,""]
[false,127,null,null,null,null,null,""]
[false,128,null,null,null,null,null,""]
[false,129,null,null,null,null,null,""]
[false,130,null,null,null,null,null,{"$f":"IF(A143=TRUE,\"○\",\"\")","v":""}]
[false,131,null,null,null,null,null,""]
[false,132,null,null,null,null,null,""]
[false,133,null,null,null,null,null,""]
[false,134,null,null,null,null,null,""]
[false,135,null,null,null,null,null,""]
[false,136,null,null,null,null,null,""]
[false,137,null,null,null,null,null,""]
[false,138,null,null,null,null,null,""]
[false,139,null,null,null,null,null,""]
[false,140,null,null,null,null,null,""]
[false,141,null,null,null,null,null,""]
[false,142,null,null,null,null,null,""]
[false,143,null,null,null,null,null,""]
[false,144,null,null,null,null,null,""]
[false,145,null,null,null,null,null,""]
[false,146,null,null,null,null,null,""]
[false,147,null,null,null,null,null,""]
[false,148,null,null,null,null,null,""]
[false,149,null,null,null,null,null,""]
[false,150,null,null,null,null,null,""]
[false,151,null,null,null,null,null,""]
[false,152,null,null,null,null,null,""]
[false,153,null,null,null,null,null,""]
[false,154,null,null,null,null,null,""]
[false,155,null,null,null,null,null,""]
[false,156,null,null,null,null,null,""]
[false,157,null,null,null,null,null,""]
[false,158,null,null,null,null,null,""]
[false,159,null,null,null,null,null,""]
[false,160,null,null,null,null,null,""]
[false,161,null,null,null,null,null,""]
[false,162,null,null,null,null,null,""]
[false,163,null,null,null,null,null,""]
[false,164,null,null,null,null,null,""]
[false,165,null,null,null,null,null,""]
[false,166,null,null,null,null,null,""]
[false,167,null,null,null,null,null,""]
[false,168,null,null,null,null,null,""]
[false,169,null,null,null,null,null,""]
[false,170,null,null,null,null,null,""]
[false,171,null,null,null,null,null,""]
[false,172,null,null,null,null,null,""]
[false,173,null,null,null,null,null,""]
[false,174,null,null,null,null,null,""]
[false,175,null,null,null,null,null,""]
[false,176,null,null,null,null,null,""]
[false,177,null,null,null,null,null,""]
[false,178,null,null,null,null,null,""]
[false,179,null,null,null,null,null,""]
[false,180,null,null,null,null,null,""]
[false,181,null,null,null,null,null,""]
[false,182,null,null,null,null,null,""]
[false,183,null,null,null,null,null,""]
[false,184,null,null,null,null,null,""]
[false,185,null,null,null,null,null,""]
[false,186,null,null,null,null,null,""]
[false,187,null,null,null,null,null,""]
[false,188,null,null,null,null,null,""]
[false,189,null,null,null,null,null,""]
[false,190,null,null,null,null,null,""]
[false,191,null,null,null,null,null,""]
[false,192,null,null,null,null,null,""]
[false,193,null,null,null,null,null,""]
[false,194,null,null,null,null,null,{"$f":"IF(A207=TRUE,\"○\",\"\")","v":""}]
[false,195,null,null,null,null,null,""]
[false,196,null,null,null,null,null,""]
[false,197,null,null,null,null,null,""]
[false,198,null,null,null,null,null,""]
[false,199,null,null,null,null,null,""]
[false,200,null,null,null,null,null,""]
[false,201,null,null,null,null,null,""]
[false,202,null,null,null,null,null,""]
[false,203,null,null,null,null,null,""]
[false,204,null,null,null,null,null,""]
[false,205,null,null,null,null,null,""]
[false,206,null,null,null,null,null,""]
[false,207,null,null,null,null,null,""]
[false,208,null,null,null,null,null,""]
[false,209,null,null,null,null,null,""]
[false,210,null,null,null,null,null,""]
[false,211,null,null,null,null,null,""]
[false,212,null,null,null,null,null,""]
[false,213,null,null,null,null,null,""]
[false,214,null,null,null,null,null,""]
[false,215,null,null,null,null,null,""]
[false,216,null,null,null,null,null,""]
[false,217,null,null,null,null,null,""]
[false,218,null,null,null,null,null,""]
[false,219,null,null,null,null,null,""]
[false,220,null,null,null,null,null,""]
[false,221,null,null,null,null,null,""]
[false,222,null,null,null,null,null,""]
[false,223,null,null,null,null,null,""]
[false,224,null,null,null,null,null,""]
[false,225,null,null,null,null,null,""]
[false,226,null,null,null,null,null,""]
[false,227,null,null,null,null,null,""]
[false,228,null,null,null,null,null,""]
[false,229,null,null,null,null,null,""]
[false,230,null,null,null,null,null,""]
[false,231,null,null,null,null,null,""]
[false,232,null,null,null,null,null,""]
[false,233,null,null,null,null,null,""]
[false,234,null,null,null,null,null,""]
[false,235,null,null,null,null,null,""]
[false,236,null,null,null,null,null,""]
[false,237,null,null,null,null,null,""]
[false,238,null,null,null,null,null,""]
[false,239,null,null,null,null,null,""]
[false,240,null,null,null,null,null,""]
[false,241,null,null,null,null,null,""]
[false,242,null,null,null,null,null,""]
[false,243,null,null,null,null,null,""]
[false,244,null,null,null,null,null,""]
[false,245,null,null,null,null,null,""]
[false,246,null,null,null,null,null,""]
[false,247,null,null,null,null,null,""]
[false,248,null,null,null,null,null,""]
[false,249,null,null,null,null,null,""]
[false,250,null,null,null,null,null,""]
[false,251,null,null,null,null,null,""]
[false,252,null,null,null,null,null,""]
[false,253,null,null,null,null,null,""]
[false,254,null,null,null,null,null,""]
[false,255,null,null,null,null,null,""]
[false,256,null,null,null,null,null,""]
[false,257,null,null,null,null,null,""]
[false,258,null,null,null,null,null,{"$f":"IF(A271=TRUE,\"○\",\"\")","v":""}]
[false,259,null,null,null,null,null,""]
[false,260,null,null,null,null,null,""]
[false,261,null,null,null,null,null,""]
[false,262,null,null,null,null,null,""]
[false,263,null,null,null,null,null,""]
[false,264,null,null,null,null,null,""]
[false,265,null,null,null,null,null,""]
[false,266,null,null,null,null,null,""]
[false,267,null,null,null,null,null,""]
[false,268,null,null,null,null,null,""]
[false,269,null,null,null,null,null,""]
[false,270,null,null,null,null,null,""]
[false,271,null,null,null,null,null,""]
[false,272,null,null,null,null,null,""]
[false,273,null,null,null,null,null,""]
[false,274,null,null,null,null,null,""]
[false,275,null,null,null,null,null,""]
[false,276,null,null,null,null,null,""]
[false,277,null,null,null,null,null,""]
[false,278,null,null,null,null,null,""]
[false,279,null,null,null,null,null,""]
[false,280,null,null,null,null,null,""]
[false,281,null,null,null,null,null,""]
[false,282,null,null,null,null,null,""]
[false,283,null,null,null,null,null,""]
[false,284,null,null,null,null,null,""]
[false,285,null,null,null,null,null,""]
[false,286,null,null,null,null,null,""]
[false,287,null,null,null,null,null,""]
[false,288,null,null,null,null,null,""]
[false,289,null,null,null,null,null,""]
[false,290,null,null,null,null,null,""]
[false,291,null,null,null,null,null,""]
[false,292,null,null,null,null,null,""]
[false,293,null,null,null,null,null,""]
[false,294,null,null,null,null,null,""]
[false,295,null,null,null,null,null,""]
[false,296,null,null,null,null,null,""]
[false,297,null,null,null,null,null,""]
[false,298,null,null,null,null,null,""]
[false,299,null,null,null,null,null,""]
[false,300,null,null,null,null,null,""]

{"sheet":"3月","index":3,"n_rows":313,"n_cols":11,"rows_kept":313,"cut":false,"hidden":false,"merged":[[0,1,0,6],[1,10,2,10],[4,9,4,10],[14,9,14,10],[1,5,2,5],[1,1,2,1],[1,2,2,2],[1,3,2,3],[1,4,2,4],[1,6,2,6],[1,7,2,7]]}
[null,"３月の修理状況"]
[null,"整理番号","修理状況","修理状況","修理不能の理由","担当Dr.より","受付","返却"]
[]
[false,{"$f":"SUBSTITUTE(G3:G313,0,\"繰り越し\")","v":""}]
[false,"",null,null,null,null,null,{"$f":"IF(A5=TRUE,\"○\",\"\")","v":""},null,"今月の実績"]
[false,"",null,null,null,null,null,"",null,"前月繰り越し",{"$f":"COUNTIFS(G4:G313,\"<3\",D4:D313,\"修理中\")","v":0}]
[false,"",null,null,null,null,null,"",null,"受付件数",{"$f":"COUNTIF(G4:G311,3)","v":0}]
[false,"",null,null,null,null,null,"",null,"要修理数",{"$f":"K6+K7","v":0}]
[false,"",null,null,null,null,null,"",null,"修理完了件数",{"$f":"COUNTIF(D4:D296,\"修理完了\")+K10-K12","v":0}]
[false,{"$f":"SUBSTITUTE(G4:G319,0,\"繰り越し\")","v":""},null,null,null,null,null,"",null,"修理不能件数",{"$f":"COUNTIFS(D4:D313,\"修理完了\",G4:G313,3)","v":0}]
[false,{"$f":"SUBSTITUTE(G10:G320,0,\"繰り越し\")","v":""},null,null,null,null,null,"",null,"修理中件数",{"$f":"COUNTIF(D4:D295,\"修理中\")","v":0}]
[false,"",null,null,null,null,null,"",null,"返却待ち件数",{"$f":"COUNTIF(A4:A309,TRUE)","v":0}]
[false,{"$f":"SUBSTITUTE(G8:G318,0,\"繰り越し\")","v":""},null,null,null,null,null,""]
[false,1,null,null,null,null,null,{"$f":"IF(A14=TRUE,\"○\",\"\")","v":""}]
[false,2,null,null,null,null,null,{"$f":"IF(A15=TRUE,\"○\",\"\")","v":""},null,"修理不能の原因"]
[false,3,null,null,null,null,null,"",null,"特殊な充電池",{"$f":"COUNTIF(E4:E313,\"特殊な充電池で、手に入りません\")","v":0}]
[false,4,null,null,null,null,null,"",null,"ＩＣが故障",{"$f":"COUNTIF(E4:E313,\"ＩＣが故障していて、手に入りません\")","v":0}]
[false,5,null,null,null,null,null,"",null,"断線が多い",{"$f":"COUNTIF(E6:E297,\"断線が多い為、配線が分かりません\")","v":0}]
[false,6,null,null,null,null,null,"",null,"分解できない",{"$f":"COUNTIF(E4:E313,\"分解できない為、原因が分かりません\")","v":0}]
[false,7,null,null,null,null,null,"",null,"ギアの欠け",{"$f":"COUNTIF(E4:E313,\"ギアが欠けていて、手に入りません\")","v":0}]
[false,8,null,null,null,null,null,"",null,"その他",{"$f":"COUNTIF(E4:E313,\"その他\")","v":0}]
[false,9,null,null,null,null,null,""]
[false,10,null,null,null,null,null,""]
[false,11,null,null,null,null,null,""]
[false,12,null,null,null,null,null,""]
[false,13,null,null,null,null,null,""]
[false,14,null,null,null,null,null,""]
[false,15,null,null,null,null,null,""]
[false,16,null,null,null,null,null,""]
[false,17,null,null,null,null,null,""]
[false,18,null,null,null,null,null,""]
[false,19,null,null,null,null,null,""]
[false,20,null,null,null,null,null,""]
[false,21,null,null,null,null,null,""]
[false,22,null,null,null,null,null,""]
[false,23,null,null,null,null,null,""]
[false,24,null,null,null,null,null,""]
[false,25,null,null,null,null,null,""]
[false,26,null,null,null,null,null,""]
[false,27,null,null,null,null,null,""]
[false,28,null,null,null,null,null,""]
[false,29,null,null,null,null,null,""]
[false,30,null,null,null,null,null,""]
[false,31,null,null,null,null,null,""]
[false,32,null,null,null,null,null,""]
[false,33,null,null,null,null,null,""]
[false,34,null,null,null,null,null,""]
[false,35,null,null,null,null,null,""]
[false,36,null,null,null,null,null,""]
[false,37,null,null,null,null,null,""]
[false,38,null,null,null,null,null,""]
[false,39,null,null,null,null,null,""]
[false,40,null,null,null,null,null,""]
[false,41,null,null,null,null,null,""]
[false,42,null,null,null,null,null,""]
[false,43,null,null,null,null,null,""]
[false,44,null,null,null,null,null,""]
[false,45,null,null,null,null,null,""]
[false,46,null,null,null,null,null,""]
[false,47,null,null,null,null,null,""]
[false,48,null,null,null,null,null,""]
[false,49,null,null,null,null,null,""]
[false,50,null,null,null,null,null,""]
[false,51,null,null,null,null,null,""]
[false,52,null,null,null,null,null,""]
[false,53,null,null,null,null,null,""]
[false,54,null,null,null,null,null,""]
[false,55,null,null,null,null,null,""]
[false,56,null,null,null,null,null,""]
[false,57,null,null,null,null,null,""]
[false,58,null,null,null,null,null,""]
[false,59,null,null,null,null,null,""]
[false,60,null,null,null,null,null,""]
[false,61,null,null,null,null,null,""]
[false,62,null,null,null,null,null,""]
[false,63,null,null,null,null,null,""]
[false,64,null,null,null,null,null,""]
[false,65,null,null,null,null,null,""]
[false,66,null,null,null,null,null,{"$f":"IF(A79=TRUE,\"○\",\"\")","v":""}]
[false,67,null,null,null,null,null,""]
[false,68,null,null,null,null,null,""]
[false,69,null,null,null,null,null,""]
[false,70,null,null,null,null,null,""]
[false,71,null,null,null,null,null,""]
[false,72,null,null,null,null,null,""]
[false,73,null,null,null,null,null,""]
[false,74,null,null,null,null,null,""]
[false,75,null,null,null,null,null,""]
[false,76,null,null,null,null,null,""]
[false,77,null,null,null,null,null,""]
[false,78,null,null,null,null,null,""]
[false,79,null,null,null,null,null,""]
[false,80,null,null,null,null,null,""]
[false,81,null,null,null,null,null,""]
[false,82,null,null,null,null,null,""]
[false,83,null,null,null,null,null,""]
[false,84,null,null,null,null,null,""]
[false,85,null,null,null,null,null,""]
[false,86,null,null,null,null,null,""]
[false,87,null,null,null,null,null,""]
[false,88,null,null,null,null,null,""]
[false,89,null,null,null,null,null,""]
[false,90,null,null,null,null,null,""]
[false,91,null,null,null,null,null,""]
[false,92,null,null,null,null,null,""]
[false,93,null,null,null,null,null,""]
[false,94,null,null,null,null,null,""]
[false,95,null,null,null,null,null,""]
[false,96,null,null,null,null,null,""]
[false,97,null,null,null,null,null,""]
[false,98,null,null,null,null,null,""]
[false,99,null,null,null,null,null,""]
[false,100,null,null,null,null,null,""]
[false,101,null,null,null,null,null,""]
[false,102,null,null,null,null,null,""]
[false,103,null,null,null,null,null,""]
[false,104,null,null,null,null,null,""]
[false,105,null,null,null,null,null,""]
[false,106,null,null,null,null,null,""]
[false,107,null,null,null,null,null,""]
[false,108,null,null,null,null,null,""]
[false,109,null,null,null,null,null,""]
[false,110,null,null,null,null,null,""]
[false,111,null,null,null,null,null,""]
[false,112,null,null,null,null,null,""]
[false,113,null,null,null,null,null,""]
[false,114,null,null,null,null,null,""]
[false,115,null,null,null,null,null,""]
[false,116,null,null,null,null,null,""]
[false,117,null,null,null,null,null,""]
[false,118,null,null,null,null,null,""]
[false,119,null,null,null,null,null,""]
[false,120,null,null,null,null,null,""]
[false,121,null,null,null,null,null,""]
[false,122,null,null,null,null,null,""]
[false,123,null,null,null,null,null,""]
[false,124,null,null,null,null,null,""]
[false,125,null,null,null,null,null,""]
[false,126,null,null,null,null,null,""]
[false,127,null,null,null,null,null,""]
[false,128,null,null,null,null,null,""]
[false,129,null,null,null,null,null,""]
[false,130,null,null,null,null,null,{"$f":"IF(A143=TRUE,\"○\",\"\")","v":""}]
[false,131,null,null,null,null,null,""]
[false,132,null,null,null,null,null,""]
[false,133,null,null,null,null,null,""]
[false,134,null,null,null,null,null,""]
[false,135,null,null,null,null,null,""]
[false,136,null,null,null,null,null,""]
[false,137,null,null,null,null,null,""]
[false,138,null,null,null,null,null,""]
[false,139,null,null,null,null,null,""]
[false,140,null,null,null,null,null,""]
[false,141,null,null,null,null,null,""]
[false,142,null,null,null,null,null,""]
[false,143,null,null,null,null,null,""]
[false,144,null,null,null,null,null,""]
[false,145,null,null,null,null,null,""]
[false,146,null,null,null,null,null,""]
[false,147,null,null,null,null,null,""]
[false,148,null,null,null,null,null,""]
[false,149,null,null,null,null,null,""]
[false,150,null,null,null,null,null,""]
[false,151,null,null,null,null,null,""]
[false,152,null,null,null,null,null,""]
[false,153,null,null,null,null,null,""]
[false,154,null,null,null,null,null,""]
[false,155,null,null,null,null,null,""]
[false,156,null,null,null,null,null,""]
[false,157,null,null,null,null,null,""]
[false,158,null,null,null,null,null,""]
[false,159,null,null,null,null,null,""]
[false,160,null,null,null,null,null,""]
[false,161,null,null,null,null,null,""]
[false,162,null,null,null,null,null,""]
[false,163,null,null,null,null,null,""]
[false,164,null,null,null,null,null,""]
[false,165,null,null,null,null,null,""]
[false,166,null,null,null,null,null,""]
[false,167,null,null,null,null,null,""]
[false,168,null,null,null,null,null,""]
[false,169,null,null,null,null,null,""]
[false,170,null,null,null,null,null,""]
[false,171,null,null,null,null,null,""]
[false,172,null,null,null,null,null,""]
[false,173,null,null,null,null,null,""]
[false,174,null,null,null,null,null,""]
[false,175,null,null,null,null,null,""]
[false,176,null,null,null,null,null,""]
[false,177,null,null,null,null,null,""]
[false,178,null,null,null,null,null,""]
[false,179,null,null,null,null,null,""]
[false,180,null,null,null,null,null,""]
[false,181,null,null,null,null,null,""]
[false,182,null,null,null,null,null,""]
[false,183,null,null,null,null,null,""]
[false,184,null,null,null,null,null,""]
[false,185,null,null,null,null,null,""]
[false,186,null,null,null,null,null,""]
[false,187,null,null,null,null,null,""]
[false,188,null,null,null,null,null,""]
[false,189,null,null,null,null,null,""]
[false,190,null,null,null,null,null,""]
[false,191,null,null,null,null,null,""]
[false,192,null,null,null,null,null,""]
[false,193,null,null,null,null,null,""]
[false,194,null,null,null,null,null,{"$f":"IF(A207=TRUE,\"○\",\"\")","v":""}]
[false,195,null,null,null,null,null,""]
[false,196,null,null,null,null,null,""]
[false,197,null,null,null,null,null,""]
[false,198,null,null,null,null,null,""]
[false,199,null,null,null,null,null,""]
[false,200,null,null,null,null,null,""]
[false,201,null,null,null,null,null,""]
[false,202,null,null,null,null,null,""]
[false,203,null,null,null,null,null,""]
[false,204,null,null,null,null,null,""]
[false,205,null,null,null,null,null,""]
[false,206,null,null,null,null,null,""]
[false,207,null,null,null,null,null,""]
[false,208,null,null,null,null,null,""]
[false,209,null,null,null,null,null,""]
[false,210,null,null,null,null,null,""]
[false,211,null,null,null,null,null,""]
[false,212,null,null,null,null,null,""]
[false,213,null,null,null,null,null,""]
[false,214,null,null,null,null,null,""]
[false,215,null,null,null,null,null,""]
[false,216,null,null,null,null,null,""]
[false,217,null,null,null,null,null,""]
[false,218,null,null,null,null,null,""]
[false,219,null,null,null,null,null,""]
[false,220,null,null,null,null,null,""]
[false,221,null,null,null,null,null,""]
[false,222,null,null,null,null,null,""]
[false,223,null,null,null,null,null,""]
[false,224,null,null,null,null,null,""]
[false,225,null,null,null,null,null,""]
[false,226,null,null,null,null,null,""]
[false,227,null,null,null,null,null,""]
[false,228,null,null,null,null,null,""]
[false,229,null,null,null,null,null,""]
[false,230,null,null,null,null,null,""]
[false,231,null,null,null,null,null,""]
[false,232,null,null,null,null,null,""]
[false,233,null,null,null,null,null,""]
[false,234,null,null,null,null,null,""]
[false,235,null,null,null,null,null,""]
[false,236,null,null,null,null,null,""]
[false,237,null,null,null,null,null,""]
[false,238,null,null,null,null,null,""]
[false,239,null,null,null,null,null,""]
[false,240,null,null,null,null,null,""]
[false,241,null,null,null,null,null,""]
[false,242,null,null,null,null,null,""]
[false,243,null,null,null,null,null,""]
[false,244,null,null,null,null,null,""]
[false,245,null,null,null,null,null,""]
[false,246,null,null,null,null,null,""]
[false,247,null,null,null,null,null,""]
[false,248,null,null,null,null,null,""]
[false,249,null,null,null,null,null,""]
[false,250,null,null,null,null,null,""]
[false,251,null,null,null,null,null,""]
[false,252,null,null,null,null,null,""]
[false,253,null,null,null,null,null,""]
[false,254,null,null,null,null,null,""]
[false,255,null,null,null,null,null,""]
[false,256,null,null,null,null,null,""]
[false,257,null,null,null,null,null,""]
[false,258,null,null,null,null,null,{"$f":"IF(A271=TRUE,\"○\",\"\")","v":""}]
[false,259,null,null,null,null,null,""]
[false,260,null,null,null,null,null,""]
[false,261,null,null,null,null,null,""]
[false,262,null,null,null,null,null,""]
[false,263,null,null,null,null,null,""]
[false,264,null,null,null,null,null,""]
[false,265,null,null,null,null,null,""]
[false,266,null,null,null,null,null,""]
[false,267,null,null,null,null,null,""]
[false,268,null,null,null,null,null,""]
[false,269,null,null,null,null,null,""]
[false,270,null,null,null,null,null,""]
[false,271,null,null,null,null,null,""]
[false,272,null,null,null,null,null,""]
[false,273,null,null,null,null,null,""]
[false,274,null,null,null,null,null,""]
[false,275,null,null,null,null,null,""]
[false,276,null,null,null,null,null,""]
[false,277,null,null,null,null,null,""]
[false,278,null,null,null,null,null,""]
[false,279,null,null,null,null,null,""]
[false,280,null,null,null,null,null,""]
[false,281,null,null,null,null,null,""]
[false,282,null,null,null,null,null,""]
[false,283,null,null,null,null,null,""]
[false,284,null,null,null,null,null,""]
[false,285,null,null,null,null,null,""]
[false,286,null,null,null,null,null,""]
[false,287,null,null,null,null,null,""]
[false,288,null,null,null,null,null,""]
[false,289,null,null,null,null,null,""]
[false,290,null,null,null,null,null,""]
[false,291,null,null,null,null,null,""]
[false,292,null,null,null,null,null,""]
[false,293,null,null,null,null,null,""]
[false,294,null,null,null,null,null,""]
[false,295,null,null,null,null,null,""]
[false,296,null,null,null,null,null,""]
[false,297,null,null,null,null,null,""]
[false,298,null,null,null,null,null,""]
[false,299,null,null,null,null,null,""]
[false,300,null,null,null,null,null,""]

{"sheet":"4月","index":4,"n_rows":313,"n_cols":11,"rows_kept":313,"cut":false,"hidden":false,"merged":[[0,0,0,6],[1,10,2,10],[4,9,4,10],[14,9,14,10],[1,5,2,5],[1,1,2,1],[1,2,2,2],[1,3,2,3],[1,4,2,4],[1,6,2,6],[1,7,2,7]]}
["４月の修理状況"]
[null,"整理番号","修理状況","修理状況","修理不能の理由","担当Dr.より","受付","返却"]
[]
[false,{"$f":"SUBSTITUTE(G3:G313,0,\"繰り越し\")","v":""},null,null,null,null,null,{"$f":"IF(A4=TRUE,\"○\",\"\")","v":""}]
[false,"",null,null,null,null,null,"",null,"今月の実績"]
[false,"",null,null,null,null,null,"",null,"前年度繰り越し",{"$f":"COUNTIFS(G4:G313,\"<4\",D4:D313,\"修理中\")","v":0}]
[false,"",null,null,null,null,null,"",null,"受付件数",{"$f":"COUNTIF(G4:G311,4)","v":0}]
[false,"",null,null,null,null,null,"",null,"要修理数",{"$f":"K6+K7","v":0}]
[false,"",null,null,null,null,null,"",null,"修理完了件数",{"$f":"COUNTIFS(D4:D313,\"修理完了\",G4:G313,4)","v":0}]
[false,{"$f":"SUBSTITUTE(G4:G319,0,\"繰り越し\")","v":""},null,null,null,null,null,"",null,"修理不能件数",{"$f":"COUNTIFS(D4:D313,\"修理不能\",G4:G313,4)","v":0}]
[false,{"$f":"SUBSTITUTE(G10:G320,0,\"繰り越し\")","v":""},null,null,null,null,null,"",null,"修理中件数",{"$f":"COUNTIF(D4:D295,\"修理中\")","v":0}]
[false,"",null,null,null,null,null,"",null,"返却待ち件数",{"$f":"COUNTIF(A4:A309,TRUE)","v":0}]
[false,{"$f":"SUBSTITUTE(G8:G318,0,\"繰り越し\")","v":""},null,null,null,null,null,""]
[false,1,null,null,null,null,null,{"$f":"IF(A14=TRUE,\"○\",\"\")","v":""}]
[false,2,null,null,null,null,null,{"$f":"IF(A15=TRUE,\"○\",\"\")","v":""},null,"修理不能の原因"]
[false,3,null,null,null,null,null,"",null,"特殊な充電池",{"$f":"COUNTIF(E4:E313,\"特殊な充電池で、手に入りません\")","v":0}]
[false,4,null,null,null,null,null,"",null,"ＩＣが故障",{"$f":"COUNTIF(E4:E313,\"ＩＣが故障していて、手に入りません\")","v":0}]
[false,5,null,null,null,null,null,"",null,"断線が多い",{"$f":"COUNTIF(E6:E297,\"断線が多い為、配線が分かりません\")","v":0}]
[false,6,null,null,null,null,null,"",null,"分解できない",{"$f":"COUNTIF(E4:E313,\"分解できない為、原因が分かりません\")","v":0}]
[false,7,null,null,null,null,null,"",null,"ギアの欠け",{"$f":"COUNTIF(E4:E313,\"ギアが欠けていて、手に入りません\")","v":0}]
[false,8,null,null,null,null,null,"",null,"その他",{"$f":"COUNTIF(E4:E313,\"その他\")","v":0}]
[false,9,null,null,null,null,null,""]
[false,10,null,null,null,null,null,""]
[false,11,null,null,null,null,null,""]
[false,12,null,null,null,null,null,""]
[false,13,null,null,null,null,null,""]
[false,14,null,null,null,null,null,""]
[false,15,null,null,null,null,null,""]
[false,16,null,null,null,null,null,""]
[false,17,null,null,null,null,null,""]
[false,18,null,null,null,null,null,""]
[false,19,null,null,null,null,null,""]
[false,20,null,null,null,null,null,""]
[false,21,null,null,null,null,null,""]
[false,22,null,null,null,null,null,""]
[false,23,null,null,null,null,null,""]
[false,24,null,null,null,null,null,""]
[false,25,null,null,null,null,null,""]
[false,26,null,null,null,null,null,""]
[false,27,null,null,null,null,null,""]
[false,28,null,null,null,null,null,""]
[false,29,null,null,null,null,null,""]
[false,30,null,null,null,null,null,""]
[false,31,null,null,null,null,null,""]
[false,32,null,null,null,null,null,""]
[false,33,null,null,null,null,null,""]
[false,34,null,null,null,null,null,""]
[false,35,null,null,null,null,null,""]
[false,36,null,null,null,null,null,""]
[false,37,null,null,null,null,null,""]
[false,38,null,null,null,null,null,""]
[false,39,null,null,null,null,null,""]
[false,40,null,null,null,null,null,""]
[false,41,null,null,null,null,null,""]
[false,42,null,null,null,null,null,""]
[false,43,null,null,null,null,null,""]
[false,44,null,null,null,null,null,""]
[false,45,null,null,null,null,null,""]
[false,46,null,null,null,null,null,""]
[false,47,null,null,null,null,null,""]
[false,48,null,null,null,null,null,""]
[false,49,null,null,null,null,null,""]
[false,50,null,null,null,null,null,""]
[false,51,null,null,null,null,null,""]
[false,52,null,null,null,null,null,""]
[false,53,null,null,null,null,null,""]
[false,54,null,null,null,null,null,""]
[false,55,null,null,null,null,null,""]
[false,56,null,null,null,null,null,""]
[false,57,null,null,null,null,null,""]
[false,58,null,null,null,null,null,""]
[false,59,null,null,null,null,null,""]
[false,60,null,null,null,null,null,""]
[false,61,null,null,null,null,null,""]
[false,62,null,null,null,null,null,""]
[false,63,null,null,null,null,null,""]
[false,64,null,null,null,null,null,""]
[false,65,null,null,null,null,null,""]
[false,66,null,null,null,null,null,{"$f":"IF(A79=TRUE,\"○\",\"\")","v":""}]
[false,67,null,null,null,null,null,""]
[false,68,null,null,null,null,null,""]
[false,69,null,null,null,null,null,""]
[false,70,null,null,null,null,null,""]
[false,71,null,null,null,null,null,""]
[false,72,null,null,null,null,null,""]
[false,73,null,null,null,null,null,""]
[false,74,null,null,null,null,null,""]
[false,75,null,null,null,null,null,""]
[false,76,null,null,null,null,null,""]
[false,77,null,null,null,null,null,""]
[false,78,null,null,null,null,null,""]
[false,79,null,null,null,null,null,""]
[false,80,null,null,null,null,null,""]
[false,81,null,null,null,null,null,""]
[false,82,null,null,null,null,null,""]
[false,83,null,null,null,null,null,""]
[false,84,null,null,null,null,null,""]
[false,85,null,null,null,null,null,""]
[false,86,null,null,null,null,null,""]
[false,87,null,null,null,null,null,""]
[false,88,null,null,null,null,null,""]
[false,89,null,null,null,null,null,""]
[false,90,null,null,null,null,null,""]
[false,91,null,null,null,null,null,""]
[false,92,null,null,null,null,null,""]
[false,93,null,null,null,null,null,""]
[false,94,null,null,null,null,null,""]
[false,95,null,null,null,null,null,""]
[false,96,null,null,null,null,null,""]
[false,97,null,null,null,null,null,""]
[false,98,null,null,null,null,null,""]
[false,99,null,null,null,null,null,""]
[false,100,null,null,null,null,null,""]
[false,101,null,null,null,null,null,""]
[false,102,null,null,null,null,null,""]
[false,103,null,null,null,null,null,""]
[false,104,null,null,null,null,null,""]
[false,105,null,null,null,null,null,""]
[false,106,null,null,null,null,null,""]
[false,107,null,null,null,null,null,""]
[false,108,null,null,null,null,null,""]
[false,109,null,null,null,null,null,""]
[false,110,null,null,null,null,null,""]
[false,111,null,null,null,null,null,""]
[false,112,null,null,null,null,null,""]
[false,113,null,null,null,null,null,""]
[false,114,null,null,null,null,null,""]
[false,115,null,null,null,null,null,""]
[false,116,null,null,null,null,null,""]
[false,117,null,null,null,null,null,""]
[false,118,null,null,null,null,null,""]
[false,119,null,null,null,null,null,""]
[false,120,null,null,null,null,null,""]
[false,121,null,null,null,null,null,""]
[false,122,null,null,null,null,null,""]
[false,123,null,null,null,null,null,""]
[false,124,null,null,null,null,null,""]
[false,125,null,null,null,null,null,""]
[false,126,null,null,null,null,null,""]
[false,127,null,null,null,null,null,""]
[false,128,null,null,null,null,null,""]
[false,129,null,null,null,null,null,""]
[false,130,null,null,null,null,null,{"$f":"IF(A143=TRUE,\"○\",\"\")","v":""}]
[false,131,null,null,null,null,null,""]
[false,132,null,null,null,null,null,""]
[false,133,null,null,null,null,null,""]
[false,134,null,null,null,null,null,""]
[false,135,null,null,null,null,null,""]
[false,136,null,null,null,null,null,""]
[false,137,null,null,null,null,null,""]
[false,138,null,null,null,null,null,""]
[false,139,null,null,null,null,null,""]
[false,140,null,null,null,null,null,""]
[false,141,null,null,null,null,null,""]
[false,142,null,null,null,null,null,""]
[false,143,null,null,null,null,null,""]
[false,144,null,null,null,null,null,""]
[false,145,null,null,null,null,null,""]
[false,146,null,null,null,null,null,""]
[false,147,null,null,null,null,null,""]
[false,148,null,null,null,null,null,""]
[false,149,null,null,null,null,null,""]
[false,150,null,null,null,null,null,""]
[false,151,null,null,null,null,null,""]
[false,152,null,null,null,null,null,""]
[false,153,null,null,null,null,null,""]
[false,154,null,null,null,null,null,""]
[false,155,null,null,null,null,null,""]
[false,156,null,null,null,null,null,""]
[false,157,null,null,null,null,null,""]
[false,158,null,null,null,null,null,""]
[false,159,null,null,null,null,null,""]
[false,160,null,null,null,null,null,""]
[false,161,null,null,null,null,null,""]
[false,162,null,null,null,null,null,""]
[false,163,null,null,null,null,null,""]
[false,164,null,null,null,null,null,""]
[false,165,null,null,null,null,null,""]
[false,166,null,null,null,null,null,""]
[false,167,null,null,null,null,null,""]
[false,168,null,null,null,null,null,""]
[false,169,null,null,null,null,null,""]
[false,170,null,null,null,null,null,""]
[false,171,null,null,null,null,null,""]
[false,172,null,null,null,null,null,""]
[false,173,null,null,null,null,null,""]
[false,174,null,null,null,null,null,""]
[false,175,null,null,null,null,null,""]
[false,176,null,null,null,null,null,""]
[false,177,null,null,null,null,null,""]
[false,178,null,null,null,null,null,""]
[false,179,null,null,null,null,null,""]
[false,180,null,null,null,null,null,""]
[false,181,null,null,null,null,null,""]
[false,182,null,null,null,null,null,""]
[false,183,null,null,null,null,null,""]
[false,184,null,null,null,null,null,""]
[false,185,null,null,null,null,null,""]
[false,186,null,null,null,null,null,""]
[false,187,null,null,null,null,null,""]
[false,188,null,null,null,null,null,""]
[false,189,null,null,null,null,null,""]
[false,190,null,null,null,null,null,""]
[false,191,null,null,null,null,null,""]
[false,192,null,null,null,null,null,""]
[false,193,null,null,null,null,null,""]
[false,194,null,null,null,null,null,{"$f":"IF(A207=TRUE,\"○\",\"\")","v":""}]
[false,195,null,null,null,null,null,""]
[false,196,null,null,null,null,null,""]
[false,197,null,null,null,null,null,""]
[false,198,null,null,null,null,null,""]
[false,199,null,null,null,null,null,""]
[false,200,null,null,null,null,null,""]
[false,201,null,null,null,null,null,""]
[false,202,null,null,null,null,null,""]
[false,203,null,null,null,null,null,""]
[false,204,null,null,null,null,null,""]
[false,205,null,null,null,null,null,""]
[false,206,null,null,null,null,null,""]
[false,207,null,null,null,null,null,""]
[false,208,null,null,null,null,null,""]
[false,209,null,null,null,null,null,""]
[false,210,null,null,null,null,null,""]
[false,211,null,null,null,null,null,""]
[false,212,null,null,null,null,null,""]
[false,213,null,null,null,null,null,""]
[false,214,null,null,null,null,null,""]
[false,215,null,null,null,null,null,""]
[false,216,null,null,null,null,null,""]
[false,217,null,null,null,null,null,""]
[false,218,null,null,null,null,null,""]
[false,219,null,null,null,null,null,""]
[false,220,null,null,null,null,null,""]
[false,221,null,null,null,null,null,""]
[false,222,null,null,null,null,null,""]
[false,223,null,null,null,null,null,""]
[false,224,null,null,null,null,null,""]
[false,225,null,null,null,null,null,""]
[false,226,null,null,null,null,null,""]
[false,227,null,null,null,null,null,""]
[false,228,null,null,null,null,null,""]
[false,229,null,null,null,null,null,""]
[false,230,null,null,null,null,null,""]
[false,231,null,null,null,null,null,""]
[false,232,null,null,null,null,null,""]
[false,233,null,null,null,null,null,""]
[false,234,null,null,null,null,null,""]
[false,235,null,null,null,null,null,""]
[false,236,null,null,null,null,null,""]
[false,237,null,null,null,null,null,""]
[false,238,null,null,null,null,null,""]
[false,239,null,null,null,null,null,""]
[false,240,null,null,null,null,null,""]
[false,241,null,null,null,null,null,""]
[false,242,null,null,null,null,null,""]
[false,243,null,null,null,null,null,""]
[false,244,null,null,null,null,null,""]
[false,245,null,null,null,null,null,""]
[false,246,null,null,null,null,null,""]
[false,247,null,null,null,null,null,""]
[false,248,null,null,null,null,null,""]
[false,249,null,null,null,null,null,""]
[false,250,null,null,null,null,null,""]
[false,251,null,null,null,null,null,""]
[false,252,null,null,null,null,null,""]
[false,253,null,null,null,null,null,""]
[false,254,null,null,null,null,null,""]
[false,255,null,null,null,null,null,""]
[false,256,null,null,null,null,null,""]
[false,257,null,null,null,null,null,""]
[false,258,null,null,null,null,null,{"$f":"IF(A271=TRUE,\"○\",\"\")","v":""}]
[false,259,null,null,null,null,null,""]
[false,260,null,null,null,null,null,""]
[false,261,null,null,null,null,null,""]
[false,262,null,null,null,null,null,""]
[false,263,null,null,null,null,null,""]
[false,264,null,null,null,null,null,""]
[false,265,null,null,null,null,null,""]
[false,266,null,null,null,null,null,""]
[false,267,null,null,null,null,null,""]
[false,268,null,null,null,null,null,""]
[false,269,null,null,null,null,null,""]
[false,270,null,null,null,null,null,""]
[false,271,null,null,null,null,null,""]
[false,272,null,null,null,null,null,""]
[false,273,null,null,null,null,null,""]
[false,274,null,null,null,null,null,""]
[false,275,null,null,null,null,null,""]
[false,276,null,null,null,null,null,""]
[false,277,null,null,null,null,null,""]
[false,278,null,null,null,null,null,""]
[false,279,null,null,null,null,null,""]
[false,280,null,null,null,null,null,""]
[false,281,null,null,null,null,null,""]
[false,282,null,null,null,null,null,""]
[false,283,null,null,null,null,null,""]
[false,284,null,null,null,null,null,""]
[false,285,null,null,null,null,null,""]
[false,286,null,null,null,null,null,""]
[false,287,null,null,null,null,null,""]
[false,288,null,null,null,null,null,""]
[false,289,null,null,null,null,null,""]
[false,290,null,null,null,null,null,""]
[false,291,null,null,null,null,null,""]
[false,292,null,null,null,null,null,""]
[false,293,null,null,null,null,null,""]
[false,294,null,null,null,null,null,""]
[false,295,null,null,null,null,null,""]
[false,296,null,null,null,null,null,""]
[false,297,null,null,null,null,null,""]
[false,298,null,null,null,null,null,""]
[false,299,null,null,null,null,null,""]
[false,300,null,null,null,null,null,""]

{"sheet":"5月","index":5,"n_rows":313,"n_cols":11,"rows_kept":313,"cut":false,"hidden":false,"merged":[[0,1,0,6],[1,10,2,10],[4,9,4,10],[14,9,14,10],[1,5,2,5],[1,1,2,1],[1,3,2,3],[1,4,2,4],[1,2,2,2],[1,6,2,6],[1,7,2,7]]}
[null,"５月の修理状況"]
[null,"整理番号","修理状況","修理状況","修理不能の理由","担当Dr.より","受付","返却"]
[]
[false,{"$f":"SUBSTITUTE(G3:G313,0,\"繰り越し\")","v":""},null,null,null,null,null,{"$f":"IF(A4=TRUE,\"○\",\"\")","v":""}]
[false,"",null,null,null,null,null,{"$f":"IF(A5=TRUE,\"○\",\"\")","v":""},null,"今月の実績"]
[false,"",null,null,null,null,null,"",null,"前年度繰り越し",{"$f":"COUNTIFS(G4:G313,\"<5\",D4:D313,\"修理中\")","v":0}]
[false,"",null,null,null,null,null,"",null,"受付件数",{"$f":"COUNTIF(G4:G311,5)","v":0}]
[false,"",null,null,null,null,null,"",null,"要修理数",{"$f":"K6+K7","v":0}]
[false,"",null,null,null,null,null,"",null,"修理完了件数",{"$f":"COUNTIFS(D4:D313,\"修理完了\",G4:G313,5)","v":0}]
[false,{"$f":"SUBSTITUTE(G4:G319,0,\"繰り越し\")","v":""},null,null,null,null,null,"",null,"修理不能件数",{"$f":"COUNTIFS(D4:D313,\"修理不能\",G4:G313,5)","v":0}]
[false,{"$f":"SUBSTITUTE(G10:G320,0,\"繰り越し\")","v":""},null,null,null,null,null,"",null,"修理中件数",{"$f":"COUNTIF(D4:D295,\"修理中\")","v":0}]
[false,"",null,null,null,null,null,"",null,"返却待ち件数",{"$f":"COUNTIF(A4:A309,TRUE)","v":0}]
[false,{"$f":"SUBSTITUTE(G8:G318,0,\"繰り越し\")","v":""},null,null,null,null,null,""]
[false,1,null,null,null,null,null,{"$f":"IF(A14=TRUE,\"○\",\"\")","v":""}]
[false,2,null,null,null,null,null,{"$f":"IF(A15=TRUE,\"○\",\"\")","v":""},null,"修理不能の原因"]
[false,3,null,null,null,null,null,"",null,"特殊な充電池",{"$f":"COUNTIF(E4:E313,\"特殊な充電池で、手に入りません\")","v":0}]
[false,4,null,null,null,null,null,"",null,"ＩＣが故障",{"$f":"COUNTIF(E4:E313,\"ＩＣが故障していて、手に入りません\")","v":0}]
[false,5,null,null,null,null,null,"",null,"断線が多い",{"$f":"COUNTIF(E6:E297,\"断線が多い為、配線が分かりません\")","v":0}]
[false,6,null,null,null,null,null,"",null,"分解できない",{"$f":"COUNTIF(E4:E313,\"分解できない為、原因が分かりません\")","v":0}]
[false,7,null,null,null,null,null,"",null,"ギアの欠け",{"$f":"COUNTIF(E4:E313,\"ギアが欠けていて、手に入りません\")","v":0}]
[false,8,null,null,null,null,null,"",null,"その他",{"$f":"COUNTIF(E4:E313,\"その他\")","v":0}]
[false,9,null,null,null,null,null,""]
[false,10,null,null,null,null,null,""]
[false,11,null,null,null,null,null,""]
[false,12,null,null,null,null,null,""]
[false,13,null,null,null,null,null,""]
[false,14,null,null,null,null,null,""]
[false,15,null,null,null,null,null,""]
[false,16,null,null,null,null,null,""]
[false,17,null,null,null,null,null,""]
[false,18,null,null,null,null,null,""]
[false,19,null,null,null,null,null,""]
[false,20,null,null,null,null,null,""]
[false,21,null,null,null,null,null,""]
[false,22,null,null,null,null,null,""]
[false,23,null,null,null,null,null,""]
[false,24,null,null,null,null,null,""]
[false,25,null,null,null,null,null,""]
[false,26,null,null,null,null,null,""]
[false,27,null,null,null,null,null,""]
[false,28,null,null,null,null,null,""]
[false,29,null,null,null,null,null,""]
[false,30,null,null,null,null,null,""]
[false,31,null,null,null,null,null,""]
[false,32,null,null,null,null,null,""]
[false,33,null,null,null,null,null,""]
[false,34,null,null,null,null,null,""]
[false,35,null,null,null,null,null,""]
[false,36,null,null,null,null,null,""]
[false,37,null,null,null,null,null,""]
[false,38,null,null,null,null,null,""]
[false,39,null,null,null,null,null,""]
[false,40,null,null,null,null,null,""]
[false,41,null,null,null,null,null,""]
[false,42,null,null,null,null,null,""]
[false,43,null,null,null,null,null,""]
[false,44,null,null,null,null,null,""]
[false,45,null,null,null,null,null,""]
[false,46,null,null,null,null,null,""]
[false,47,null,null,null,null,null,""]
[false,48,null,null,null,null,null,""]
[false,49,null,null,null,null,null,""]
[false,50,null,null,null,null,null,""]
[false,51,null,null,null,null,null,""]
[false,52,null,null,null,null,null,""]
[false,53,null,null,null,null,null,""]
[false,54,null,null,null,null,null,""]
[false,55,null,null,null,null,null,""]
[false,56,null,null,null,null,null,""]
[false,57,null,null,null,null,null,""]
[false,58,null,null,null,null,null,""]
[false,59,null,null,null,null,null,""]
[false,60,null,null,null,null,null,""]
[false,61,null,null,null,null,null,""]
[false,62,null,null,null,null,null,""]
[false,63,null,null,null,null,null,""]
[false,64,null,null,null,null,null,""]
[false,65,null,null,null,null,null,""]
[false,66,null,null,null,null,null,{"$f":"IF(A79=TRUE,\"○\",\"\")","v":""}]
[false,67,null,null,null,null,null,""]
[false,68,null,null,null,null,null,""]
[false,69,null,null,null,null,null,""]
[false,70,null,null,null,null,null,""]
[false,71,null,null,null,null,null,""]
[false,72,null,null,null,null,null,""]
[false,73,null,null,null,null,null,""]
[false,74,null,null,null,null,null,""]
[false,75,null,null,null,null,null,""]
[false,76,null,null,null,null,null,""]
[false,77,null,null,null,null,null,""]
[false,78,null,null,null,null,null,""]
[false,79,null,null,null,null,null,""]
[false,80,null,null,null,null,null,""]
[false,81,null,null,null,null,null,""]
[false,82,null,null,null,null,null,""]
[false,83,null,null,null,null,null,""]
[false,84,null,null,null,null,null,""]
[false,85,null,null,null,null,null,""]
[false,86,null,null,null,null,null,""]
[false,87,null,null,null,null,null,""]
[false,88,null,null,null,null,null,""]
[false,89,null,null,null,null,null,""]
[false,90,null,null,null,null,null,""]
[false,91,null,null,null,null,null,""]
[false,92,null,null,null,null,null,""]
[false,93,null,null,null,null,null,""]
[false,94,null,null,null,null,null,""]
[false,95,null,null,null,null,null,""]
[false,96,null,null,null,null,null,""]
[false,97,null,null,null,null,null,""]
[false,98,null,null,null,null,null,""]
[false,99,null,null,null,null,null,""]
[false,100,null,null,null,null,null,""]
[false,101,null,null,null,null,null,""]
[false,102,null,null,null,null,null,""]
[false,103,null,null,null,null,null,""]
[false,104,null,null,null,null,null,""]
[false,105,null,null,null,null,null,""]
[false,106,null,null,null,null,null,""]
[false,107,null,null,null,null,null,""]
[false,108,null,null,null,null,null,""]
[false,109,null,null,null,null,null,""]
[false,110,null,null,null,null,null,""]
[false,111,null,null,null,null,null,""]
[false,112,null,null,null,null,null,""]
[false,113,null,null,null,null,null,""]
[false,114,null,null,null,null,null,""]
[false,115,null,null,null,null,null,""]
[false,116,null,null,null,null,null,""]
[false,117,null,null,null,null,null,""]
[false,118,null,null,null,null,null,""]
[false,119,null,null,null,null,null,""]
[false,120,null,null,null,null,null,""]
[false,121,null,null,null,null,null,""]
[false,122,null,null,null,null,null,""]
[false,123,null,null,null,null,null,""]
[false,124,null,null,null,null,null,""]
[false,125,null,null,null,null,null,""]
[false,126,null,null,null,null,null,""]
[false,127,null,null,null,null,null,""]
[false,128,null,null,null,null,null,""]
[false,129,null,null,null,null,null,""]
[false,130,null,null,null,null,null,{"$f":"IF(A143=TRUE,\"○\",\"\")","v":""}]
[false,131,null,null,null,null,null,""]
[false,132,null,null,null,null,null,""]
[false,133,null,null,null,null,null,""]
[false,134,null,null,null,null,null,""]
[false,135,null,null,null,null,null,""]
[false,136,null,null,null,null,null,""]
[false,137,null,null,null,null,null,""]
[false,138,null,null,null,null,null,""]
[false,139,null,null,null,null,null,""]
[false,140,null,null,null,null,null,""]
[false,141,null,null,null,null,null,""]
[false,142,null,null,null,null,null,""]
[false,143,null,null,null,null,null,""]
[false,144,null,null,null,null,null,""]
[false,145,null,null,null,null,null,""]
[false,146,null,null,null,null,null,""]
[false,147,null,null,null,null,null,""]
[false,148,null,null,null,null,null,""]
[false,149,null,null,null,null,null,""]
[false,150,null,null,null,null,null,""]
[false,151,null,null,null,null,null,""]
[false,152,null,null,null,null,null,""]
[false,153,null,null,null,null,null,""]
[false,154,null,null,null,null,null,""]
[false,155,null,null,null,null,null,""]
[false,156,null,null,null,null,null,""]
[false,157,null,null,null,null,null,""]
[false,158,null,null,null,null,null,""]
[false,159,null,null,null,null,null,""]
[false,160,null,null,null,null,null,""]
[false,161,null,null,null,null,null,""]
[false,162,null,null,null,null,null,""]
[false,163,null,null,null,null,null,""]
[false,164,null,null,null,null,null,""]
[false,165,null,null,null,null,null,""]
[false,166,null,null,null,null,null,""]
[false,167,null,null,null,null,null,""]
[false,168,null,null,null,null,null,""]
[false,169,null,null,null,null,null,""]
[false,170,null,null,null,null,null,""]
[false,171,null,null,null,null,null,""]
[false,172,null,null,null,null,null,""]
[false,173,null,null,null,null,null,""]
[false,174,null,null,null,null,null,""]
[false,175,null,null,null,null,null,""]
[false,176,null,null,null,null,null,""]
[false,177,null,null,null,null,null,""]
[false,178,null,null,null,null,null,""]
[false,179,null,null,null,null,null,""]
[false,180,null,null,null,null,null,""]
[false,181,null,null,null,null,null,""]
[false,182,null,null,null,null,null,""]
[false,183,null,null,null,null,null,""]
[false,184,null,null,null,null,null,""]
[false,185,null,null,null,null,null,""]
[false,186,null,null,null,null,null,""]
[false,187,null,null,null,null,null,""]
[false,188,null,null,null,null,null,""]
[false,189,null,null,null,null,null,""]
[false,190,null,null,null,null,null,""]
[false,191,null,null,null,null,null,""]
[false,192,null,null,null,null,null,""]
[false,193,null,null,null,null,null,""]
[false,194,null,null,null,null,null,{"$f":"IF(A207=TRUE,\"○\",\"\")","v":""}]
[false,195,null,null,null,null,null,""]
[false,196,null,null,null,null,null,""]
[false,197,null,null,null,null,null,""]
[false,198,null,null,null,null,null,""]
[false,199,null,null,null,null,null,""]
[false,200,null,null,null,null,null,""]
[false,201,null,null,null,null,null,""]
[false,202,null,null,null,null,null,""]
[false,203,null,null,null,null,null,""]
[false,204,null,null,null,null,null,""]
[false,205,null,null,null,null,null,""]
[false,206,null,null,null,null,null,""]
[false,207,null,null,null,null,null,""]
[false,208,null,null,null,null,null,""]
[false,209,null,null,null,null,null,""]
[false,210,null,null,null,null,null,""]
[false,211,null,null,null,null,null,""]
[false,212,null,null,null,null,null,""]
[false,213,null,null,null,null,null,""]
[false,214,null,null,null,null,null,""]
[false,215,null,null,null,null,null,""]
[false,216,null,null,null,null,null,""]
[false,217,null,null,null,null,null,""]
[false,218,null,null,null,null,null,""]
[false,219,null,null,null,null,null,""]
[false,220,null,null,null,null,null,""]
[false,221,null,null,null,null,null,""]
[false,222,null,null,null,null,null,""]
[false,223,null,null,null,null,null,""]
[false,224,null,null,null,null,null,""]
[false,225,null,null,null,null,null,""]
[false,226,null,null,null,null,null,""]
[false,227,null,null,null,null,null,""]
[false,228,null,null,null,null,null,""]
[false,229,null,null,null,null,null,""]
[false,230,null,null,null,null,null,""]
[false,231,null,null,null,null,null,""]
[false,232,null,null,null,null,null,""]
[false,233,null,null,null,null,null,""]
[false,234,null,null,null,null,null,""]
[false,235,null,null,null,null,null,""]
[false,236,null,null,null,null,null,""]
[false,237,null,null,null,null,null,""]
[false,238,null,null,null,null,null,""]
[false,239,null,null,null,null,null,""]
[false,240,null,null,null,null,null,""]
[false,241,null,null,null,null,null,{"$f":"IF(A254=TRUE,\"○\",\"\")","v":""}]
[false,242,null,null,null,null,null,{"$f":"IF(A255=TRUE,\"○\",\"\")","v":""}]
[false,243,null,null,null,null,null,""]
[false,244,null,null,null,null,null,""]
[false,245,null,null,null,null,null,""]
[false,246,null,null,null,null,null,""]
[false,247,null,null,null,null,null,""]
[false,248,null,null,null,null,null,""]
[false,249,null,null,null,null,null,""]
[false,250,null,null,null,null,null,""]
[false,251,null,null,null,null,null,""]
[false,252,null,null,null,null,null,""]
[false,253,null,null,null,null,null,""]
[false,254,null,null,null,null,null,""]
[false,255,null,null,null,null,null,""]
[false,256,null,null,null,null,null,""]
[false,257,null,null,null,null,null,""]
[false,258,null,null,null,null,null,""]
[false,259,null,null,null,null,null,""]
[false,260,null,null,null,null,null,""]
[false,261,null,null,null,null,null,""]
[false,262,null,null,null,null,null,""]
[false,263,null,null,null,null,null,""]
[false,264,null,null,null,null,null,""]
[false,265,null,null,null,null,null,""]
[false,266,null,null,null,null,null,""]
[false,267,null,null,null,null,null,""]
[false,268,null,null,null,null,null,""]
[false,269,null,null,null,null,null,""]
[false,270,null,null,null,null,null,""]
[false,271,null,null,null,null,null,""]
[false,272,null,null,null,null,null,""]
[false,273,null,null,null,null,null,""]
[false,274,null,null,null,null,null,""]
[false,275,null,null,null,null,null,""]
[false,276,null,null,null,null,null,""]
[false,277,null,null,null,null,null,""]
[false,278,null,null,null,null,null,""]
[false,279,null,null,null,null,null,""]
[false,280,null,null,null,null,null,""]
[false,281,null,null,null,null,null,""]
[false,282,null,null,null,null,null,""]
[false,283,null,null,null,null,null,""]
[false,284,null,null,null,null,null,""]
[false,285,null,null,null,null,null,""]
[false,286,null,null,null,null,null,""]
[false,287,null,null,null,null,null,""]
[false,288,null,null,null,null,null,""]
[false,289,null,null,null,null,null,""]
[false,290,null,null,null,null,null,""]
[false,291,null,null,null,null,null,""]
[false,292,null,null,null,null,null,""]
[false,293,null,null,null,null,null,""]
[false,294,null,null,null,null,null,""]
[false,295,null,null,null,null,null,""]
[false,296,null,null,null,null,null,""]
[false,297,null,null,null,null,null,""]
[false,298,null,null,null,null,null,""]
[false,299,null,null,null,null,null,""]
[false,300,null,null,null,null,null,""]

{"sheet":"6月","index":6,"n_rows":313,"n_cols":11,"rows_kept":313,"cut":false,"hidden":false,"merged":[[1,10,2,10],[4,9,4,10],[14,9,14,10],[0,1,0,6],[1,1,2,1],[1,2,2,2],[1,3,2,3],[1,4,2,4],[1,5,2,5],[1,7,2,7],[1,6,2,6]]}
[null,"６月の修理状況"]
[null,"整理番号","修理状況","修理状況","修理不能の理由","担当Dr.より","受付","返却"]
[]
[false,{"$f":"SUBSTITUTE(G3:G313,0,\"繰り越し\")","v":""},null,null,null,null,null,{"$f":"IF(A4=TRUE,\"○\",\"\")","v":""}]
[false,"",null,null,null,null,null,{"$f":"IF(A5=TRUE,\"○\",\"\")","v":""},null,"今月の実績"]
[false,"",null,null,null,null,null,"",null,"前年度繰り越し",{"$f":"COUNTIFS(G4:G313,\"<6\",D4:D313,\"修理中\")","v":0}]
[false,"",null,null,null,null,null,"",null,"受付件数",{"$f":"COUNTIF(G4:G311,6)","v":0}]
[false,"",null,null,null,null,null,"",null,"要修理数",{"$f":"K6+K7","v":0}]
[false,"",null,null,null,null,null,"",null,"修理完了件数",{"$f":"COUNTIFS(D4:D313,\"修理完了\",G4:G313,6)","v":0}]
[false,{"$f":"SUBSTITUTE(G4:G319,0,\"繰り越し\")","v":""},null,null,null,null,null,"",null,"修理不能件数",{"$f":"COUNTIFS(D4:D313,\"修理不能\",G4:G313,6)","v":0}]
[false,{"$f":"SUBSTITUTE(G10:G320,0,\"繰り越し\")","v":""},null,null,null,null,null,"",null,"修理中件数",{"$f":"COUNTIF(D4:D295,\"修理中\")","v":0}]
[false,"",null,null,null,null,null,"",null,"返却待ち件数",{"$f":"COUNTIF(A4:A309,TRUE)","v":0}]
[false,{"$f":"SUBSTITUTE(G8:G318,0,\"繰り越し\")","v":""},null,null,null,null,null,""]
[false,1,null,null,null,null,null,{"$f":"IF(A14=TRUE,\"○\",\"\")","v":""}]
[false,2,null,null,null,null,null,{"$f":"IF(A15=TRUE,\"○\",\"\")","v":""},null,"修理不能の原因"]
[false,3,null,null,null,null,null,"",null,"特殊な充電池",{"$f":"COUNTIF(E4:E313,\"特殊な充電池で、手に入りません\")","v":0}]
[false,4,null,null,null,null,null,"",null,"ＩＣが故障",{"$f":"COUNTIF(E4:E313,\"ＩＣが故障していて、手に入りません\")","v":0}]
[false,5,null,null,null,null,null,"",null,"断線が多い",{"$f":"COUNTIF(E6:E297,\"断線が多い為、配線が分かりません\")","v":0}]
[false,6,null,null,null,null,null,"",null,"分解できない",{"$f":"COUNTIF(E4:E313,\"分解できない為、原因が分かりません\")","v":0}]
[false,7,null,null,null,null,null,"",null,"ギアの欠け",{"$f":"COUNTIF(E4:E313,\"ギアが欠けていて、手に入りません\")","v":0}]
[false,8,null,null,null,null,null,"",null,"その他",{"$f":"COUNTIF(E4:E313,\"その他\")","v":0}]
[false,9,null,null,null,null,null,""]
[false,10,null,null,null,null,null,""]
[false,11,null,null,null,null,null,""]
[false,12,null,null,null,null,null,""]
[false,13,null,null,null,null,null,""]
[false,14,null,null,null,null,null,""]
[false,15,null,null,null,null,null,""]
[false,16,null,null,null,null,null,""]
[false,17,null,null,null,null,null,""]
[false,18,null,null,null,null,null,""]
[false,19,null,null,null,null,null,""]
[false,20,null,null,null,null,null,""]
[false,21,null,null,null,null,null,""]
[false,22,null,null,null,null,null,""]
[false,23,null,null,null,null,null,""]
[false,24,null,null,null,null,null,""]
[false,25,null,null,null,null,null,""]
[false,26,null,null,null,null,null,""]
[false,27,null,null,null,null,null,""]
[false,28,null,null,null,null,null,""]
[false,29,null,null,null,null,null,""]
[false,30,null,null,null,null,null,""]
[false,31,null,null,null,null,null,""]
[false,32,null,null,null,null,null,""]
[false,33,null,null,null,null,null,""]
[false,34,null,null,null,null,null,""]
[false,35,null,null,null,null,null,""]
[false,36,null,null,null,null,null,""]
[false,37,null,null,null,null,null,""]
[false,38,null,null,null,null,null,""]
[false,39,null,null,null,null,null,""]
[false,40,null,null,null,null,null,""]
[false,41,null,null,null,null,null,""]
[false,42,null,null,null,null,null,""]
[false,43,null,null,null,null,null,""]
[false,44,null,null,null,null,null,""]
[false,45,null,null,null,null,null,""]
[false,46,null,null,null,null,null,""]
[false,47,null,null,null,null,null,""]
[false,48,null,null,null,null,null,""]
[false,49,null,null,null,null,null,""]
[false,50,null,null,null,null,null,""]
[false,51,null,null,null,null,null,""]
[false,52,null,null,null,null,null,""]
[false,53,null,null,null,null,null,""]
[false,54,null,null,null,null,null,""]
[false,55,null,null,null,null,null,""]
[false,56,null,null,null,null,null,""]
[false,57,null,null,null,null,null,""]
[false,58,null,null,null,null,null,""]
[false,59,null,null,null,null,null,""]
[false,60,null,null,null,null,null,""]
[false,61,null,null,null,null,null,""]
[false,62,null,null,null,null,null,""]
[false,63,null,null,null,null,null,""]
[false,64,null,null,null,null,null,""]
[false,65,null,null,null,null,null,""]
[false,66,null,null,null,null,null,{"$f":"IF(A79=TRUE,\"○\",\"\")","v":""}]
[false,67,null,null,null,null,null,""]
[false,68,null,null,null,null,null,""]
[false,69,null,null,null,null,null,""]
[false,70,null,null,null,null,null,""]
[false,71,null,null,null,null,null,""]
[false,72,null,null,null,null,null,""]
[false,73,null,null,null,null,null,""]
[false,74,null,null,null,null,null,""]
[false,75,null,null,null,null,null,""]
[false,76,null,null,null,null,null,""]
[false,77,null,null,null,null,null,""]
[false,78,null,null,null,null,null,""]
[false,79,null,null,null,null,null,""]
[false,80,null,null,null,null,null,""]
[false,81,null,null,null,null,null,""]
[false,82,null,null,null,null,null,""]
[false,83,null,null,null,null,null,""]
[false,84,null,null,null,null,null,""]
[false,85,null,null,null,null,null,""]
[false,86,null,null,null,null,null,""]
[false,87,null,null,null,null,null,""]
[false,88,null,null,null,null,null,""]
[false,89,null,null,null,null,null,""]
[false,90,null,null,null,null,null,""]
[false,91,null,null,null,null,null,""]
[false,92,null,null,null,null,null,""]
[false,93,null,null,null,null,null,""]
[false,94,null,null,null,null,null,""]
[false,95,null,null,null,null,null,""]
[false,96,null,null,null,null,null,""]
[false,97,null,null,null,null,null,""]
[false,98,null,null,null,null,null,""]
[false,99,null,null,null,null,null,""]
[false,100,null,null,null,null,null,""]
[false,101,null,null,null,null,null,""]
[false,102,null,null,null,null,null,""]
[false,103,null,null,null,null,null,""]
[false,104,null,null,null,null,null,""]
[false,105,null,null,null,null,null,""]
[false,106,null,null,null,null,null,""]
[false,107,null,null,null,null,null,""]
[false,108,null,null,null,null,null,""]
[false,109,null,null,null,null,null,""]
[false,110,null,null,null,null,null,""]
[false,111,null,null,null,null,null,""]
[false,112,null,null,null,null,null,""]
[false,113,null,null,null,null,null,""]
[false,114,null,null,null,null,null,""]
[false,115,null,null,null,null,null,""]
[false,116,null,null,null,null,null,""]
[false,117,null,null,null,null,null,""]
[false,118,null,null,null,null,null,""]
[false,119,null,null,null,null,null,""]
[false,120,null,null,null,null,null,""]
[false,121,null,null,null,null,null,""]
[false,122,null,null,null,null,null,""]
[false,123,null,null,null,null,null,""]
[false,124,null,null,null,null,null,""]
[false,125,null,null,null,null,null,""]
[false,126,null,null,null,null,null,""]
[false,127,null,null,null,null,null,""]
[false,128,null,null,null,null,null,""]
[false,129,null,null,null,null,null,""]
[false,130,null,null,null,null,null,{"$f":"IF(A143=TRUE,\"○\",\"\")","v":""}]
[false,131,null,null,null,null,null,""]
[false,132,null,null,null,null,null,""]
[false,133,null,null,null,null,null,""]
[false,134,null,null,null,null,null,""]
[false,135,null,null,null,null,null,""]
[false,136,null,null,null,null,null,""]
[false,137,null,null,null,null,null,""]
[false,138,null,null,null,null,null,""]
[false,139,null,null,null,null,null,""]
[false,140,null,null,null,null,null,""]
[false,141,null,null,null,null,null,""]
[false,142,null,null,null,null,null,""]
[false,143,null,null,null,null,null,""]
[false,144,null,null,null,null,null,""]
[false,145,null,null,null,null,null,""]
[false,146,null,null,null,null,null,""]
[false,147,null,null,null,null,null,""]
[false,148,null,null,null,null,null,""]
[false,149,null,null,null,null,null,""]
[false,150,null,null,null,null,null,""]
[false,151,null,null,null,null,null,""]
[false,152,null,null,null,null,null,""]
[false,153,null,null,null,null,null,""]
[false,154,null,null,null,null,null,""]
[false,155,null,null,null,null,null,""]
[false,156,null,null,null,null,null,""]
[false,157,null,null,null,null,null,""]
[false,158,null,null,null,null,null,""]
[false,159,null,null,null,null,null,""]
[false,160,null,null,null,null,null,""]
[false,161,null,null,null,null,null,""]
[false,162,null,null,null,null,null,""]
[false,163,null,null,null,null,null,""]
[false,164,null,null,null,null,null,""]
[false,165,null,null,null,null,null,""]
[false,166,null,null,null,null,null,""]
[false,167,null,null,null,null,null,""]
[false,168,null,null,null,null,null,""]
[false,169,null,null,null,null,null,""]
[false,170,null,null,null,null,null,""]
[false,171,null,null,null,null,null,""]
[false,172,null,null,null,null,null,""]
[false,173,null,null,null,null,null,""]
[false,174,null,null,null,null,null,""]
[false,175,null,null,null,null,null,""]
[false,176,null,null,null,null,null,""]
[false,177,null,null,null,null,null,""]
[false,178,null,null,null,null,null,""]
[false,179,null,null,null,null,null,""]
[false,180,null,null,null,null,null,""]
[false,181,null,null,null,null,null,""]
[false,182,null,null,null,null,null,""]
[false,183,null,null,null,null,null,""]
[false,184,null,null,null,null,null,""]
[false,185,null,null,null,null,null,""]
[false,186,null,null,null,null,null,""]
[false,187,null,null,null,null,null,""]
[false,188,null,null,null,null,null,""]
[false,189,null,null,null,null,null,""]
[false,190,null,null,null,null,null,""]
[false,191,null,null,null,null,null,""]
[false,192,null,null,null,null,null,""]
[false,193,null,null,null,null,null,""]
[false,194,null,null,null,null,null,{"$f":"IF(A207=TRUE,\"○\",\"\")","v":""}]
[false,195,null,null,null,null,null,""]
[false,196,null,null,null,null,null,""]
[false,197,null,null,null,null,null,""]
[false,198,null,null,null,null,null,""]
[false,199,null,null,null,null,null,""]
[false,200,null,null,null,null,null,""]
[false,201,null,null,null,null,null,""]
[false,202,null,null,null,null,null,""]
[false,203,null,null,null,null,null,""]
[false,204,null,null,null,null,null,""]
[false,205,null,null,null,null,null,""]
[false,206,null,null,null,null,null,""]
[false,207,null,null,null,null,null,""]
[false,208,null,null,null,null,null,""]
[false,209,null,null,null,null,null,""]
[false,210,null,null,null,null,null,""]
[false,211,null,null,null,null,null,""]
[false,212,null,null,null,null,null,""]
[false,213,null,null,null,null,null,""]
[false,214,null,null,null,null,null,""]
[false,215,null,null,null,null,null,""]
[false,216,null,null,null,null,null,""]
[false,217,null,null,null,null,null,""]
[false,218,null,null,null,null,null,""]
[false,219,null,null,null,null,null,""]
[false,220,null,null,null,null,null,""]
[false,221,null,null,null,null,null,""]
[false,222,null,null,null,null,null,""]
[false,223,null,null,null,null,null,""]
[false,224,null,null,null,null,null,""]
[false,225,null,null,null,null,null,""]
[false,226,null,null,null,null,null,""]
[false,227,null,null,null,null,null,""]
[false,228,null,null,null,null,null,""]
[false,229,null,null,null,null,null,""]
[false,230,null,null,null,null,null,""]
[false,231,null,null,null,null,null,""]
[false,232,null,null,null,null,null,""]
[false,233,null,null,null,null,null,""]
[false,234,null,null,null,null,null,""]
[false,235,null,null,null,null,null,""]
[false,236,null,null,null,null,null,""]
[false,237,null,null,null,null,null,""]
[false,238,null,null,null,null,null,""]
[false,239,null,null,null,null,null,""]
[false,240,null,null,null,null,null,""]
[false,241,null,null,null,null,null,""]
[false,242,null,null,null,null,null,""]
[false,243,null,null,null,null,null,""]
[false,244,null,null,null,null,null,""]
[false,245,null,null,null,null,null,""]
[false,246,null,null,null,null,null,""]
[false,247,null,null,null,null,null,""]
[false,248,null,null,null,null,null,""]
[false,249,null,null,null,null,null,""]
[false,250,null,null,null,null,null,""]
[false,251,null,null,null,null,null,""]
[false,252,null,null,null,null,null,""]
[false,253,null,null,null,null,null,""]
[false,254,null,null,null,null,null,""]
[false,255,null,null,null,null,null,""]
[false,256,null,null,null,null,null,""]
[false,257,null,null,null,null,null,""]
[false,258,null,null,null,null,null,{"$f":"IF(A271=TRUE,\"○\",\"\")","v":""}]
[false,259,null,null,null,null,null,""]
[false,260,null,null,null,null,null,""]
[false,261,null,null,null,null,null,""]
[false,262,null,null,null,null,null,""]
[false,263,null,null,null,null,null,""]
[false,264,null,null,null,null,null,""]
[false,265,null,null,null,null,null,""]
[false,266,null,null,null,null,null,""]
[false,267,null,null,null,null,null,""]
[false,268,null,null,null,null,null,""]
[false,269,null,null,null,null,null,""]
[false,270,null,null,null,null,null,""]
[false,271,null,null,null,null,null,""]
[false,272,null,null,null,null,null,""]
[false,273,null,null,null,null,null,""]
[false,274,null,null,null,null,null,""]
[false,275,null,null,null,null,null,""]
[false,276,null,null,null,null,null,""]
[false,277,null,null,null,null,null,""]
[false,278,null,null,null,null,null,""]
[false,279,null,null,null,null,null,""]
[false,280,null,null,null,null,null,""]
[false,281,null,null,null,null,null,""]
[false,282,null,null,null,null,null,""]
[false,283,null,null,null,null,null,""]
[false,284,null,null,null,null,null,""]
[false,285,null,null,null,null,null,""]
[false,286,null,null,null,null,null,""]
[false,287,null,null,null,null,null,""]
[false,288,null,null,null,null,null,""]
[false,289,null,null,null,null,null,""]
[false,290,null,null,null,null,null,""]
[false,291,null,null,null,null,null,""]
[false,292,null,null,null,null,null,""]
[false,293,null,null,null,null,null,""]
[false,294,null,null,null,null,null,""]
[false,295,null,null,null,null,null,""]
[false,296,null,null,null,null,null,""]
[false,297,null,null,null,null,null,""]
[false,298,null,null,null,null,null,""]
[false,299,null,null,null,null,null,""]
[false,300,null,null,null,null,null,""]

{"sheet":"7月","index":7,"n_rows":313,"n_cols":11,"rows_kept":313,"cut":false,"hidden":false,"merged":[[0,0,0,6],[1,10,2,10],[4,9,4,10],[14,9,14,10],[1,5,2,5],[1,1,2,1],[1,2,2,2],[1,3,2,3],[1,4,2,4],[1,6,2,6],[1,7,2,7]]}
["７月の修理状況"]
[null,"整理番号","修理状況","修理状況","修理不能の理由","担当Dr.より","受付","返却"]
[]
[false,{"$f":"SUBSTITUTE(G3:G313,0,\"繰り越し\")","v":""},null,null,null,null,null,{"$f":"IF(A4=TRUE,\"○\",\"\")","v":""}]
[false,"",null,null,null,null,null,{"$f":"IF(A5=TRUE,\"○\",\"\")","v":""},null,"今月の実績"]
[false,"",null,null,null,null,null,"",null,"前年度繰り越し",{"$f":"COUNTIFS(G4:G313,\"<7\",D4:D313,\"修理中\")","v":0}]
[false,"",null,null,null,null,null,"",null,"受付件数",{"$f":"COUNTIF(G4:G311,7)","v":0}]
[false,"",null,null,null,null,null,"",null,"要修理数",{"$f":"K6+K7","v":0}]
[false,"",null,null,null,null,null,"",null,"修理完了件数",{"$f":"COUNTIFS(D4:D313,\"修理完了\",G4:G313,7)","v":0}]
[false,{"$f":"SUBSTITUTE(G4:G319,0,\"繰り越し\")","v":""},null,null,null,null,null,"",null,"修理不能件数",{"$f":"COUNTIF(D4:D295,\"修理不能\")","v":0}]
[false,{"$f":"SUBSTITUTE(G10:G320,0,\"繰り越し\")","v":""},null,null,null,null,null,"",null,"修理中件数",{"$f":"COUNTIFS(D4:D313,\"修理不能\",G4:G313,7)","v":0}]
[false,"",null,null,null,null,null,"",null,"返却待ち件数",{"$f":"COUNTIF(A4:A309,TRUE)","v":0}]
[false,{"$f":"SUBSTITUTE(G8:G318,0,\"繰り越し\")","v":""},null,null,null,null,null,""]
[false,1,null,null,null,null,null,{"$f":"IF(A14=TRUE,\"○\",\"\")","v":""}]
[false,2,null,null,null,null,null,{"$f":"IF(A15=TRUE,\"○\",\"\")","v":""},null,"修理不能の原因"]
[false,3,null,null,null,null,null,"",null,"特殊な充電池",{"$f":"COUNTIF(E4:E313,\"特殊な充電池で、手に入りません\")","v":0}]
[false,4,null,null,null,null,null,"",null,"ＩＣが故障",{"$f":"COUNTIF(E4:E313,\"ＩＣが故障していて、手に入りません\")","v":0}]
[false,5,null,null,null,null,null,"",null,"断線が多い",{"$f":"COUNTIF(E6:E297,\"断線が多い為、配線が分かりません\")","v":0}]
[false,6,null,null,null,null,null,"",null,"分解できない",{"$f":"COUNTIF(E4:E313,\"分解できない為、原因が分かりません\")","v":0}]
[false,7,null,null,null,null,null,"",null,"ギアの欠け",{"$f":"COUNTIF(E4:E313,\"ギアが欠けていて、手に入りません\")","v":0}]
[false,8,null,null,null,null,null,"",null,"その他",{"$f":"COUNTIF(E4:E313,\"その他\")","v":0}]
[false,9,null,null,null,null,null,""]
[false,10,null,null,null,null,null,""]
[false,11,null,null,null,null,null,""]
[false,12,null,null,null,null,null,""]
[false,13,null,null,null,null,null,""]
[false,14,null,null,null,null,null,""]
[false,15,null,null,null,null,null,""]
[false,16,null,null,null,null,null,""]
[false,17,null,null,null,null,null,""]
[false,18,null,null,null,null,null,""]
[false,19,null,null,null,null,null,""]
[false,20,null,null,null,null,null,""]
[false,21,null,null,null,null,null,""]
[false,22,null,null,null,null,null,""]
[false,23,null,null,null,null,null,""]
[false,24,null,null,null,null,null,""]
[false,25,null,null,null,null,null,""]
[false,26,null,null,null,null,null,""]
[false,27,null,null,null,null,null,""]
[false,28,null,null,null,null,null,""]
[false,29,null,null,null,null,null,""]
[false,30,null,null,null,null,null,""]
[false,31,null,null,null,null,null,""]
[false,32,null,null,null,null,null,""]
[false,33,null,null,null,null,null,""]
[false,34,null,null,null,null,null,""]
[false,35,null,null,null,null,null,""]
[false,36,null,null,null,null,null,""]
[false,37,null,null,null,null,null,""]
[false,38,null,null,null,null,null,""]
[false,39,null,null,null,null,null,""]
[false,40,null,null,null,null,null,""]
[false,41,null,null,null,null,null,""]
[false,42,null,null,null,null,null,""]
[false,43,null,null,null,null,null,""]
[false,44,null,null,null,null,null,""]
[false,45,null,null,null,null,null,""]
[false,46,null,null,null,null,null,""]
[false,47,null,null,null,null,null,""]
[false,48,null,null,null,null,null,""]
[false,49,null,null,null,null,null,""]
[false,50,null,null,null,null,null,""]
[false,51,null,null,null,null,null,""]
[false,52,null,null,null,null,null,""]
[false,53,null,null,null,null,null,""]
[false,54,null,null,null,null,null,""]
[false,55,null,null,null,null,null,""]
[false,56,null,null,null,null,null,""]
[false,57,null,null,null,null,null,""]
[false,58,null,null,null,null,null,""]
[false,59,null,null,null,null,null,""]
[false,60,null,null,null,null,null,""]
[false,61,null,null,null,null,null,""]
[false,62,null,null,null,null,null,""]
[false,63,null,null,null,null,null,""]
[false,64,null,null,null,null,null,""]
[false,65,null,null,null,null,null,""]
[false,66,null,null,null,null,null,{"$f":"IF(A79=TRUE,\"○\",\"\")","v":""}]
[false,67,null,null,null,null,null,""]
[false,68,null,null,null,null,null,""]
[false,69,null,null,null,null,null,""]
[false,70,null,null,null,null,null,""]
[false,71,null,null,null,null,null,""]
[false,72,null,null,null,null,null,""]
[false,73,null,null,null,null,null,""]
[false,74,null,null,null,null,null,""]
[false,75,null,null,null,null,null,""]
[false,76,null,null,null,null,null,""]
[false,77,null,null,null,null,null,""]
[false,78,null,null,null,null,null,""]
[false,79,null,null,null,null,null,""]
[false,80,null,null,null,null,null,""]
[false,81,null,null,null,null,null,""]
[false,82,null,null,null,null,null,""]
[false,83,null,null,null,null,null,""]
[false,84,null,null,null,null,null,""]
[false,85,null,null,null,null,null,""]
[false,86,null,null,null,null,null,""]
[false,87,null,null,null,null,null,""]
[false,88,null,null,null,null,null,""]
[false,89,null,null,null,null,null,""]
[false,90,null,null,null,null,null,""]
[false,91,null,null,null,null,null,""]
[false,92,null,null,null,null,null,""]
[false,93,null,null,null,null,null,""]
[false,94,null,null,null,null,null,""]
[false,95,null,null,null,null,null,""]
[false,96,null,null,null,null,null,""]
[false,97,null,null,null,null,null,""]
[false,98,null,null,null,null,null,""]
[false,99,null,null,null,null,null,""]
[false,100,null,null,null,null,null,""]
[false,101,null,null,null,null,null,""]
[false,102,null,null,null,null,null,""]
[false,103,null,null,null,null,null,""]
[false,104,null,null,null,null,null,""]
[false,105,null,null,null,null,null,""]
[false,106,null,null,null,null,null,""]
[false,107,null,null,null,null,null,""]
[false,108,null,null,null,null,null,""]
[false,109,null,null,null,null,null,""]
[false,110,null,null,null,null,null,""]
[false,111,null,null,null,null,null,""]
[false,112,null,null,null,null,null,""]
[false,113,null,null,null,null,null,""]
[false,114,null,null,null,null,null,""]
[false,115,null,null,null,null,null,""]
[false,116,null,null,null,null,null,""]
[false,117,null,null,null,null,null,""]
[false,118,null,null,null,null,null,""]
[false,119,null,null,null,null,null,""]
[false,120,null,null,null,null,null,""]
[false,121,null,null,null,null,null,""]
[false,122,null,null,null,null,null,""]
[false,123,null,null,null,null,null,""]
[false,124,null,null,null,null,null,""]
[false,125,null,null,null,null,null,""]
[false,126,null,null,null,null,null,""]
[false,127,null,null,null,null,null,""]
[false,128,null,null,null,null,null,""]
[false,129,null,null,null,null,null,""]
[false,130,null,null,null,null,null,{"$f":"IF(A143=TRUE,\"○\",\"\")","v":""}]
[false,131,null,null,null,null,null,""]
[false,132,null,null,null,null,null,""]
[false,133,null,null,null,null,null,""]
[false,134,null,null,null,null,null,""]
[false,135,null,null,null,null,null,""]
[false,136,null,null,null,null,null,""]
[false,137,null,null,null,null,null,""]
[false,138,null,null,null,null,null,""]
[false,139,null,null,null,null,null,""]
[false,140,null,null,null,null,null,""]
[false,141,null,null,null,null,null,""]
[false,142,null,null,null,null,null,""]
[false,143,null,null,null,null,null,""]
[false,144,null,null,null,null,null,""]
[false,145,null,null,null,null,null,""]
[false,146,null,null,null,null,null,""]
[false,147,null,null,null,null,null,""]
[false,148,null,null,null,null,null,""]
[false,149,null,null,null,null,null,""]
[false,150,null,null,null,null,null,""]
[false,151,null,null,null,null,null,""]
[false,152,null,null,null,null,null,""]
[false,153,null,null,null,null,null,""]
[false,154,null,null,null,null,null,""]
[false,155,null,null,null,null,null,""]
[false,156,null,null,null,null,null,""]
[false,157,null,null,null,null,null,""]
[false,158,null,null,null,null,null,""]
[false,159,null,null,null,null,null,""]
[false,160,null,null,null,null,null,""]
[false,161,null,null,null,null,null,""]
[false,162,null,null,null,null,null,""]
[false,163,null,null,null,null,null,""]
[false,164,null,null,null,null,null,""]
[false,165,null,null,null,null,null,""]
[false,166,null,null,null,null,null,""]
[false,167,null,null,null,null,null,""]
[false,168,null,null,null,null,null,""]
[false,169,null,null,null,null,null,""]
[false,170,null,null,null,null,null,""]
[false,171,null,null,null,null,null,""]
[false,172,null,null,null,null,null,""]
[false,173,null,null,null,null,null,""]
[false,174,null,null,null,null,null,""]
[false,175,null,null,null,null,null,""]
[false,176,null,null,null,null,null,""]
[false,177,null,null,null,null,null,""]
[false,178,null,null,null,null,null,""]
[false,179,null,null,null,null,null,""]
[false,180,null,null,null,null,null,""]
[false,181,null,null,null,null,null,""]
[false,182,null,null,null,null,null,""]
[false,183,null,null,null,null,null,""]
[false,184,null,null,null,null,null,""]
[false,185,null,null,null,null,null,""]
[false,186,null,null,null,null,null,""]
[false,187,null,null,null,null,null,""]
[false,188,null,null,null,null,null,""]
[false,189,null,null,null,null,null,""]
[false,190,null,null,null,null,null,""]
[false,191,null,null,null,null,null,""]
[false,192,null,null,null,null,null,""]
[false,193,null,null,null,null,null,""]
[false,194,null,null,null,null,null,{"$f":"IF(A207=TRUE,\"○\",\"\")","v":""}]
[false,195,null,null,null,null,null,""]
[false,196,null,null,null,null,null,""]
[false,197,null,null,null,null,null,""]
[false,198,null,null,null,null,null,""]
[false,199,null,null,null,null,null,""]
[false,200,null,null,null,null,null,""]
[false,201,null,null,null,null,null,""]
[false,202,null,null,null,null,null,""]
[false,203,null,null,null,null,null,""]
[false,204,null,null,null,null,null,""]
[false,205,null,null,null,null,null,""]
[false,206,null,null,null,null,null,""]
[false,207,null,null,null,null,null,""]
[false,208,null,null,null,null,null,""]
[false,209,null,null,null,null,null,""]
[false,210,null,null,null,null,null,""]
[false,211,null,null,null,null,null,""]
[false,212,null,null,null,null,null,""]
[false,213,null,null,null,null,null,""]
[false,214,null,null,null,null,null,""]
[false,215,null,null,null,null,null,""]
[false,216,null,null,null,null,null,""]
[false,217,null,null,null,null,null,""]
[false,218,null,null,null,null,null,""]
[false,219,null,null,null,null,null,""]
[false,220,null,null,null,null,null,""]
[false,221,null,null,null,null,null,""]
[false,222,null,null,null,null,null,""]
[false,223,null,null,null,null,null,""]
[false,224,null,null,null,null,null,""]
[false,225,null,null,null,null,null,""]
[false,226,null,null,null,null,null,""]
[false,227,null,null,null,null,null,""]
[false,228,null,null,null,null,null,""]
[false,229,null,null,null,null,null,""]
[false,230,null,null,null,null,null,""]
[false,231,null,null,null,null,null,""]
[false,232,null,null,null,null,null,""]
[false,233,null,null,null,null,null,""]
[false,234,null,null,null,null,null,""]
[false,235,null,null,null,null,null,""]
[false,236,null,null,null,null,null,""]
[false,237,null,null,null,null,null,""]
[false,238,null,null,null,null,null,""]
[false,239,null,null,null,null,null,""]
[false,240,null,null,null,null,null,""]
[false,241,null,null,null,null,null,""]
[false,242,null,null,null,null,null,""]
[false,243,null,null,null,null,null,""]
[false,244,null,null,null,null,null,""]
[false,245,null,null,null,null,null,""]
[false,246,null,null,null,null,null,""]
[false,247,null,null,null,null,null,""]
[false,248,null,null,null,null,null,""]
[false,249,null,null,null,null,null,""]
[false,250,null,null,null,null,null,""]
[false,251,null,null,null,null,null,""]
[false,252,null,null,null,null,null,""]
[false,253,null,null,null,null,null,""]
[false,254,null,null,null,null,null,""]
[false,255,null,null,null,null,null,""]
[false,256,null,null,null,null,null,""]
[false,257,null,null,null,null,null,""]
[false,258,null,null,null,null,null,{"$f":"IF(A271=TRUE,\"○\",\"\")","v":""}]
[false,259,null,null,null,null,null,""]
[false,260,null,null,null,null,null,""]
[false,261,null,null,null,null,null,""]
[false,262,null,null,null,null,null,""]
[false,263,null,null,null,null,null,""]
[false,264,null,null,null,null,null,""]
[false,265,null,null,null,null,null,""]
[false,266,null,null,null,null,null,""]
[false,267,null,null,null,null,null,""]
[false,268,null,null,null,null,null,""]
[false,269,null,null,null,null,null,""]
[false,270,null,null,null,null,null,""]
[false,271,null,null,null,null,null,""]
[false,272,null,null,null,null,null,""]
[false,273,null,null,null,null,null,""]
[false,274,null,null,null,null,null,""]
[false,275,null,null,null,null,null,""]
[false,276,null,null,null,null,null,""]
[false,277,null,null,null,null,null,""]
[false,278,null,null,null,null,null,""]
[false,279,null,null,null,null,null,""]
[false,280,null,null,null,null,null,""]
[false,281,null,null,null,null,null,""]
[false,282,null,null,null,null,null,""]
[false,283,null,null,null,null,null,""]
[false,284,null,null,null,null,null,""]
[false,285,null,null,null,null,null,""]
[false,286,null,null,null,null,null,""]
[false,287,null,null,null,null,null,""]
[false,288,null,null,null,null,null,""]
[false,289,null,null,null,null,null,""]
[false,290,null,null,null,null,null,""]
[false,291,null,null,null,null,null,""]
[false,292,null,null,null,null,null,""]
[false,293,null,null,null,null,null,""]
[false,294,null,null,null,null,null,""]
[false,295,null,null,null,null,null,""]
[false,296,null,null,null,null,null,""]
[false,297,null,null,null,null,null,""]
[false,298,null,null,null,null,null,""]
[false,299,null,null,null,null,null,""]
[false,300,null,null,null,null,null,""]

{"sheet":"8月","index":8,"n_rows":313,"n_cols":11,"rows_kept":313,"cut":false,"hidden":false,"merged":[[0,1,0,6],[1,10,2,10],[4,9,4,10],[14,9,14,10],[1,5,2,5],[1,1,2,1],[1,2,2,2],[1,3,2,3],[1,4,2,4],[1,6,2,6],[1,7,2,7]]}
[null,"８月の修理状況"]
[null,"整理番号","修理状況","修理状況","修理不能の理由","担当Dr.より","受付","返却"]
[]
[false,{"$f":"SUBSTITUTE(G3:G313,0,\"繰り越し\")","v":""},null,null,null,null,null,{"$f":"IF(A4=TRUE,\"○\",\"\")","v":""}]
[false,"",null,null,null,null,null,{"$f":"IF(A5=TRUE,\"○\",\"\")","v":""},null,"今月の実績"]
[false,"",null,null,null,null,null,"",null,"前年度繰り越し",{"$f":"COUNTIFS(G4:G313,\"<8\",D4:D313,\"修理中\")","v":0}]
[false,"",null,null,null,null,null,"",null,"受付件数",{"$f":"COUNTIF(G4:G311,8)","v":0}]
[false,"",null,null,null,null,null,"",null,"要修理数",{"$f":"K6+K7","v":0}]
[false,"",null,null,null,null,null,"",null,"修理完了件数",{"$f":"COUNTIFS(D4:D313,\"修理完了\",G4:G313,8)","v":0}]
[false,{"$f":"SUBSTITUTE(G4:G319,0,\"繰り越し\")","v":""},null,null,null,null,null,"",null,"修理不能件数",{"$f":"COUNTIFS(D4:D313,\"修理不能\",G4:G313,8)","v":0}]
[false,{"$f":"SUBSTITUTE(G10:G320,0,\"繰り越し\")","v":""},null,null,null,null,null,"",null,"修理中件数",{"$f":"COUNTIF(D4:D295,\"修理中\")","v":0}]
[false,"",null,null,null,null,null,"",null,"返却待ち件数",{"$f":"COUNTIF(A4:A309,TRUE)","v":0}]
[false,{"$f":"SUBSTITUTE(G8:G318,0,\"繰り越し\")","v":""},null,null,null,null,null,""]
[false,1,null,null,null,null,null,{"$f":"IF(A14=TRUE,\"○\",\"\")","v":""}]
[false,2,null,null,null,null,null,{"$f":"IF(A15=TRUE,\"○\",\"\")","v":""},null,"修理不能の原因"]
[false,3,null,null,null,null,null,"",null,"特殊な充電池",{"$f":"COUNTIF(E4:E313,\"特殊な充電池で、手に入りません\")","v":0}]
[false,4,null,null,null,null,null,"",null,"ＩＣが故障",{"$f":"COUNTIF(E4:E313,\"ＩＣが故障していて、手に入りません\")","v":0}]
[false,5,null,null,null,null,null,"",null,"断線が多い",{"$f":"COUNTIF(E6:E297,\"断線が多い為、配線が分かりません\")","v":0}]
[false,6,null,null,null,null,null,"",null,"分解できない",{"$f":"COUNTIF(E4:E313,\"分解できない為、原因が分かりません\")","v":0}]
[false,7,null,null,null,null,null,"",null,"ギアの欠け",{"$f":"COUNTIF(E4:E313,\"ギアが欠けていて、手に入りません\")","v":0}]
[false,8,null,null,null,null,null,"",null,"その他",{"$f":"COUNTIF(E4:E313,\"その他\")","v":0}]
[false,9,null,null,null,null,null,""]
[false,10,null,null,null,null,null,""]
[false,11,null,null,null,null,null,""]
[false,12,null,null,null,null,null,""]
[false,13,null,null,null,null,null,""]
[false,14,null,null,null,null,null,""]
[false,15,null,null,null,null,null,""]
[false,16,null,null,null,null,null,""]
[false,17,null,null,null,null,null,""]
[false,18,null,null,null,null,null,""]
[false,19,null,null,null,null,null,""]
[false,20,null,null,null,null,null,""]
[false,21,null,null,null,null,null,""]
[false,22,null,null,null,null,null,""]
[false,23,null,null,null,null,null,""]
[false,24,null,null,null,null,null,""]
[false,25,null,null,null,null,null,""]
[false,26,null,null,null,null,null,""]
[false,27,null,null,null,null,null,""]
[false,28,null,null,null,null,null,""]
[false,29,null,null,null,null,null,""]
[false,30,null,null,null,null,null,""]
[false,31,null,null,null,null,null,""]
[false,32,null,null,null,null,null,""]
[false,33,null,null,null,null,null,""]
[false,34,null,null,null,null,null,""]
[false,35,null,null,null,null,null,""]
[false,36,null,null,null,null,null,""]
[false,37,null,null,null,null,null,""]
[false,38,null,null,null,null,null,""]
[false,39,null,null,null,null,null,""]
[false,40,null,null,null,null,null,""]
[false,41,null,null,null,null,null,""]
[false,42,null,null,null,null,null,""]
[false,43,null,null,null,null,null,""]
[false,44,null,null,null,null,null,""]
[false,45,null,null,null,null,null,""]
[false,46,null,null,null,null,null,""]
[false,47,null,null,null,null,null,""]
[false,48,null,null,null,null,null,""]
[false,49,null,null,null,null,null,""]
[false,50,null,null,null,null,null,""]
[false,51,null,null,null,null,null,""]
[false,52,null,null,null,null,null,""]
[false,53,null,null,null,null,null,""]
[false,54,null,null,null,null,null,""]
[false,55,null,null,null,null,null,""]
[false,56,null,null,null,null,null,""]
[false,57,null,null,null,null,null,""]
[false,58,null,null,null,null,null,""]
[false,59,null,null,null,null,null,""]
[false,60,null,null,null,null,null,""]
[false,61,null,null,null,null,null,""]
[false,62,null,null,null,null,null,""]
[false,63,null,null,null,null,null,""]
[false,64,null,null,null,null,null,""]
[false,65,null,null,null,null,null,""]
[false,66,null,null,null,null,null,{"$f":"IF(A79=TRUE,\"○\",\"\")","v":""}]
[false,67,null,null,null,null,null,""]
[false,68,null,null,null,null,null,""]
[false,69,null,null,null,null,null,""]
[false,70,null,null,null,null,null,""]
[false,71,null,null,null,null,null,""]
[false,72,null,null,null,null,null,""]
[false,73,null,null,null,null,null,""]
[false,74,null,null,null,null,null,""]
[false,75,null,null,null,null,null,""]
[false,76,null,null,null,null,null,""]
[false,77,null,null,null,null,null,""]
[false,78,null,null,null,null,null,""]
[false,79,null,null,null,null,null,""]
[false,80,null,null,null,null,null,""]
[false,81,null,null,null,null,null,""]
[false,82,null,null,null,null,null,""]
[false,83,null,null,null,null,null,""]
[false,84,null,null,null,null,null,""]
[false,85,null,null,null,null,null,""]
[false,86,null,null,null,null,null,""]
[false,87,null,null,null,null,null,""]
[false,88,null,null,null,null,null,""]
[false,89,null,null,null,null,null,""]
[false,90,null,null,null,null,null,""]
[false,91,null,null,null,null,null,""]
[false,92,null,null,null,null,null,""]
[false,93,null,null,null,null,null,""]
[false,94,null,null,null,null,null,""]
[false,95,null,null,null,null,null,""]
[false,96,null,null,null,null,null,""]
[false,97,null,null,null,null,null,""]
[false,98,null,null,null,null,null,""]
[false,99,null,null,null,null,null,""]
[false,100,null,null,null,null,null,""]
[false,101,null,null,null,null,null,""]
[false,102,null,null,null,null,null,""]
[false,103,null,null,null,null,null,""]
[false,104,null,null,null,null,null,""]
[false,105,null,null,null,null,null,""]
[false,106,null,null,null,null,null,""]
[false,107,null,null,null,null,null,""]
[false,108,null,null,null,null,null,""]
[false,109,null,null,null,null,null,""]
[false,110,null,null,null,null,null,""]
[false,111,null,null,null,null,null,""]
[false,112,null,null,null,null,null,""]
[false,113,null,null,null,null,null,""]
[false,114,null,null,null,null,null,""]
[false,115,null,null,null,null,null,""]
[false,116,null,null,null,null,null,""]
[false,117,null,null,null,null,null,""]
[false,118,null,null,null,null,null,""]
[false,119,null,null,null,null,null,""]
[false,120,null,null,null,null,null,""]
[false,121,null,null,null,null,null,""]
[false,122,null,null,null,null,null,""]
[false,123,null,null,null,null,null,""]
[false,124,null,null,null,null,null,""]
[false,125,null,null,null,null,null,""]
[false,126,null,null,null,null,null,""]
[false,127,null,null,null,null,null,""]
[false,128,null,null,null,null,null,""]
[false,129,null,null,null,null,null,""]
[false,130,null,null,null,null,null,{"$f":"IF(A143=TRUE,\"○\",\"\")","v":""}]
[false,131,null,null,null,null,null,""]
[false,132,null,null,null,null,null,""]
[false,133,null,null,null,null,null,""]
[false,134,null,null,null,null,null,""]
[false,135,null,null,null,null,null,""]
[false,136,null,null,null,null,null,""]
[false,137,null,null,null,null,null,""]
[false,138,null,null,null,null,null,""]
[false,139,null,null,null,null,null,""]
[false,140,null,null,null,null,null,""]
[false,141,null,null,null,null,null,""]
[false,142,null,null,null,null,null,""]
[false,143,null,null,null,null,null,""]
[false,144,null,null,null,null,null,""]
[false,145,null,null,null,null,null,""]
[false,146,null,null,null,null,null,""]
[false,147,null,null,null,null,null,""]
[false,148,null,null,null,null,null,""]
[false,149,null,null,null,null,null,""]
[false,150,null,null,null,null,null,""]
[false,151,null,null,null,null,null,""]
[false,152,null,null,null,null,null,""]
[false,153,null,null,null,null,null,""]
[false,154,null,null,null,null,null,""]
[false,155,null,null,null,null,null,""]
[false,156,null,null,null,null,null,""]
[false,157,null,null,null,null,null,""]
[false,158,null,null,null,null,null,""]
[false,159,null,null,null,null,null,""]
[false,160,null,null,null,null,null,""]
[false,161,null,null,null,null,null,""]
[false,162,null,null,null,null,null,""]
[false,163,null,null,null,null,null,""]
[false,164,null,null,null,null,null,""]
[false,165,null,null,null,null,null,""]
[false,166,null,null,null,null,null,""]
[false,167,null,null,null,null,null,""]
[false,168,null,null,null,null,null,""]
[false,169,null,null,null,null,null,""]
[false,170,null,null,null,null,null,""]
[false,171,null,null,null,null,null,""]
[false,172,null,null,null,null,null,""]
[false,173,null,null,null,null,null,""]
[false,174,null,null,null,null,null,""]
[false,175,null,null,null,null,null,""]
[false,176,null,null,null,null,null,""]
[false,177,null,null,null,null,null,""]
[false,178,null,null,null,null,null,""]
[false,179,null,null,null,null,null,""]
[false,180,null,null,null,null,null,""]
[false,181,null,null,null,null,null,""]
[false,182,null,null,null,null,null,""]
[false,183,null,null,null,null,null,""]
[false,184,null,null,null,null,null,""]
[false,185,null,null,null,null,null,""]
[false,186,null,null,null,null,null,""]
[false,187,null,null,null,null,null,""]
[false,188,null,null,null,null,null,""]
[false,189,null,null,null,null,null,""]
[false,190,null,null,null,null,null,""]
[false,191,null,null,null,null,null,""]
[false,192,null,null,null,null,null,""]
[false,193,null,null,null,null,null,""]
[false,194,null,null,null,null,null,{"$f":"IF(A207=TRUE,\"○\",\"\")","v":""}]
[false,195,null,null,null,null,null,""]
[false,196,null,null,null,null,null,""]
[false,197,null,null,null,null,null,""]
[false,198,null,null,null,null,null,""]
[false,199,null,null,null,null,null,""]
[false,200,null,null,null,null,null,""]
[false,201,null,null,null,null,null,""]
[false,202,null,null,null,null,null,""]
[false,203,null,null,null,null,null,""]
[false,204,null,null,null,null,null,""]
[false,205,null,null,null,null,null,""]
[false,206,null,null,null,null,null,""]
[false,207,null,null,null,null,null,""]
[false,208,null,null,null,null,null,""]
[false,209,null,null,null,null,null,""]
[false,210,null,null,null,null,null,""]
[false,211,null,null,null,null,null,""]
[false,212,null,null,null,null,null,""]
[false,213,null,null,null,null,null,""]
[false,214,null,null,null,null,null,""]
[false,215,null,null,null,null,null,""]
[false,216,null,null,null,null,null,""]
[false,217,null,null,null,null,null,""]
[false,218,null,null,null,null,null,""]
[false,219,null,null,null,null,null,""]
[false,220,null,null,null,null,null,""]
[false,221,null,null,null,null,null,""]
[false,222,null,null,null,null,null,""]
[false,223,null,null,null,null,null,""]
[false,224,null,null,null,null,null,""]
[false,225,null,null,null,null,null,""]
[false,226,null,null,null,null,null,""]
[false,227,null,null,null,null,null,""]
[false,228,null,null,null,null,null,""]
[false,229,null,null,null,null,null,""]
[false,230,null,null,null,null,null,""]
[false,231,null,null,null,null,null,""]
[false,232,null,null,null,null,null,""]
[false,233,null,null,null,null,null,""]
[false,234,null,null,null,null,null,""]
[false,235,null,null,null,null,null,""]
[false,236,null,null,null,null,null,""]
[false,237,null,null,null,null,null,""]
[false,238,null,null,null,null,null,""]
[false,239,null,null,null,null,null,""]
[false,240,null,null,null,null,null,""]
[false,241,null,null,null,null,null,""]
[false,242,null,null,null,null,null,""]
[false,243,null,null,null,null,null,""]
[false,244,null,null,null,null,null,""]
[false,245,null,null,null,null,null,""]
[false,246,null,null,null,null,null,""]
[false,247,null,null,null,null,null,""]
[false,248,null,null,null,null,null,""]
[false,249,null,null,null,null,null,""]
[false,250,null,null,null,null,null,""]
[false,251,null,null,null,null,null,""]
[false,252,null,null,null,null,null,""]
[false,253,null,null,null,null,null,""]
[false,254,null,null,null,null,null,""]
[false,255,null,null,null,null,null,""]
[false,256,null,null,null,null,null,""]
[false,257,null,null,null,null,null,""]
[false,258,null,null,null,null,null,{"$f":"IF(A271=TRUE,\"○\",\"\")","v":""}]
[false,259,null,null,null,null,null,""]
[false,260,null,null,null,null,null,""]
[false,261,null,null,null,null,null,""]
[false,262,null,null,null,null,null,""]
[false,263,null,null,null,null,null,""]
[false,264,null,null,null,null,null,""]
[false,265,null,null,null,null,null,""]
[false,266,null,null,null,null,null,""]
[false,267,null,null,null,null,null,""]
[false,268,null,null,null,null,null,""]
[false,269,null,null,null,null,null,""]
[false,270,null,null,null,null,null,""]
[false,271,null,null,null,null,null,""]
[false,272,null,null,null,null,null,""]
[false,273,null,null,null,null,null,""]
[false,274,null,null,null,null,null,""]
[false,275,null,null,null,null,null,""]
[false,276,null,null,null,null,null,""]
[false,277,null,null,null,null,null,""]
[false,278,null,null,null,null,null,""]
[false,279,null,null,null,null,null,""]
[false,280,null,null,null,null,null,""]
[false,281,null,null,null,null,null,""]
[false,282,null,null,null,null,null,""]
[false,283,null,null,null,null,null,""]
[false,284,null,null,null,null,null,""]
[false,285,null,null,null,null,null,""]
[false,286,null,null,null,null,null,""]
[false,287,null,null,null,null,null,""]
[false,288,null,null,null,null,null,""]
[false,289,null,null,null,null,null,""]
[false,290,null,null,null,null,null,""]
[false,291,null,null,null,null,null,""]
[false,292,null,null,null,null,null,""]
[false,293,null,null,null,null,null,""]
[false,294,null,null,null,null,null,""]
[false,295,null,null,null,null,null,""]
[false,296,null,null,null,null,null,""]
[false,297,null,null,null,null,null,""]
[false,298,null,null,null,null,null,""]
[false,299,null,null,null,null,null,""]
[false,300,null,null,null,null,null,""]

{"sheet":"9月","index":9,"n_rows":313,"n_cols":11,"rows_kept":313,"cut":false,"hidden":false,"merged":[[0,1,0,6],[1,10,2,10],[4,9,4,10],[14,9,14,10],[1,5,2,5],[1,1,2,1],[1,2,2,2],[1,3,2,3],[1,4,2,4],[1,6,2,6],[1,7,2,7]]}
[null,"９月の修理状況"]
[null,"整理番号","修理状況","修理状況","修理不能の理由","担当Dr.より","受付","返却"]
[]
[false,{"$f":"SUBSTITUTE(G3:G313,0,\"繰り越し\")","v":""},null,null,null,null,null,{"$f":"IF(A4=TRUE,\"○\",\"\")","v":""}]
[false,"",null,null,null,null,null,{"$f":"IF(A5=TRUE,\"○\",\"\")","v":""},null,"今月の実績"]
[false,"",null,null,null,null,null,"",null,"前年度繰り越し",{"$f":"COUNTIFS(G4:G313,\"<9\",D4:D313,\"修理中\")","v":0}]
[false,"",null,null,null,null,null,"",null,"受付件数",{"$f":"COUNTIF(G4:G311,9)","v":0}]
[false,"",null,null,null,null,null,"",null,"要修理数",{"$f":"K6+K7","v":0}]
[false,"",null,null,null,null,null,"",null,"修理完了件数",{"$f":"COUNTIFS(D4:D313,\"修理完了\",G4:G313,9)","v":0}]
[false,{"$f":"SUBSTITUTE(G4:G319,0,\"繰り越し\")","v":""},null,null,null,null,null,"",null,"修理不能件数",{"$f":"COUNTIFS(D4:D313,\"修理不能\",G4:G313,9)","v":0}]
[false,{"$f":"SUBSTITUTE(G10:G320,0,\"繰り越し\")","v":""},null,null,null,null,null,"",null,"修理中件数",{"$f":"COUNTIF(D4:D295,\"修理中\")","v":0}]
[false,"",null,null,null,null,null,"",null,"返却待ち件数",{"$f":"COUNTIF(A4:A309,TRUE)","v":0}]
[false,{"$f":"SUBSTITUTE(G8:G318,0,\"繰り越し\")","v":""},null,null,null,null,null,""]
[false,1,null,null,null,null,null,{"$f":"IF(A14=TRUE,\"○\",\"\")","v":""}]
[false,2,null,null,null,null,null,{"$f":"IF(A15=TRUE,\"○\",\"\")","v":""},null,"修理不能の原因"]
[false,3,null,null,null,null,null,"",null,"特殊な充電池",{"$f":"COUNTIF(E4:E313,\"特殊な充電池で、手に入りません\")","v":0}]
[false,4,null,null,null,null,null,"",null,"ＩＣが故障",{"$f":"COUNTIF(E4:E313,\"ＩＣが故障していて、手に入りません\")","v":0}]
[false,5,null,null,null,null,null,"",null,"断線が多い",{"$f":"COUNTIF(E6:E297,\"断線が多い為、配線が分かりません\")","v":0}]
[false,6,null,null,null,null,null,"",null,"分解できない",{"$f":"COUNTIF(E4:E313,\"分解できない為、原因が分かりません\")","v":0}]
[false,7,null,null,null,null,null,"",null,"ギアの欠け",{"$f":"COUNTIF(E4:E313,\"ギアが欠けていて、手に入りません\")","v":0}]
[false,8,null,null,null,null,null,"",null,"その他",{"$f":"COUNTIF(E4:E313,\"その他\")","v":0}]
[false,9,null,null,null,null,null,""]
[false,10,null,null,null,null,null,""]
[false,11,null,null,null,null,null,""]
[false,12,null,null,null,null,null,""]
[false,13,null,null,null,null,null,""]
[false,14,null,null,null,null,null,""]
[false,15,null,null,null,null,null,""]
[false,16,null,null,null,null,null,""]
[false,17,null,null,null,null,null,""]
[false,18,null,null,null,null,null,""]
[false,19,null,null,null,null,null,""]
[false,20,null,null,null,null,null,""]
[false,21,null,null,null,null,null,""]
[false,22,null,null,null,null,null,""]
[false,23,null,null,null,null,null,""]
[false,24,null,null,null,null,null,""]
[false,25,null,null,null,null,null,""]
[false,26,null,null,null,null,null,""]
[false,27,null,null,null,null,null,""]
[false,28,null,null,null,null,null,""]
[false,29,null,null,null,null,null,""]
[false,30,null,null,null,null,null,""]
[false,31,null,null,null,null,null,""]
[false,32,null,null,null,null,null,""]
[false,33,null,null,null,null,null,""]
[false,34,null,null,null,null,null,""]
[false,35,null,null,null,null,null,""]
[false,36,null,null,null,null,null,""]
[false,37,null,null,null,null,null,""]
[false,38,null,null,null,null,null,""]
[false,39,null,null,null,null,null,""]
[false,40,null,null,null,null,null,""]
[false,41,null,null,null,null,null,""]
[false,42,null,null,null,null,null,""]
[false,43,null,null,null,null,null,""]
[false,44,null,null,null,null,null,""]
[false,45,null,null,null,null,null,""]
[false,46,null,null,null,null,null,""]
[false,47,null,null,null,null,null,""]
[false,48,null,null,null,null,null,""]
[false,49,null,null,null,null,null,""]
[false,50,null,null,null,null,null,""]
[false,51,null,null,null,null,null,""]
[false,52,null,null,null,null,null,""]
[false,53,null,null,null,null,null,""]
[false,54,null,null,null,null,null,""]
[false,55,null,null,null,null,null,""]
[false,56,null,null,null,null,null,""]
[false,57,null,null,null,null,null,""]
[false,58,null,null,null,null,null,""]
[false,59,null,null,null,null,null,""]
[false,60,null,null,null,null,null,""]
[false,61,null,null,null,null,null,""]
[false,62,null,null,null,null,null,""]
[false,63,null,null,null,null,null,""]
[false,64,null,null,null,null,null,""]
[false,65,null,null,null,null,null,""]
[false,66,null,null,null,null,null,{"$f":"IF(A79=TRUE,\"○\",\"\")","v":""}]
[false,67,null,null,null,null,null,""]
[false,68,null,null,null,null,null,""]
[false,69,null,null,null,null,null,""]
[false,70,null,null,null,null,null,""]
[false,71,null,null,null,null,null,""]
[false,72,null,null,null,null,null,""]
[false,73,null,null,null,null,null,""]
[false,74,null,null,null,null,null,""]
[false,75,null,null,null,null,null,""]
[false,76,null,null,null,null,null,""]
[false,77,null,null,null,null,null,""]
[false,78,null,null,null,null,null,""]
[false,79,null,null,null,null,null,""]
[false,80,null,null,null,null,null,""]
[false,81,null,null,null,null,null,""]
[false,82,null,null,null,null,null,""]
[false,83,null,null,null,null,null,""]
[false,84,null,null,null,null,null,""]
[false,85,null,null,null,null,null,""]
[false,86,null,null,null,null,null,""]
[false,87,null,null,null,null,null,""]
[false,88,null,null,null,null,null,""]
[false,89,null,null,null,null,null,""]
[false,90,null,null,null,null,null,""]
[false,91,null,null,null,null,null,""]
[false,92,null,null,null,null,null,""]
[false,93,null,null,null,null,null,""]
[false,94,null,null,null,null,null,""]
[false,95,null,null,null,null,null,""]
[false,96,null,null,null,null,null,""]
[false,97,null,null,null,null,null,""]
[false,98,null,null,null,null,null,""]
[false,99,null,null,null,null,null,""]
[false,100,null,null,null,null,null,""]
[false,101,null,null,null,null,null,""]
[false,102,null,null,null,null,null,""]
[false,103,null,null,null,null,null,""]
[false,104,null,null,null,null,null,""]
[false,105,null,null,null,null,null,""]
[false,106,null,null,null,null,null,""]
[false,107,null,null,null,null,null,""]
[false,108,null,null,null,null,null,""]
[false,109,null,null,null,null,null,""]
[false,110,null,null,null,null,null,""]
[false,111,null,null,null,null,null,""]
[false,112,null,null,null,null,null,""]
[false,113,null,null,null,null,null,""]
[false,114,null,null,null,null,null,""]
[false,115,null,null,null,null,null,""]
[false,116,null,null,null,null,null,""]
[false,117,null,null,null,null,null,""]
[false,118,null,null,null,null,null,""]
[false,119,null,null,null,null,null,""]
[false,120,null,null,null,null,null,""]
[false,121,null,null,null,null,null,""]
[false,122,null,null,null,null,null,""]
[false,123,null,null,null,null,null,""]
[false,124,null,null,null,null,null,""]
[false,125,null,null,null,null,null,""]
[false,126,null,null,null,null,null,""]
[false,127,null,null,null,null,null,""]
[false,128,null,null,null,null,null,""]
[false,129,null,null,null,null,null,""]
[false,130,null,null,null,null,null,{"$f":"IF(A143=TRUE,\"○\",\"\")","v":""}]
[false,131,null,null,null,null,null,""]
[false,132,null,null,null,null,null,""]
[false,133,null,null,null,null,null,""]
[false,134,null,null,null,null,null,""]
[false,135,null,null,null,null,null,""]
[false,136,null,null,null,null,null,""]
[false,137,null,null,null,null,null,""]
[false,138,null,null,null,null,null,""]
[false,139,null,null,null,null,null,""]
[false,140,null,null,null,null,null,""]
[false,141,null,null,null,null,null,""]
[false,142,null,null,null,null,null,""]
[false,143,null,null,null,null,null,""]
[false,144,null,null,null,null,null,""]
[false,145,null,null,null,null,null,""]
[false,146,null,null,null,null,null,""]
[false,147,null,null,null,null,null,""]
[false,148,null,null,null,null,null,""]
[false,149,null,null,null,null,null,""]
[false,150,null,null,null,null,null,""]
[false,151,null,null,null,null,null,""]
[false,152,null,null,null,null,null,""]
[false,153,null,null,null,null,null,""]
[false,154,null,null,null,null,null,""]
[false,155,null,null,null,null,null,""]
[false,156,null,null,null,null,null,""]
[false,157,null,null,null,null,null,""]
[false,158,null,null,null,null,null,""]
[false,159,null,null,null,null,null,""]
[false,160,null,null,null,null,null,""]
[false,161,null,null,null,null,null,""]
[false,162,null,null,null,null,null,""]
[false,163,null,null,null,null,null,""]
[false,164,null,null,null,null,null,""]
[false,165,null,null,null,null,null,""]
[false,166,null,null,null,null,null,""]
[false,167,null,null,null,null,null,""]
[false,168,null,null,null,null,null,""]
[false,169,null,null,null,null,null,""]
[false,170,null,null,null,null,null,""]
[false,171,null,null,null,null,null,""]
[false,172,null,null,null,null,null,""]
[false,173,null,null,null,null,null,""]
[false,174,null,null,null,null,null,""]
[false,175,null,null,null,null,null,""]
[false,176,null,null,null,null,null,""]
[false,177,null,null,null,null,null,""]
[false,178,null,null,null,null,null,""]
[false,179,null,null,null,null,null,""]
[false,180,null,null,null,null,null,""]
[false,181,null,null,null,null,null,""]
[false,182,null,null,null,null,null,""]
[false,183,null,null,null,null,null,""]
[false,184,null,null,null,null,null,""]
[false,185,null,null,null,null,null,""]
[false,186,null,null,null,null,null,""]
[false,187,null,null,null,null,null,""]
[false,188,null,null,null,null,null,""]
[false,189,null,null,null,null,null,""]
[false,190,null,null,null,null,null,""]
[false,191,null,null,null,null,null,""]
[false,192,null,null,null,null,null,""]
[false,193,null,null,null,null,null,""]
[false,194,null,null,null,null,null,{"$f":"IF(A207=TRUE,\"○\",\"\")","v":""}]
[false,195,null,null,null,null,null,""]
[false,196,null,null,null,null,null,""]
[false,197,null,null,null,null,null,""]
[false,198,null,null,null,null,null,""]
[false,199,null,null,null,null,null,""]
[false,200,null,null,null,null,null,""]
[false,201,null,null,null,null,null,""]
[false,202,null,null,null,null,null,""]
[false,203,null,null,null,null,null,""]
[false,204,null,null,null,null,null,""]
[false,205,null,null,null,null,null,""]
[false,206,null,null,null,null,null,""]
[false,207,null,null,null,null,null,""]
[false,208,null,null,null,null,null,""]
[false,209,null,null,null,null,null,""]
[false,210,null,null,null,null,null,""]
[false,211,null,null,null,null,null,""]
[false,212,null,null,null,null,null,""]
[false,213,null,null,null,null,null,""]
[false,214,null,null,null,null,null,""]
[false,215,null,null,null,null,null,""]
[false,216,null,null,null,null,null,""]
[false,217,null,null,null,null,null,""]
[false,218,null,null,null,null,null,""]
[false,219,null,null,null,null,null,""]
[false,220,null,null,null,null,null,""]
[false,221,null,null,null,null,null,""]
[false,222,null,null,null,null,null,""]
[false,223,null,null,null,null,null,""]
[false,224,null,null,null,null,null,""]
[false,225,null,null,null,null,null,""]
[false,226,null,null,null,null,null,""]
[false,227,null,null,null,null,null,""]
[false,228,null,null,null,null,null,""]
[false,229,null,null,null,null,null,""]
[false,230,null,null,null,null,null,""]
[false,231,null,null,null,null,null,""]
[false,232,null,null,null,null,null,""]
[false,233,null,null,null,null,null,""]
[false,234,null,null,null,null,null,""]
[false,235,null,null,null,null,null,""]
[false,236,null,null,null,null,null,""]
[false,237,null,null,null,null,null,""]
[false,238,null,null,null,null,null,""]
[false,239,null,null,null,null,null,""]
[false,240,null,null,null,null,null,""]
[false,241,null,null,null,null,null,""]
[false,242,null,null,null,null,null,""]
[false,243,null,null,null,null,null,""]
[false,244,null,null,null,null,null,""]
[false,245,null,null,null,null,null,""]
[false,246,null,null,null,null,null,""]
[false,247,null,null,null,null,null,""]
[false,248,null,null,null,null,null,""]
[false,249,null,null,null,null,null,""]
[false,250,null,null,null,null,null,""]
[false,251,null,null,null,null,null,""]
[false,252,null,null,null,null,null,""]
[false,253,null,null,null,null,null,""]
[false,254,null,null,null,null,null,""]
[false,255,null,null,null,null,null,""]
[false,256,null,null,null,null,null,""]
[false,257,null,null,null,null,null,""]
[false,258,null,null,null,null,null,{"$f":"IF(A271=TRUE,\"○\",\"\")","v":""}]
[false,259,null,null,null,null,null,""]
[false,260,null,null,null,null,null,""]
[false,261,null,null,null,null,null,""]
[false,262,null,null,null,null,null,""]
[false,263,null,null,null,null,null,""]
[false,264,null,null,null,null,null,""]
[false,265,null,null,null,null,null,""]
[false,266,null,null,null,null,null,""]
[false,267,null,null,null,null,null,""]
[false,268,null,null,null,null,null,""]
[false,269,null,null,null,null,null,""]
[false,270,null,null,null,null,null,""]
[false,271,null,null,null,null,null,""]
[false,272,null,null,null,null,null,""]
[false,273,null,null,null,null,null,""]
[false,274,null,null,null,null,null,""]
[false,275,null,null,null,null,null,""]
[false,276,null,null,null,null,null,""]
[false,277,null,null,null,null,null,""]
[false,278,null,null,null,null,null,""]
[false,279,null,null,null,null,null,""]
[false,280,null,null,null,null,null,""]
[false,281,null,null,null,null,null,""]
[false,282,null,null,null,null,null,""]
[false,283,null,null,null,null,null,""]
[false,284,null,null,null,null,null,""]
[false,285,null,null,null,null,null,""]
[false,286,null,null,null,null,null,""]
[false,287,null,null,null,null,null,""]
[false,288,null,null,null,null,null,""]
[false,289,null,null,null,null,null,""]
[false,290,null,null,null,null,null,""]
[false,291,null,null,null,null,null,""]
[false,292,null,null,null,null,null,""]
[false,293,null,null,null,null,null,""]
[false,294,null,null,null,null,null,""]
[false,295,null,null,null,null,null,""]
[false,296,null,null,null,null,null,""]
[false,297,null,null,null,null,null,""]
[false,298,null,null,null,null,null,""]
[false,299,null,null,null,null,null,""]
[false,300,null,null,null,null,null,""]

{"sheet":"10月","index":10,"n_rows":313,"n_cols":11,"rows_kept":313,"cut":false,"hidden":false,"merged":[[1,7,2,7],[1,6,2,6],[0,1,0,6],[1,5,2,5],[1,1,2,1],[1,2,2,2],[1,3,2,3],[1,4,2,4]]}
[null,"10月の修理状況"]
[null,"整理番号","修理状況","修理状況","修理不能の理由","担当Dr.より","受付","返却"]
[]
[false,{"$f":"SUBSTITUTE(G3:G313,0,\"繰り越し\")","v":""},null,null,null,null,null,{"$f":"IF(A4=TRUE,\"○\",\"\")","v":""}]
[false,"",null,null,null,null,null,{"$f":"IF(A5=TRUE,\"○\",\"\")","v":""},null,"今月の実績"]
[false,"",null,null,null,null,null,"",null,"前年度繰り越し",{"$f":"COUNTIFS(G4:G313,\"<10\",D4:D313,\"修理中\")","v":0}]
[false,"",null,null,null,null,null,"",null,"受付件数",{"$f":"COUNTIF(G4:G311,10)","v":0}]
[false,"",null,null,null,null,null,"",null,"要修理数",{"$f":"K6+K7","v":0}]
[false,"",null,null,null,null,null,"",null,"修理完了件数",{"$f":"COUNTIFS(D4:D313,\"修理完了\",G4:G313,10)","v":0}]
[false,{"$f":"SUBSTITUTE(G4:G319,0,\"繰り越し\")","v":""},null,null,null,null,null,"",null,"修理不能件数",{"$f":"COUNTIFS(D4:D313,\"修理不能\",G4:G313,10)","v":0}]
[false,{"$f":"SUBSTITUTE(G10:G320,0,\"繰り越し\")","v":""},null,null,null,null,null,"",null,"修理中件数",{"$f":"COUNTIF(D4:D295,\"修理中\")","v":0}]
[false,"",null,null,null,null,null,"",null,"返却待ち件数",{"$f":"COUNTIF(A4:A309,TRUE)","v":0}]
[false,{"$f":"SUBSTITUTE(G8:G318,0,\"繰り越し\")","v":""},null,null,null,null,null,""]
[false,1,null,null,null,null,null,{"$f":"IF(A14=TRUE,\"○\",\"\")","v":""}]
[false,2,null,null,null,null,null,"",null,"修理不能の原因"]
[false,3,null,null,null,null,null,"",null,"特殊な充電池",{"$f":"COUNTIF(E4:E313,\"特殊な充電池で、手に入りません\")","v":0}]
[false,4,null,null,null,null,null,"",null,"ＩＣが故障",{"$f":"COUNTIF(E4:E313,\"ＩＣが故障していて、手に入りません\")","v":0}]
[false,5,null,null,null,null,null,"",null,"断線が多い",{"$f":"COUNTIF(E6:E297,\"断線が多い為、配線が分かりません\")","v":0}]
[false,6,null,null,null,null,null,"",null,"分解できない",{"$f":"COUNTIF(E4:E313,\"分解できない為、原因が分かりません\")","v":0}]
[false,7,null,null,null,null,null,"",null,"ギアの欠け",{"$f":"COUNTIF(E4:E313,\"ギアが欠けていて、手に入りません\")","v":0}]
[false,8,null,null,null,null,null,"",null,"その他",{"$f":"COUNTIF(E4:E313,\"その他\")","v":0}]
[false,9,null,null,null,null,null,""]
[false,10,null,null,null,null,null,""]
[false,11,null,null,null,null,null,""]
[false,12,null,null,null,null,null,""]
[false,13,null,null,null,null,null,""]
[false,14,null,null,null,null,null,""]
[false,15,null,null,null,null,null,""]
[false,16,null,null,null,null,null,""]
[false,17,null,null,null,null,null,""]
[false,18,null,null,null,null,null,""]
[false,19,null,null,null,null,null,""]
[false,20,null,null,null,null,null,""]
[false,21,null,null,null,null,null,""]
[false,22,null,null,null,null,null,""]
[false,23,null,null,null,null,null,""]
[false,24,null,null,null,null,null,""]
[false,25,null,null,null,null,null,""]
[false,26,null,null,null,null,null,""]
[false,27,null,null,null,null,null,""]
[false,28,null,null,null,null,null,""]
[false,29,null,null,null,null,null,""]
[false,30,null,null,null,null,null,""]
[false,31,null,null,null,null,null,""]
[false,32,null,null,null,null,null,""]
[false,33,null,null,null,null,null,""]
[false,34,null,null,null,null,null,""]
[false,35,null,null,null,null,null,""]
[false,36,null,null,null,null,null,""]
[false,37,null,null,null,null,null,""]
[false,38,null,null,null,null,null,""]
[false,39,null,null,null,null,null,""]
[false,40,null,null,null,null,null,""]
[false,41,null,null,null,null,null,""]
[false,42,null,null,null,null,null,""]
[false,43,null,null,null,null,null,""]
[false,44,null,null,null,null,null,""]
[false,45,null,null,null,null,null,""]
[false,46,null,null,null,null,null,""]
[false,47,null,null,null,null,null,""]
[false,48,null,null,null,null,null,""]
[false,49,null,null,null,null,null,""]
[false,50,null,null,null,null,null,""]
[false,51,null,null,null,null,null,""]
[false,52,null,null,null,null,null,""]
[false,53,null,null,null,null,null,""]
[false,54,null,null,null,null,null,""]
[false,55,null,null,null,null,null,""]
[false,56,null,null,null,null,null,""]
[false,57,null,null,null,null,null,""]
[false,58,null,null,null,null,null,""]
[false,59,null,null,null,null,null,""]
[false,60,null,null,null,null,null,""]
[false,61,null,null,null,null,null,""]
[false,62,null,null,null,null,null,{"$f":"IF(A75=TRUE,\"○\",\"\")","v":""}]
[false,63,null,null,null,null,null,""]
[false,64,null,null,null,null,null,""]
[false,65,null,null,null,null,null,""]
[false,66,null,null,null,null,null,""]
[false,67,null,null,null,null,null,""]
[false,68,null,null,null,null,null,""]
[false,69,null,null,null,null,null,""]
[false,70,null,null,null,null,null,""]
[false,71,null,null,null,null,null,""]
[false,72,null,null,null,null,null,""]
[false,73,null,null,null,null,null,""]
[false,74,null,null,null,null,null,""]
[false,75,null,null,null,null,null,""]
[false,76,null,null,null,null,null,""]
[false,77,null,null,null,null,null,""]
[false,78,null,null,null,null,null,""]
[false,79,null,null,null,null,null,""]
[false,80,null,null,null,null,null,""]
[false,81,null,null,null,null,null,""]
[false,82,null,null,null,null,null,""]
[false,83,null,null,null,null,null,""]
[false,84,null,null,null,null,null,""]
[false,85,null,null,null,null,null,""]
[false,86,null,null,null,null,null,""]
[false,87,null,null,null,null,null,""]
[false,88,null,null,null,null,null,""]
[false,89,null,null,null,null,null,""]
[false,90,null,null,null,null,null,""]
[false,91,null,null,null,null,null,""]
[false,92,null,null,null,null,null,""]
[false,93,null,null,null,null,null,""]
[false,94,null,null,null,null,null,""]
[false,95,null,null,null,null,null,""]
[false,96,null,null,null,null,null,""]
[false,97,null,null,null,null,null,""]
[false,98,null,null,null,null,null,""]
[false,99,null,null,null,null,null,""]
[false,100,null,null,null,null,null,""]
[false,101,null,null,null,null,null,""]
[false,102,null,null,null,null,null,""]
[false,103,null,null,null,null,null,""]
[false,104,null,null,null,null,null,""]
[false,105,null,null,null,null,null,""]
[false,106,null,null,null,null,null,""]
[false,107,null,null,null,null,null,""]
[false,108,null,null,null,null,null,""]
[false,109,null,null,null,null,null,""]
[false,110,null,null,null,null,null,""]
[false,111,null,null,null,null,null,""]
[false,112,null,null,null,null,null,""]
[false,113,null,null,null,null,null,""]
[false,114,null,null,null,null,null,""]
[false,115,null,null,null,null,null,""]
[false,116,null,null,null,null,null,""]
[false,117,null,null,null,null,null,""]
[false,118,null,null,null,null,null,""]
[false,119,null,null,null,null,null,""]
[false,120,null,null,null,null,null,""]
[false,121,null,null,null,null,null,""]
[false,122,null,null,null,null,null,""]
[false,123,null,null,null,null,null,""]
[false,124,null,null,null,null,null,""]
[false,125,null,null,null,null,null,""]
[false,126,null,null,null,null,null,{"$f":"IF(A139=TRUE,\"○\",\"\")","v":""}]
[false,127,null,null,null,null,null,""]
[false,128,null,null,null,null,null,""]
[false,129,null,null,null,null,null,""]
[false,130,null,null,null,null,null,""]
[false,131,null,null,null,null,null,""]
[false,132,null,null,null,null,null,""]
[false,133,null,null,null,null,null,""]
[false,134,null,null,null,null,null,""]
[false,135,null,null,null,null,null,""]
[false,136,null,null,null,null,null,""]
[false,137,null,null,null,null,null,""]
[false,138,null,null,null,null,null,""]
[false,139,null,null,null,null,null,""]
[false,140,null,null,null,null,null,""]
[false,141,null,null,null,null,null,""]
[false,142,null,null,null,null,null,""]
[false,143,null,null,null,null,null,""]
[false,144,null,null,null,null,null,""]
[false,145,null,null,null,null,null,""]
[false,146,null,null,null,null,null,""]
[false,147,null,null,null,null,null,""]
[false,148,null,null,null,null,null,""]
[false,149,null,null,null,null,null,""]
[false,150,null,null,null,null,null,""]
[false,151,null,null,null,null,null,""]
[false,152,null,null,null,null,null,""]
[false,153,null,null,null,null,null,""]
[false,154,null,null,null,null,null,""]
[false,155,null,null,null,null,null,""]
[false,156,null,null,null,null,null,""]
[false,157,null,null,null,null,null,""]
[false,158,null,null,null,null,null,""]
[false,159,null,null,null,null,null,""]
[false,160,null,null,null,null,null,""]
[false,161,null,null,null,null,null,""]
[false,162,null,null,null,null,null,""]
[false,163,null,null,null,null,null,""]
[false,164,null,null,null,null,null,""]
[false,165,null,null,null,null,null,""]
[false,166,null,null,null,null,null,""]
[false,167,null,null,null,null,null,""]
[false,168,null,null,null,null,null,""]
[false,169,null,null,null,null,null,""]
[false,170,null,null,null,null,null,""]
[false,171,null,null,null,null,null,""]
[false,172,null,null,null,null,null,""]
[false,173,null,null,null,null,null,""]
[false,174,null,null,null,null,null,""]
[false,175,null,null,null,null,null,""]
[false,176,null,null,null,null,null,""]
[false,177,null,null,null,null,null,""]
[false,178,null,null,null,null,null,""]
[false,179,null,null,null,null,null,""]
[false,180,null,null,null,null,null,""]
[false,181,null,null,null,null,null,""]
[false,182,null,null,null,null,null,""]
[false,183,null,null,null,null,null,""]
[false,184,null,null,null,null,null,""]
[false,185,null,null,null,null,null,""]
[false,186,null,null,null,null,null,""]
[false,187,null,null,null,null,null,""]
[false,188,null,null,null,null,null,""]
[false,189,null,null,null,null,null,""]
[false,190,null,null,null,null,null,{"$f":"IF(A203=TRUE,\"○\",\"\")","v":""}]
[false,191,null,null,null,null,null,""]
[false,192,null,null,null,null,null,""]
[false,193,null,null,null,null,null,""]
[false,194,null,null,null,null,null,""]
[false,195,null,null,null,null,null,""]
[false,196,null,null,null,null,null,""]
[false,197,null,null,null,null,null,""]
[false,198,null,null,null,null,null,""]
[false,199,null,null,null,null,null,""]
[false,200,null,null,null,null,null,""]
[false,201,null,null,null,null,null,""]
[false,202,null,null,null,null,null,""]
[false,203,null,null,null,null,null,""]
[false,204,null,null,null,null,null,""]
[false,205,null,null,null,null,null,""]
[false,206,null,null,null,null,null,""]
[false,207,null,null,null,null,null,""]
[false,208,null,null,null,null,null,""]
[false,209,null,null,null,null,null,""]
[false,210,null,null,null,null,null,""]
[false,211,null,null,null,null,null,""]
[false,212,null,null,null,null,null,""]
[false,213,null,null,null,null,null,""]
[false,214,null,null,null,null,null,""]
[false,215,null,null,null,null,null,""]
[false,216,null,null,null,null,null,""]
[false,217,null,null,null,null,null,""]
[false,218,null,null,null,null,null,""]
[false,219,null,null,null,null,null,""]
[false,220,null,null,null,null,null,""]
[false,221,null,null,null,null,null,""]
[false,222,null,null,null,null,null,""]
[false,223,null,null,null,null,null,""]
[false,224,null,null,null,null,null,""]
[false,225,null,null,null,null,null,""]
[false,226,null,null,null,null,null,""]
[false,227,null,null,null,null,null,""]
[false,228,null,null,null,null,null,""]
[false,229,null,null,null,null,null,""]
[false,230,null,null,null,null,null,""]
[false,231,null,null,null,null,null,""]
[false,232,null,null,null,null,null,""]
[false,233,null,null,null,null,null,""]
[false,234,null,null,null,null,null,""]
[false,235,null,null,null,null,null,""]
[false,236,null,null,null,null,null,""]
[false,237,null,null,null,null,null,""]
[false,238,null,null,null,null,null,""]
[false,239,null,null,null,null,null,""]
[false,240,null,null,null,null,null,""]
[false,241,null,null,null,null,null,""]
[false,242,null,null,null,null,null,""]
[false,243,null,null,null,null,null,""]
[false,244,null,null,null,null,null,""]
[false,245,null,null,null,null,null,""]
[false,246,null,null,null,null,null,""]
[false,247,null,null,null,null,null,""]
[false,248,null,null,null,null,null,""]
[false,249,null,null,null,null,null,""]
[false,250,null,null,null,null,null,""]
[false,251,null,null,null,null,null,""]
[false,252,null,null,null,null,null,""]
[false,253,null,null,null,null,null,""]
[false,254,null,null,null,null,null,{"$f":"IF(A267=TRUE,\"○\",\"\")","v":""}]
[false,255,null,null,null,null,null,""]
[false,256,null,null,null,null,null,""]
[false,257,null,null,null,null,null,""]
[false,258,null,null,null,null,null,""]
[false,259,null,null,null,null,null,""]
[false,260,null,null,null,null,null,""]
[false,261,null,null,null,null,null,""]
[false,262,null,null,null,null,null,""]
[false,263,null,null,null,null,null,""]
[false,264,null,null,null,null,null,""]
[false,265,null,null,null,null,null,""]
[false,266,null,null,null,null,null,""]
[false,267,null,null,null,null,null,""]
[false,268,null,null,null,null,null,""]
[false,269,null,null,null,null,null,""]
[false,270,null,null,null,null,null,""]
[false,271,null,null,null,null,null,""]
[false,272,null,null,null,null,null,""]
[false,273,null,null,null,null,null,""]
[false,274,null,null,null,null,null,""]
[false,275,null,null,null,null,null,""]
[false,276,null,null,null,null,null,""]
[false,277,null,null,null,null,null,""]
[false,278,null,null,null,null,null,""]
[false,279,null,null,null,null,null,""]
[false,280,null,null,null,null,null,""]
[false,281,null,null,null,null,null,""]
[false,282,null,null,null,null,null,""]
[false,283,null,null,null,null,null,""]
[false,284,null,null,null,null,null,""]
[false,285,null,null,null,null,null,""]
[false,286,null,null,null,null,null,""]
[false,287,null,null,null,null,null,""]
[false,288,null,null,null,null,null,""]
[false,289,null,null,null,null,null,""]
[false,290,null,null,null,null,null,""]
[false,291,null,null,null,null,null,""]
[false,292,null,null,null,null,null,""]
[false,293,null,null,null,null,null,""]
[false,294,null,null,null,null,null,""]
[false,295,null,null,null,null,null,""]
[false,296,null,null,null,null,null,""]
[false,297,null,null,null,null,null,""]
[false,298,null,null,null,null,null,""]
[false,299,null,null,null,null,null,""]
[false,300,null,null,null,null,null,""]

{"sheet":"11月","index":11,"n_rows":313,"n_cols":11,"rows_kept":313,"cut":false,"hidden":false,"merged":[[0,1,0,6],[1,10,2,10],[4,9,4,10],[14,9,14,10],[1,5,2,5],[1,1,2,1],[1,2,2,2],[1,3,2,3],[1,4,2,4],[1,6,2,6],[1,7,2,7]]}
[null,"11月の修理状況"]
[null,"整理番号","修理状況","修理状況","修理不能の理由","担当Dr.より","受付","返却"]
[]
[false,{"$f":"SUBSTITUTE(G3:G313,0,\"繰り越し\")","v":""},null,null,null,null,null,{"$f":"IF(A4=TRUE,\"○\",\"\")","v":""}]
[false,"",null,null,null,null,null,{"$f":"IF(A5=TRUE,\"○\",\"\")","v":""},null,"今月の実績"]
[false,"",null,null,null,null,null,"",null,"前年度繰り越し",{"$f":"COUNTIFS(G4:G313,\"<11\",D4:D313,\"修理中\")","v":0}]
[false,"",null,null,null,null,null,"",null,"受付件数",{"$f":"COUNTIF(G4:G311,11)","v":0}]
[false,"",null,null,null,null,null,"",null,"要修理数",{"$f":"K6+K7","v":0}]
[false,"",null,null,null,null,null,"",null,"修理完了件数",{"$f":"COUNTIFS(D4:D313,\"修理完了\",G4:G313,11)","v":0}]
[false,{"$f":"SUBSTITUTE(G4:G319,0,\"繰り越し\")","v":""},null,null,null,null,null,"",null,"修理不能件数",{"$f":"COUNTIFS(D4:D313,\"修理不能\",G4:G313,11)","v":0}]
[false,{"$f":"SUBSTITUTE(G10:G320,0,\"繰り越し\")","v":""},null,null,null,null,null,"",null,"修理中件数",{"$f":"COUNTIF(D4:D295,\"修理中\")","v":0}]
[false,"",null,null,null,null,null,"",null,"返却待ち件数",{"$f":"COUNTIF(A4:A309,TRUE)","v":0}]
[false,{"$f":"SUBSTITUTE(G8:G318,0,\"繰り越し\")","v":""},null,null,null,null,null,""]
[false,1,null,null,null,null,null,{"$f":"IF(A14=TRUE,\"○\",\"\")","v":""}]
[false,2,null,null,null,null,null,{"$f":"IF(A15=TRUE,\"○\",\"\")","v":""},null,"修理不能の原因"]
[false,3,null,null,null,null,null,"",null,"特殊な充電池",{"$f":"COUNTIF(E4:E313,\"特殊な充電池で、手に入りません\")","v":0}]
[false,4,null,null,null,null,null,"",null,"ＩＣが故障",{"$f":"COUNTIF(E4:E313,\"ＩＣが故障していて、手に入りません\")","v":0}]
[false,5,null,null,null,null,null,"",null,"断線が多い",{"$f":"COUNTIF(E6:E297,\"断線が多い為、配線が分かりません\")","v":0}]
[false,6,null,null,null,null,null,"",null,"分解できない",{"$f":"COUNTIF(E4:E313,\"分解できない為、原因が分かりません\")","v":0}]
[false,7,null,null,null,null,null,"",null,"ギアの欠け",{"$f":"COUNTIF(E4:E313,\"ギアが欠けていて、手に入りません\")","v":0}]
[false,8,null,null,null,null,null,"",null,"その他",{"$f":"COUNTIF(E4:E313,\"その他\")","v":0}]
[false,9,null,null,null,null,null,""]
[false,10,null,null,null,null,null,""]
[false,11,null,null,null,null,null,""]
[false,12,null,null,null,null,null,""]
[false,13,null,null,null,null,null,""]
[false,14,null,null,null,null,null,""]
[false,15,null,null,null,null,null,""]
[false,16,null,null,null,null,null,""]
[false,17,null,null,null,null,null,""]
[false,18,null,null,null,null,null,""]
[false,19,null,null,null,null,null,""]
[false,20,null,null,null,null,null,""]
[false,21,null,null,null,null,null,""]
[false,22,null,null,null,null,null,""]
[false,23,null,null,null,null,null,""]
[false,24,null,null,null,null,null,""]
[false,25,null,null,null,null,null,""]
[false,26,null,null,null,null,null,""]
[false,27,null,null,null,null,null,""]
[false,28,null,null,null,null,null,""]
[false,29,null,null,null,null,null,""]
[false,30,null,null,null,null,null,""]
[false,31,null,null,null,null,null,""]
[false,32,null,null,null,null,null,""]
[false,33,null,null,null,null,null,""]
[false,34,null,null,null,null,null,""]
[false,35,null,null,null,null,null,""]
[false,36,null,null,null,null,null,""]
[false,37,null,null,null,null,null,""]
[false,38,null,null,null,null,null,""]
[false,39,null,null,null,null,null,""]
[false,40,null,null,null,null,null,""]
[false,41,null,null,null,null,null,""]
[false,42,null,null,null,null,null,""]
[false,43,null,null,null,null,null,""]
[false,44,null,null,null,null,null,""]
[false,45,null,null,null,null,null,""]
[false,46,null,null,null,null,null,""]
[false,47,null,null,null,null,null,""]
[false,48,null,null,null,null,null,""]
[false,49,null,null,null,null,null,""]
[false,50,null,null,null,null,null,""]
[false,51,null,null,null,null,null,""]
[false,52,null,null,null,null,null,""]
[false,53,null,null,null,null,null,""]
[false,54,null,null,null,null,null,""]
[false,55,null,null,null,null,null,""]
[false,56,null,null,null,null,null,""]
[false,57,null,null,null,null,null,""]
[false,58,null,null,null,null,null,""]
[false,59,null,null,null,null,null,""]
[false,60,null,null,null,null,null,""]
[false,61,null,null,null,null,null,""]
[false,62,null,null,null,null,null,""]
[false,63,null,null,null,null,null,""]
[false,64,null,null,null,null,null,""]
[false,65,null,null,null,null,null,""]
[false,66,null,null,null,null,null,{"$f":"IF(A79=TRUE,\"○\",\"\")","v":""}]
[false,67,null,null,null,null,null,""]
[false,68,null,null,null,null,null,""]
[false,69,null,null,null,null,null,""]
[false,70,null,null,null,null,null,""]
[false,71,null,null,null,null,null,""]
[false,72,null,null,null,null,null,""]
[false,73,null,null,null,null,null,""]
[false,74,null,null,null,null,null,""]
[false,75,null,null,null,null,null,""]
[false,76,null,null,null,null,null,""]
[false,77,null,null,null,null,null,""]
[false,78,null,null,null,null,null,""]
[false,79,null,null,null,null,null,""]
[false,80,null,null,null,null,null,""]
[false,81,null,null,null,null,null,""]
[false,82,null,null,null,null,null,""]
[false,83,null,null,null,null,null,""]
[false,84,null,null,null,null,null,""]
[false,85,null,null,null,null,null,""]
[false,86,null,null,null,null,null,""]
[false,87,null,null,null,null,null,""]
[false,88,null,null,null,null,null,""]
[false,89,null,null,null,null,null,""]
[false,90,null,null,null,null,null,""]
[false,91,null,null,null,null,null,""]
[false,92,null,null,null,null,null,""]
[false,93,null,null,null,null,null,""]
[false,94,null,null,null,null,null,""]
[false,95,null,null,null,null,null,""]
[false,96,null,null,null,null,null,""]
[false,97,null,null,null,null,null,""]
[false,98,null,null,null,null,null,""]
[false,99,null,null,null,null,null,""]
[false,100,null,null,null,null,null,""]
[false,101,null,null,null,null,null,""]
[false,102,null,null,null,null,null,""]
[false,103,null,null,null,null,null,""]
[false,104,null,null,null,null,null,""]
[false,105,null,null,null,null,null,""]
[false,106,null,null,null,null,null,""]
[false,107,null,null,null,null,null,""]
[false,108,null,null,null,null,null,""]
[false,109,null,null,null,null,null,""]
[false,110,null,null,null,null,null,""]
[false,111,null,null,null,null,null,""]
[false,112,null,null,null,null,null,""]
[false,113,null,null,null,null,null,""]
[false,114,null,null,null,null,null,""]
[false,115,null,null,null,null,null,""]
[false,116,null,null,null,null,null,""]
[false,117,null,null,null,null,null,""]
[false,118,null,null,null,null,null,""]
[false,119,null,null,null,null,null,""]
[false,120,null,null,null,null,null,""]
[false,121,null,null,null,null,null,""]
[false,122,null,null,null,null,null,""]
[false,123,null,null,null,null,null,""]
[false,124,null,null,null,null,null,""]
[false,125,null,null,null,null,null,""]
[false,126,null,null,null,null,null,""]
[false,127,null,null,null,null,null,""]
[false,128,null,null,null,null,null,""]
[false,129,null,null,null,null,null,""]
[false,130,null,null,null,null,null,{"$f":"IF(A143=TRUE,\"○\",\"\")","v":""}]
[false,131,null,null,null,null,null,""]
[false,132,null,null,null,null,null,""]
[false,133,null,null,null,null,null,""]
[false,134,null,null,null,null,null,""]
[false,135,null,null,null,null,null,""]
[false,136,null,null,null,null,null,""]
[false,137,null,null,null,null,null,""]
[false,138,null,null,null,null,null,""]
[false,139,null,null,null,null,null,""]
[false,140,null,null,null,null,null,""]
[false,141,null,null,null,null,null,""]
[false,142,null,null,null,null,null,""]
[false,143,null,null,null,null,null,""]
[false,144,null,null,null,null,null,""]
[false,145,null,null,null,null,null,""]
[false,146,null,null,null,null,null,""]
[false,147,null,null,null,null,null,""]
[false,148,null,null,null,null,null,""]
[false,149,null,null,null,null,null,""]
[false,150,null,null,null,null,null,""]
[false,151,null,null,null,null,null,""]
[false,152,null,null,null,null,null,""]
[false,153,null,null,null,null,null,""]
[false,154,null,null,null,null,null,""]
[false,155,null,null,null,null,null,""]
[false,156,null,null,null,null,null,""]
[false,157,null,null,null,null,null,""]
[false,158,null,null,null,null,null,""]
[false,159,null,null,null,null,null,""]
[false,160,null,null,null,null,null,""]
[false,161,null,null,null,null,null,""]
[false,162,null,null,null,null,null,""]
[false,163,null,null,null,null,null,""]
[false,164,null,null,null,null,null,""]
[false,165,null,null,null,null,null,""]
[false,166,null,null,null,null,null,""]
[false,167,null,null,null,null,null,""]
[false,168,null,null,null,null,null,""]
[false,169,null,null,null,null,null,""]
[false,170,null,null,null,null,null,""]
[false,171,null,null,null,null,null,""]
[false,172,null,null,null,null,null,""]
[false,173,null,null,null,null,null,""]
[false,174,null,null,null,null,null,""]
[false,175,null,null,null,null,null,""]
[false,176,null,null,null,null,null,""]
[false,177,null,null,null,null,null,""]
[false,178,null,null,null,null,null,""]
[false,179,null,null,null,null,null,""]
[false,180,null,null,null,null,null,""]
[false,181,null,null,null,null,null,""]
[false,182,null,null,null,null,null,""]
[false,183,null,null,null,null,null,""]
[false,184,null,null,null,null,null,""]
[false,185,null,null,null,null,null,""]
[false,186,null,null,null,null,null,""]
[false,187,null,null,null,null,null,""]
[false,188,null,null,null,null,null,""]
[false,189,null,null,null,null,null,""]
[false,190,null,null,null,null,null,""]
[false,191,null,null,null,null,null,""]
[false,192,null,null,null,null,null,""]
[false,193,null,null,null,null,null,""]
[false,194,null,null,null,null,null,{"$f":"IF(A207=TRUE,\"○\",\"\")","v":""}]
[false,195,null,null,null,null,null,""]
[false,196,null,null,null,null,null,""]
[false,197,null,null,null,null,null,""]
[false,198,null,null,null,null,null,""]
[false,199,null,null,null,null,null,""]
[false,200,null,null,null,null,null,""]
[false,201,null,null,null,null,null,""]
[false,202,null,null,null,null,null,""]
[false,203,null,null,null,null,null,""]
[false,204,null,null,null,null,null,""]
[false,205,null,null,null,null,null,""]
[false,206,null,null,null,null,null,""]
[false,207,null,null,null,null,null,""]
[false,208,null,null,null,null,null,""]
[false,209,null,null,null,null,null,""]
[false,210,null,null,null,null,null,""]
[false,211,null,null,null,null,null,""]
[false,212,null,null,null,null,null,""]
[false,213,null,null,null,null,null,""]
[false,214,null,null,null,null,null,""]
[false,215,null,null,null,null,null,""]
[false,216,null,null,null,null,null,""]
[false,217,null,null,null,null,null,""]
[false,218,null,null,null,null,null,""]
[false,219,null,null,null,null,null,""]
[false,220,null,null,null,null,null,""]
[false,221,null,null,null,null,null,""]
[false,222,null,null,null,null,null,""]
[false,223,null,null,null,null,null,""]
[false,224,null,null,null,null,null,""]
[false,225,null,null,null,null,null,""]
[false,226,null,null,null,null,null,""]
[false,227,null,null,null,null,null,""]
[false,228,null,null,null,null,null,""]
[false,229,null,null,null,null,null,""]
[false,230,null,null,null,null,null,""]
[false,231,null,null,null,null,null,""]
[false,232,null,null,null,null,null,""]
[false,233,null,null,null,null,null,""]
[false,234,null,null,null,null,null,""]
[false,235,null,null,null,null,null,""]
[false,236,null,null,null,null,null,""]
[false,237,null,null,null,null,null,""]
[false,238,null,null,null,null,null,""]
[false,239,null,null,null,null,null,""]
[false,240,null,null,null,null,null,""]
[false,241,null,null,null,null,null,""]
[false,242,null,null,null,null,null,""]
[false,243,null,null,null,null,null,""]
[false,244,null,null,null,null,null,""]
[false,245,null,null,null,null,null,""]
[false,246,null,null,null,null,null,""]
[false,247,null,null,null,null,null,""]
[false,248,null,null,null,null,null,""]
[false,249,null,null,null,null,null,""]
[false,250,null,null,null,null,null,""]
[false,251,null,null,null,null,null,""]
[false,252,null,null,null,null,null,""]
[false,253,null,null,null,null,null,""]
[false,254,null,null,null,null,null,""]
[false,255,null,null,null,null,null,""]
[false,256,null,null,null,null,null,""]
[false,257,null,null,null,null,null,""]
[false,258,null,null,null,null,null,{"$f":"IF(A271=TRUE,\"○\",\"\")","v":""}]
[false,259,null,null,null,null,null,""]
[false,260,null,null,null,null,null,""]
[false,261,null,null,null,null,null,""]
[false,262,null,null,null,null,null,""]
[false,263,null,null,null,null,null,""]
[false,264,null,null,null,null,null,""]
[false,265,null,null,null,null,null,""]
[false,266,null,null,null,null,null,""]
[false,267,null,null,null,null,null,""]
[false,268,null,null,null,null,null,""]
[false,269,null,null,null,null,null,""]
[false,270,null,null,null,null,null,""]
[false,271,null,null,null,null,null,""]
[false,272,null,null,null,null,null,""]
[false,273,null,null,null,null,null,""]
[false,274,null,null,null,null,null,""]
[false,275,null,null,null,null,null,""]
[false,276,null,null,null,null,null,""]
[false,277,null,null,null,null,null,""]
[false,278,null,null,null,null,null,""]
[false,279,null,null,null,null,null,""]
[false,280,null,null,null,null,null,""]
[false,281,null,null,null,null,null,""]
[false,282,null,null,null,null,null,""]
[false,283,null,null,null,null,null,""]
[false,284,null,null,null,null,null,""]
[false,285,null,null,null,null,null,""]
[false,286,null,null,null,null,null,""]
[false,287,null,null,null,null,null,""]
[false,288,null,null,null,null,null,""]
[false,289,null,null,null,null,null,""]
[false,290,null,null,null,null,null,""]
[false,291,null,null,null,null,null,""]
[false,292,null,null,null,null,null,""]
[false,293,null,null,null,null,null,""]
[false,294,null,null,null,null,null,""]
[false,295,null,null,null,null,null,""]
[false,296,null,null,null,null,null,""]
[false,297,null,null,null,null,null,""]
[false,298,null,null,null,null,null,""]
[false,299,null,null,null,null,null,""]
[false,300,null,null,null,null,null,""]

{"sheet":"12月","index":12,"n_rows":313,"n_cols":11,"rows_kept":313,"cut":false,"hidden":false,"merged":[[0,1,0,6],[1,10,2,10],[4,9,4,10],[14,9,14,10],[1,5,2,5],[1,1,2,1],[1,2,2,2],[1,3,2,3],[1,4,2,4],[1,6,2,6],[1,7,2,7]]}
[null,"12月の修理状況"]
[null,"整理番号","修理状況","修理状況","修理不能の理由","担当Dr.より","受付","返却"]
[]
[false,{"$f":"SUBSTITUTE(G3:G313,0,\"繰り越し\")","v":""},null,null,null,null,null,{"$f":"IF(A4=TRUE,\"○\",\"\")","v":""}]
[false,"",null,null,null,null,null,{"$f":"IF(A5=TRUE,\"○\",\"\")","v":""},null,"今月の実績"]
[false,"",null,null,null,null,null,"",null,"前年度繰り越し",{"$f":"COUNTIFS(G4:G313,\"<12\",D4:D313,\"修理中\")","v":0}]
[false,"",null,null,null,null,null,"",null,"受付件数",{"$f":"COUNTIF(G4:G311,12)","v":0}]
[false,"",null,null,null,null,null,"",null,"要修理数",{"$f":"K6+K7","v":0}]
[false,"",null,null,null,null,null,"",null,"修理完了件数",{"$f":"COUNTIFS(D4:D313,\"修理完了\",G4:G313,12)","v":0}]
[false,{"$f":"SUBSTITUTE(G4:G319,0,\"繰り越し\")","v":""},null,null,null,null,null,"",null,"修理不能件数",{"$f":"COUNTIFS(D4:D313,\"修理不能\",G4:G313,12)","v":0}]
[false,{"$f":"SUBSTITUTE(G10:G320,0,\"繰り越し\")","v":""},null,null,null,null,null,"",null,"修理中件数",{"$f":"COUNTIF(D4:D295,\"修理中\")","v":0}]
[false,"",null,null,null,null,null,"",null,"返却待ち件数",{"$f":"COUNTIF(A4:A309,TRUE)","v":0}]
[false,{"$f":"SUBSTITUTE(G8:G318,0,\"繰り越し\")","v":""},null,null,null,null,null,""]
[false,1,null,null,null,null,null,{"$f":"IF(A14=TRUE,\"○\",\"\")","v":""}]
[false,2,null,null,null,null,null,{"$f":"IF(A15=TRUE,\"○\",\"\")","v":""},null,"修理不能の原因"]
[false,3,null,null,null,null,null,"",null,"特殊な充電池",{"$f":"COUNTIF(E4:E313,\"特殊な充電池で、手に入りません\")","v":0}]
[false,4,null,null,null,null,null,"",null,"ＩＣが故障",{"$f":"COUNTIF(E4:E313,\"ＩＣが故障していて、手に入りません\")","v":0}]
[false,5,null,null,null,null,null,"",null,"断線が多い",{"$f":"COUNTIF(E6:E297,\"断線が多い為、配線が分かりません\")","v":0}]
[false,6,null,null,null,null,null,"",null,"分解できない",{"$f":"COUNTIF(E4:E313,\"分解できない為、原因が分かりません\")","v":0}]
[false,7,null,null,null,null,null,"",null,"ギアの欠け",{"$f":"COUNTIF(E4:E313,\"ギアが欠けていて、手に入りません\")","v":0}]
[false,8,null,null,null,null,null,"",null,"その他",{"$f":"COUNTIF(E4:E313,\"その他\")","v":0}]
[false,9,null,null,null,null,null,""]
[false,10,null,null,null,null,null,""]
[false,11,null,null,null,null,null,""]
[false,12,null,null,null,null,null,""]
[false,13,null,null,null,null,null,""]
[false,14,null,null,null,null,null,""]
[false,15,null,null,null,null,null,""]
[false,16,null,null,null,null,null,""]
[false,17,null,null,null,null,null,""]
[false,18,null,null,null,null,null,""]
[false,19,null,null,null,null,null,""]
[false,20,null,null,null,null,null,""]
[false,21,null,null,null,null,null,""]
[false,22,null,null,null,null,null,""]
[false,23,null,null,null,null,null,""]
[false,24,null,null,null,null,null,""]
[false,25,null,null,null,null,null,""]
[false,26,null,null,null,null,null,""]
[false,27,null,null,null,null,null,""]
[false,28,null,null,null,null,null,""]
[false,29,null,null,null,null,null,""]
[false,30,null,null,null,null,null,""]
[false,31,null,null,null,null,null,""]
[false,32,null,null,null,null,null,""]
[false,33,null,null,null,null,null,""]
[false,34,null,null,null,null,null,""]
[false,35,null,null,null,null,null,""]
[false,36,null,null,null,null,null,""]
[false,37,null,null,null,null,null,""]
[false,38,null,null,null,null,null,""]
[false,39,null,null,null,null,null,""]
[false,40,null,null,null,null,null,""]
[false,41,null,null,null,null,null,""]
[false,42,null,null,null,null,null,""]
[false,43,null,null,null,null,null,""]
[false,44,null,null,null,null,null,""]
[false,45,null,null,null,null,null,""]
[false,46,null,null,null,null,null,""]
[false,47,null,null,null,null,null,""]
[false,48,null,null,null,null,null,""]
[false,49,null,null,null,null,null,""]
[false,50,null,null,null,null,null,""]
[false,51,null,null,null,null,null,""]
[false,52,null,null,null,null,null,""]
[false,53,null,null,null,null,null,""]
[false,54,null,null,null,null,null,""]
[false,55,null,null,null,null,null,""]
[false,56,null,null,null,null,null,""]
[false,57,null,null,null,null,null,""]
[false,58,null,null,null,null,null,""]
[false,59,null,null,null,null,null,""]
[false,60,null,null,null,null,null,""]
[false,61,null,null,null,null,null,""]
[false,62,null,null,null,null,null,""]
[false,63,null,null,null,null,null,""]
[false,64,null,null,null,null,null,""]
[false,65,null,null,null,null,null,""]
[false,66,null,null,null,null,null,{"$f":"IF(A79=TRUE,\"○\",\"\")","v":""}]
[false,67,null,null,null,null,null,""]
[false,68,null,null,null,null,null,""]
[false,69,null,null,null,null,null,""]
[false,70,null,null,null,null,null,""]
[false,71,null,null,null,null,null,""]
[false,72,null,null,null,null,null,""]
[false,73,null,null,null,null,null,""]
[false,74,null,null,null,null,null,""]
[false,75,null,null,null,null,null,""]
[false,76,null,null,null,null,null,""]
[false,77,null,null,null,null,null,""]
[false,78,null,null,null,null,null,""]
[false,79,null,null,null,null,null,""]
[false,80,null,null,null,null,null,""]
[false,81,null,null,null,null,null,""]
[false,82,null,null,null,null,null,""]
[false,83,null,null,null,null,null,""]
[false,84,null,null,null,null,null,""]
[false,85,null,null,null,null,null,""]
[false,86,null,null,null,null,null,""]
[false,87,null,null,null,null,null,""]
[false,88,null,null,null,null,null,""]
[false,89,null,null,null,null,null,""]
[false,90,null,null,null,null,null,""]
[false,91,null,null,null,null,null,""]
[false,92,null,null,null,null,null,""]
[false,93,null,null,null,null,null,""]
[false,94,null,null,null,null,null,""]
[false,95,null,null,null,null,null,""]
[false,96,null,null,null,null,null,""]
[false,97,null,null,null,null,null,""]
[false,98,null,null,null,null,null,""]
[false,99,null,null,null,null,null,""]
[false,100,null,null,null,null,null,""]
[false,101,null,null,null,null,null,""]
[false,102,null,null,null,null,null,""]
[false,103,null,null,null,null,null,""]
[false,104,null,null,null,null,null,""]
[false,105,null,null,null,null,null,""]
[false,106,null,null,null,null,null,""]
[false,107,null,null,null,null,null,""]
[false,108,null,null,null,null,null,""]
[false,109,null,null,null,null,null,""]
[false,110,null,null,null,null,null,""]
[false,111,null,null,null,null,null,""]
[false,112,null,null,null,null,null,""]
[false,113,null,null,null,null,null,""]
[false,114,null,null,null,null,null,""]
[false,115,null,null,null,null,null,""]
[false,116,null,null,null,null,null,""]
[false,117,null,null,null,null,null,""]
[false,118,null,null,null,null,null,""]
[false,119,null,null,null,null,null,""]
[false,120,null,null,null,null,null,""]
[false,121,null,null,null,null,null,""]
[false,122,null,null,null,null,null,""]
[false,123,null,null,null,null,null,""]
[false,124,null,null,null,null,null,""]
[false,125,null,null,null,null,null,""]
[false,126,null,null,null,null,null,""]
[false,127,null,null,null,null,null,""]
[false,128,null,null,null,null,null,""]
[false,129,null,null,null,null,null,""]
[false,130,null,null,null,null,null,{"$f":"IF(A143=TRUE,\"○\",\"\")","v":""}]
[false,131,null,null,null,null,null,""]
[false,132,null,null,null,null,null,""]
[false,133,null,null,null,null,null,""]
[false,134,null,null,null,null,null,""]
[false,135,null,null,null,null,null,""]
[false,136,null,null,null,null,null,""]
[false,137,null,null,null,null,null,""]
[false,138,null,null,null,null,null,""]
[false,139,null,null,null,null,null,""]
[false,140,null,null,null,null,null,""]
[false,141,null,null,null,null,null,""]
[false,142,null,null,null,null,null,""]
[false,143,null,null,null,null,null,""]
[false,144,null,null,null,null,null,""]
[false,145,null,null,null,null,null,""]
[false,146,null,null,null,null,null,""]
[false,147,null,null,null,null,null,""]
[false,148,null,null,null,null,null,""]
[false,149,null,null,null,null,null,""]
[false,150,null,null,null,null,null,""]
[false,151,null,null,null,null,null,""]
[false,152,null,null,null,null,null,""]
[false,153,null,null,null,null,null,""]
[false,154,null,null,null,null,null,""]
[false,155,null,null,null,null,null,""]
[false,156,null,null,null,null,null,""]
[false,157,null,null,null,null,null,""]
[false,158,null,null,null,null,null,""]
[false,159,null,null,null,null,null,""]
[false,160,null,null,null,null,null,""]
[false,161,null,null,null,null,null,""]
[false,162,null,null,null,null,null,""]
[false,163,null,null,null,null,null,""]
[false,164,null,null,null,null,null,""]
[false,165,null,null,null,null,null,""]
[false,166,null,null,null,null,null,""]
[false,167,null,null,null,null,null,""]
[false,168,null,null,null,null,null,""]
[false,169,null,null,null,null,null,""]
[false,170,null,null,null,null,null,""]
[false,171,null,null,null,null,null,""]
[false,172,null,null,null,null,null,""]
[false,173,null,null,null,null,null,""]
[false,174,null,null,null,null,null,""]
[false,175,null,null,null,null,null,""]
[false,176,null,null,null,null,null,""]
[false,177,null,null,null,null,null,""]
[false,178,null,null,null,null,null,""]
[false,179,null,null,null,null,null,""]
[false,180,null,null,null,null,null,""]
[false,181,null,null,null,null,null,""]
[false,182,null,null,null,null,null,""]
[false,183,null,null,null,null,null,""]
[false,184,null,null,null,null,null,""]
[false,185,null,null,null,null,null,""]
[false,186,null,null,null,null,null,""]
[false,187,null,null,null,null,null,""]
[false,188,null,null,null,null,null,""]
[false,189,null,null,null,null,null,""]
[false,190,null,null,null,null,null,""]
[false,191,null,null,null,null,null,""]
[false,192,null,null,null,null,null,""]
[false,193,null,null,null,null,null,""]
[false,194,null,null,null,null,null,{"$f":"IF(A207=TRUE,\"○\",\"\")","v":""}]
[false,195,null,null,null,null,null,""]
[false,196,null,null,null,null,null,""]
[false,197,null,null,null,null,null,""]
[false,198,null,null,null,null,null,""]
[false,199,null,null,null,null,null,""]
[false,200,null,null,null,null,null,""]
[false,201,null,null,null,null,null,""]
[false,202,null,null,null,null,null,""]
[false,203,null,null,null,null,null,""]
[false,204,null,null,null,null,null,""]
[false,205,null,null,null,null,null,""]
[false,206,null,null,null,null,null,""]
[false,207,null,null,null,null,null,""]
[false,208,null,null,null,null,null,""]
[false,209,null,null,null,null,null,""]
[false,210,null,null,null,null,null,""]
[false,211,null,null,null,null,null,""]
[false,212,null,null,null,null,null,""]
[false,213,null,null,null,null,null,""]
[false,214,null,null,null,null,null,""]
[false,215,null,null,null,null,null,""]
[false,216,null,null,null,null,null,""]
[false,217,null,null,null,null,null,""]
[false,218,null,null,null,null,null,""]
[false,219,null,null,null,null,null,""]
[false,220,null,null,null,null,null,""]
[false,221,null,null,null,null,null,""]
[false,222,null,null,null,null,null,""]
[false,223,null,null,null,null,null,""]
[false,224,null,null,null,null,null,""]
[false,225,null,null,null,null,null,""]
[false,226,null,null,null,null,null,""]
[false,227,null,null,null,null,null,""]
[false,228,null,null,null,null,null,""]
[false,229,null,null,null,null,null,""]
[false,230,null,null,null,null,null,""]
[false,231,null,null,null,null,null,""]
[false,232,null,null,null,null,null,""]
[false,233,null,null,null,null,null,""]
[false,234,null,null,null,null,null,""]
[false,235,null,null,null,null,null,""]
[false,236,null,null,null,null,null,""]
[false,237,null,null,null,null,null,""]
[false,238,null,null,null,null,null,""]
[false,239,null,null,null,null,null,""]
[false,240,null,null,null,null,null,""]
[false,241,null,null,null,null,null,""]
[false,242,null,null,null,null,null,""]
[false,243,null,null,null,null,null,""]
[false,244,null,null,null,null,null,""]
[false,245,null,null,null,null,null,""]
[false,246,null,null,null,null,null,""]
[false,247,null,null,null,null,null,""]
[false,248,null,null,null,null,null,""]
[false,249,null,null,null,null,null,""]
[false,250,null,null,null,null,null,""]
[false,251,null,null,null,null,null,""]
[false,252,null,null,null,null,null,""]
[false,253,null,null,null,null,null,""]
[false,254,null,null,null,null,null,""]
[false,255,null,null,null,null,null,""]
[false,256,null,null,null,null,null,""]
[false,257,null,null,null,null,null,""]
[false,258,null,null,null,null,null,{"$f":"IF(A271=TRUE,\"○\",\"\")","v":""}]
[false,259,null,null,null,null,null,""]
[false,260,null,null,null,null,null,""]
[false,261,null,null,null,null,null,""]
[false,262,null,null,null,null,null,""]
[false,263,null,null,null,null,null,""]
[false,264,null,null,null,null,null,""]
[false,265,null,null,null,null,null,""]
[false,266,null,null,null,null,null,""]
[false,267,null,null,null,null,null,""]
[false,268,null,null,null,null,null,""]
[false,269,null,null,null,null,null,""]
[false,270,null,null,null,null,null,""]
[false,271,null,null,null,null,null,""]
[false,272,null,null,null,null,null,""]
[false,273,null,null,null,null,null,""]
[false,274,null,null,null,null,null,""]
[false,275,null,null,null,null,null,""]
[false,276,null,null,null,null,null,""]
[false,277,null,null,null,null,null,""]
[false,278,null,null,null,null,null,""]
[false,279,null,null,null,null,null,""]
[false,280,null,null,null,null,null,""]
[false,281,null,null,null,null,null,""]
[false,282,null,null,null,null,null,""]
[false,283,null,null,null,null,null,""]
[false,284,null,null,null,null,null,""]
[false,285,null,null,null,null,null,""]
[false,286,null,null,null,null,null,""]
[false,287,null,null,null,null,null,""]
[false,288,null,null,null,null,null,""]
[false,289,null,null,null,null,null,""]
[false,290,null,null,null,null,null,""]
[false,291,null,null,null,null,null,""]
[false,292,null,null,null,null,null,""]
[false,293,null,null,null,null,null,""]
[false,294,null,null,null,null,null,""]
[false,295,null,null,null,null,null,""]
[false,296,null,null,null,null,null,""]
[false,297,null,null,null,null,null,""]
[false,298,null,null,null,null,null,""]
[false,299,null,null,null,null,null,""]
[false,300,null,null,null,null,null,""]

{"sheet":"年間集計","index":13,"n_rows":17,"n_cols":18,"rows_kept":17,"cut":false,"hidden":false,"merged":[[1,15,6,15],[1,0,14,0],[1,3,14,3],[1,8,14,8],[16,1,17,4],[16,5,17,5]]}
[]
["返却待ち件数",null,null,"受付件数",null,"繰り越し分","受け入れ分","要修理","修理内訳",null,"修理完了","修理中","修理不能","成功率",null,"修理不能の内訳","特殊な充電池で手に入りません",{"$f":"'1月'!K16+'2月'!K16+'3月'!K16+'4月'!K16+'5月'!K16+'6月'!K16+'7月'!K16+'8月'!K16+'9月'!K16+'10月'!K16+'11月'!K16+'12月'!K16","v":0}]
[null,"1月",{"$f":"'1月'!$K$12","v":0},null,"1月",{"$f":"'1月'!$K$6","v":0},{"$f":"'1月'!$K$7","v":0},{"$f":"F3+G3","v":0},null,"1月",{"$f":"'1月'!$K$9","v":0},{"$f":"'1月'!$K$11","v":0},{"$f":"'1月'!$K$10","v":0},{"$f":"K3/(H3-L3)","v":{"$error":"#DIV/0!"}},null,null,"ＩＣが故障している為",{"$f":"'1月'!K17+'2月'!K17+'3月'!K17+'4月'!K17+'5月'!K17+'6月'!K17+'7月'!K17+'8月'!K17+'9月'!K17+'10月'!K17+'11月'!K17+'12月'!K17","v":0}]
[null,"2月",{"$f":"'2月'!$K$12","v":0},null,"2月",{"$f":"'2月'!$K$6","v":0},{"$f":"'2月'!$K$7","v":0},{"$f":"F4+G4","v":0},null,"2月",{"$f":"'2月'!$K$9","v":0},{"$f":"'2月'!$K$11","v":0},{"$f":"'2月'!$K$10","v":0},{"$f":"K4/(H4-L4)","v":{"$error":"#DIV/0!"}},null,null,"断線が多い為",{"$f":"'1月'!K18+'2月'!K18+'3月'!K18+'4月'!K18+'5月'!K18+'6月'!K18+'7月'!K18+'8月'!K18+'9月'!K18+'10月'!K18+'11月'!K18+'12月'!K18","v":0}]
[null,"3月",{"$f":"'3月'!$K$12","v":0},null,"3月",{"$f":"'3月'!$K$6","v":0},{"$f":"'3月'!$K$7","v":0},{"$f":"F5+G5","v":0},null,"3月",{"$f":"'3月'!$K$9","v":0},{"$f":"'3月'!$K$11","v":0},{"$f":"'3月'!$K$10","v":0},{"$error":"#DIV/0!"},null,null,"分解できない為原因が分かりません",{"$f":"'1月'!K19+'2月'!K19+'3月'!K19+'4月'!K19+'5月'!K19+'6月'!K19+'7月'!K19+'8月'!K19+'9月'!K19+'10月'!K19+'11月'!K19+'12月'!K19","v":0}]
[null,"4月",{"$f":"'4月'!$K$12","v":0},null,"4月",{"$f":"'4月'!$K$6","v":0},{"$f":"'4月'!$K$7","v":0},0,null,"4月",{"$f":"'4月'!$K$9","v":0},{"$f":"'4月'!$K$11","v":0},{"$f":"'4月'!$K$10","v":0},{"$error":"#DIV/0!"},null,null,"ギアが欠けています",{"$f":"'1月'!K20+'2月'!K20+'3月'!K20+'4月'!K20+'5月'!K20+'6月'!K20+'7月'!K20+'8月'!K20+'9月'!K20+'10月'!K20+'11月'!K20+'12月'!K20","v":0}]
[null,"5月",{"$f":"'5月'!$K$12","v":0},null,"5月",{"$f":"'5月'!$K$6","v":0},{"$f":"'5月'!$K$7","v":0},0,null,"5月",{"$f":"'5月'!$K$9","v":0},{"$f":"'5月'!$K$11","v":0},{"$f":"'5月'!$K$10","v":0},{"$error":"#DIV/0!"},null,null,"その他",{"$f":"'1月'!K21+'2月'!K21+'3月'!K21+'4月'!K21+'5月'!K21+'6月'!K21+'7月'!K21+'8月'!K21+'9月'!K21+'10月'!K21+'11月'!K21+'12月'!K21","v":0}]
[null,"6月",{"$f":"'6月'!$K$12","v":0},null,"6月",{"$f":"'6月'!$K$6","v":0},{"$f":"'6月'!$K$7","v":0},0,null,"6月",{"$f":"'6月'!$K$9","v":0},{"$f":"'6月'!$K$11","v":0},{"$f":"'6月'!$K$10","v":0},{"$error":"#DIV/0!"}]
[null,"7月",{"$f":"'7月'!$K$12","v":0},null,"7月",{"$f":"'7月'!$K$6","v":0},{"$f":"'7月'!$K$7","v":0},0,null,"7月",{"$f":"'7月'!$K$9","v":0},{"$f":"'7月'!$K$11","v":0},{"$f":"'7月'!$K$10","v":0},{"$error":"#DIV/0!"}]
[null,"8月",{"$f":"'8月'!$K$12","v":0},null,"8月",{"$f":"'8月'!$K$6","v":0},{"$f":"'8月'!$K$7","v":0},0,null,"8月",{"$f":"'8月'!$K$9","v":0},{"$f":"'8月'!$K$11","v":0},{"$f":"'8月'!$K$10","v":0},{"$error":"#DIV/0!"}]
[null,"9月",{"$f":"'9月'!$K$12","v":0},null,"9月",{"$f":"'9月'!$K$6","v":0},{"$f":"'9月'!$K$7","v":0},0,null,"9月",{"$f":"'9月'!$K$9","v":0},{"$f":"'9月'!$K$11","v":0},{"$f":"'9月'!$K$10","v":0},{"$error":"#DIV/0!"}]
[null,"10月",{"$f":"'10月'!$K$12","v":0},null,"10月",{"$f":"'10月'!$K$6","v":0},{"$f":"'10月'!$K$7","v":0},0,null,"10月",{"$f":"'10月'!$K$9","v":0},{"$f":"'10月'!$K$11","v":0},{"$f":"'10月'!$K$10","v":0},{"$error":"#DIV/0!"}]
[null,"11月",{"$f":"'11月'!$K$12","v":0},null,"11月",{"$f":"'11月'!$K$6","v":0},{"$f":"'11月'!$K$7","v":0},0,null,"11月",{"$f":"'11月'!$K$9","v":0},{"$f":"'11月'!$K$11","v":0},{"$f":"'11月'!$K$10","v":0},{"$error":"#DIV/0!"}]
[null,"12月",{"$f":"'12月'!$K$12","v":0},null,"12月",{"$f":"'12月'!$K$6","v":0},{"$f":"'12月'!$K$7","v":0},0,null,"12月",{"$f":"'12月'!$K$9","v":0},{"$f":"'12月'!$K$11","v":0},{"$f":"'12月'!$K$10","v":0},{"$f":"K14/(H14-L14)","v":{"$error":"#DIV/0!"}}]
[null,null,null,null,"計",{"$f":"SUM(F3:F14)","v":0},{"$f":"SUM(G3:G14)","v":0},{"$f":"SUM(H3:H14)","v":0},null,"計",{"$f":"SUM(K3:K14)","v":0},{"$f":"SUM(L3:L14)","v":0},{"$f":"SUM(M3:M14)","v":0},{"$f":"K15/(H15-L15)","v":{"$error":"#DIV/0!"}}]
[]
[null,"来年への繰り越し分",null,null,null,{"$f":"H14-K14-M14","v":0}]